Ref No,Fund Type,Dept,Cost Centre Description    ,Description    ,Creditor Name    ,GL Code Net Amount,Payment date        
2,Revenue,CAHD,18-25 Year Olds,Permanent Residential,1 St Georges House,6666.76, 07-Apr-2020
3,Revenue,CAHD,18-25 Year Olds,Permanent Residential,1 St Georges House,6666.76, 07-Apr-2020
4,Revenue,CAHD,Covid 19 -Adult Social Care,Permanent Residential,1 St Georges House,1448.43, 24-Apr-2020
5,Revenue,CAHD,Covid 19 -Adult Social Care,Permanent Residential,1 St Georges House,1448.43, 24-Apr-2020
6,Revenue,CAHD,CSC - Continuing Support Team,Inter Directorate Recharges Income,1625 Independent People,26500.00, 16-Apr-2020
7,Revenue,CAHD,CSC - Continuing Support Team,Inter Directorate Recharges Income,1625 Independent People,19000.00, 16-Apr-2020
8,Revenue,CAHD,Supporting People Programme,Grants to Voluntary Bodies,1625 Independent People,15167.00, 06-Apr-2020
9,Revenue,CAHD,Supporting People Programme,Grants to Voluntary Bodies,1625 Independent People,10541.50, 06-Apr-2020
10,Revenue,CAHD,Central - Commissioned Services,Day Care / Social Activities,3 Trees Community Support Ltd,97.60, 09-Apr-2020
11,Revenue,CAHD,Central - Commissioned Services,Other Small Contracts,3 Trees Community Support Ltd,5162.02, 09-Apr-2020
12,Revenue,CAHD,Central - Commissioned Services,Supported Living,3 Trees Community Support Ltd,4800.08, 09-Apr-2020
13,Revenue,CAHD,North - Community based support,Day Care / Social Activities,3 Trees Community Support Ltd,678.32, 09-Apr-2020
14,Revenue,CAHD,Central - Commissioned Services,Other Small Contracts,3 Trees Community Support Ltd,5025.38, 09-Apr-2020
15,Revenue,CAHD,Central - Commissioned Services,Supported Living,3 Trees Community Support Ltd,4825.12, 09-Apr-2020
16,Revenue,CAHD,Central - Commissioned Services,Other Small Contracts,3 Trees Community Support Ltd,4986.34, 15-Apr-2020
17,Revenue,CAHD,Central - Commissioned Services,Supported Living,3 Trees Community Support Ltd,4864.16, 15-Apr-2020
18,Revenue,CAHD,Central - Commissioned Services,Other Small Contracts,3 Trees Community Support Ltd,5131.84, 23-Apr-2020
19,Revenue,CAHD,Central - Commissioned Services,Supported Living,3 Trees Community Support Ltd,4928.14, 23-Apr-2020
20,Revenue,CAHD,Central - Commissioned Services,Other Small Contracts,3 Trees Community Support Ltd,5128.35, 30-Apr-2020
21,Revenue,CAHD,Central - Commissioned Services,Supported Living,3 Trees Community Support Ltd,5065.12, 30-Apr-2020
22,Revenue,CAHD,Covid 19 -Adult Social Care,Other Small Contracts,3 Trees Community Support Ltd,998.50, 14-Apr-2020
23,Revenue,CAHD,Covid 19 -Adult Social Care,Other Small Contracts,3 Trees Community Support Ltd,998.50, 22-Apr-2020
24,Revenue,CAHD,Covid 19 -Adult Social Care,Other Small Contracts,3 Trees Community Support Ltd,789.02, 29-Apr-2020
25,Revenue,CAHD,Covid 19 -Adult Social Care,Other Small Contracts,3 Trees Community Support Ltd,4819.54, 24-Apr-2020
26,Revenue,CAHD,Covid 19 -Adult Social Care,Other Small Contracts,3 Trees Community Support Ltd,4819.54, 24-Apr-2020
27,Revenue,CAHD,South - Commissioned Services,Permanent Nursing,3Rd Floor  The Aspect,1143.68, 07-Apr-2020
28,Revenue,CAHD,South - Commissioned Services,Permanent Nursing,3Rd Floor  The Aspect,1143.68, 07-Apr-2020
29,Revenue,CAHD,South - S117,Permanent Nursing,3Rd Floor  The Aspect,1143.68, 07-Apr-2020
30,Revenue,CAHD,South - S117,Permanent Nursing,3Rd Floor  The Aspect,1143.68, 07-Apr-2020
31,Revenue,CAHD,South - Commissioned Services,Permanent Nursing,3Rd Floor  The Aspect,1796.94, 07-Apr-2020
32,Revenue,CAHD,South - Commissioned Services,Permanent Nursing,3Rd Floor  The Aspect,1796.94, 07-Apr-2020
33,Revenue,CAHD,North - Community based support,Permanent Nursing,3Rd Floor  The Aspect,1143.68, 07-Apr-2020
34,Revenue,CAHD,North - Community based support,Permanent Nursing,3Rd Floor  The Aspect,1143.68, 07-Apr-2020
35,Revenue,CAHD,North - Community based support,Permanent Nursing,3Rd Floor  The Aspect,1617.36, 07-Apr-2020
36,Revenue,CAHD,North - Community based support,Permanent Nursing,3Rd Floor  The Aspect,1617.36, 07-Apr-2020
37,Revenue,CAHD,South - Commissioned Services,Permanent Nursing,3Rd Floor  The Aspect,1143.68, 07-Apr-2020
38,Revenue,CAHD,South - Commissioned Services,Permanent Nursing,3Rd Floor  The Aspect,1143.68, 07-Apr-2020
39,Revenue,CAHD,Covid 19 -Adult Social Care,Permanent Residential,3Rd Floor  The Aspect,1735.71, 24-Apr-2020
40,Revenue,CAHD,Covid 19 -Adult Social Care,Permanent Residential,3Rd Floor  The Aspect,1735.71, 24-Apr-2020
41,Revenue,CAHD,South - Commissioned Services,Permanent Residential,5Th Floor Harlech Court,8500.24, 07-Apr-2020
42,Revenue,CAHD,South - Commissioned Services,Permanent Residential,5Th Floor Harlech Court,8333.56, 07-Apr-2020
43,Revenue,CAHD,South - Commissioned Services,Permanent Residential,5Th Floor Harlech Court,5313.96, 07-Apr-2020
44,Revenue,CAHD,South - Commissioned Services,Permanent Residential,5Th Floor Harlech Court,5209.76, 07-Apr-2020
45,Revenue,CAHD,S28A cases,Permanent Residential,5Th Floor Harlech Court,5561.38, 07-Apr-2020
46,Revenue,CAHD,S28A cases,Permanent Residential,5Th Floor Harlech Court,5452.34, 07-Apr-2020
47,Revenue,CAHD,South - Commissioned Services,Permanent Residential,5Th Floor Harlech Court,5832.56, 07-Apr-2020
48,Revenue,CAHD,South - Commissioned Services,Permanent Residential,5Th Floor Harlech Court,5718.20, 07-Apr-2020
49,Revenue,CAHD,Covid 19 -Adult Social Care,Permanent Residential,5Th Floor Harlech Court,5475.30, 24-Apr-2020
50,Revenue,CAHD,Covid 19 -Adult Social Care,Permanent Residential,5Th Floor Harlech Court,5475.30, 24-Apr-2020
51,Revenue,CAHD,North - Community based support,Permanent Residential,5Th Floor Harlech Court,6249.28, 07-Apr-2020
52,Revenue,CAHD,North - Community based support,Permanent Residential,5Th Floor Harlech Court,6249.28, 07-Apr-2020
53,Revenue,CAHD,Covid 19 -Adult Social Care,Permanent Residential,5Th Floor Harlech Court,1357.73, 24-Apr-2020
54,Revenue,CAHD,Covid 19 -Adult Social Care,Permanent Residential,5Th Floor Harlech Court,1357.73, 24-Apr-2020
55,Revenue,CAHD,North - Community based support,Permanent Residential,5Th Floor Harlech Court,5268.62, 07-Apr-2020
56,Revenue,CAHD,North - Community based support,Permanent Residential,5Th Floor Harlech Court,5268.62, 07-Apr-2020
57,Revenue,CAHD,North - Community based support,Permanent Residential,5Th Floor Harlech Court,4535.56, 07-Apr-2020
58,Revenue,CAHD,North - Community based support,Permanent Residential,5Th Floor Harlech Court,4535.56, 07-Apr-2020
59,Revenue,CAHD,Covid 19 -Adult Social Care,Permanent Residential,5Th Floor Harlech Court,2130.07, 24-Apr-2020
60,Revenue,CAHD,Covid 19 -Adult Social Care,Permanent Residential,5Th Floor Harlech Court,2130.07, 24-Apr-2020
61,Revenue,CAHD,CSC - Section 17 0-25,Preventative Assistance,A+bility Ltd,556.00, 09-Apr-2020
62,Revenue,CAHD,Social Lettings Agency,Other Supplies & Services,Abode Property Management,676.22, 23-Apr-2020
63,Revenue,CAHD,Social Lettings Agency,Other Supplies & Services,Abode Property Management,676.22, 23-Apr-2020
64,Revenue,CAHD,Jointly Funded H&SC Packages,Permanent Residential,Acorn Care Providers,1155.46, 07-Apr-2020
65,Revenue,CAHD,Section 117 Placements MH Younger,Permanent Residential,Acorn Care Providers,2740.64, 07-Apr-2020
66,Revenue,CAHD,Jointly Funded H&SC Packages,Permanent Residential,Acorn Care Providers,1132.80, 07-Apr-2020
67,Revenue,CAHD,Section 117 Placements MH Younger,Permanent Residential,Acorn Care Providers,2686.90, 07-Apr-2020
68,Revenue,CAHD,North - S117,Permanent Residential,Acorn Care Providers,1989.00, 07-Apr-2020
69,Revenue,CAHD,Jointly Funded H&SC Packages,Permanent Residential,Acorn Care Providers,1071.00, 07-Apr-2020
70,Revenue,CAHD,North - S117,Permanent Residential,Acorn Care Providers,1950.00, 07-Apr-2020
71,Revenue,CAHD,Jointly Funded H&SC Packages,Permanent Residential,Acorn Care Providers,1050.00, 07-Apr-2020
72,Revenue,CAHD,MH Purchasing - Younger,Permanent Residential,Acorn Care Providers,3191.02, 07-Apr-2020
73,Revenue,CAHD,Jointly Funded H&SC Packages,Permanent Residential,Acorn Care Providers,1718.24, 07-Apr-2020
74,Revenue,CAHD,MH Purchasing - Younger,Permanent Residential,Acorn Care Providers,3128.45, 07-Apr-2020
75,Revenue,CAHD,Jointly Funded H&SC Packages,Permanent Residential,Acorn Care Providers,1684.55, 07-Apr-2020
76,Revenue,CAHD,MH Purchasing - Younger,Permanent Residential,Acorn Care Providers,3133.44, 07-Apr-2020
77,Revenue,CAHD,MH Purchasing - Younger,Permanent Residential,Acorn Care Providers,3072.00, 07-Apr-2020
78,Revenue,CAHD,Covid 19 -Adult Social Care,Permanent Residential,Acorn Care Providers,2400.99, 24-Apr-2020
79,Revenue,CAHD,Covid 19 -Adult Social Care,Permanent Residential,Acorn Care Providers,2400.99, 24-Apr-2020
80,Revenue,CAHD,Training - Adult Services,Training Expenses,Acorn Health & Safety Limited,432.25, 06-Apr-2020
81,Revenue,CAHD,Training - Adult Services,Training Expenses,Acorn Health & Safety Limited,432.25, 06-Apr-2020
82,Revenue,CAHD,"Strategy, Advice and Public Protection",Other Supplies & Services,ACS Business Supplies Ltd,575.00, 28-Apr-2020
83,Revenue,CAHD,Covid 19 -Adult Social Care,Operational Equipment,ACS Business Supplies Ltd,5750.00, 28-Apr-2020
84,Revenue,CAHD,Covid 19 -Adult Social Care,Operational Equipment,ACS Business Supplies Ltd,5750.00, 28-Apr-2020
85,Revenue,CAHD,Covid 19 -Adult Social Care,Operational Equipment,ACS Business Supplies Ltd,5750.00, 28-Apr-2020
86,Revenue,CAHD,Covid 19 -Adult Social Care,Operational Equipment,ACS Business Supplies Ltd,5750.00, 28-Apr-2020
87,Revenue,CAHD,Covid 19 -Adult Social Care,Operational Equipment,ACS Business Supplies Ltd,5750.00, 28-Apr-2020
88,Revenue,CAHD,CSC - Agency Fostering,Foster Parent Allowances,Action for Children,6975.00, 06-Apr-2020
89,Revenue,CAHD,CSC - Agency Fostering,Foster Parent Allowances,Action for Children,3660.17, 06-Apr-2020
90,Revenue,CAHD,CSC - Agency Fostering,Foster Parent Allowances,Action for Children,3660.17, 06-Apr-2020
91,Revenue,CAHD,CSC - Agency Fostering,Foster Parent Allowances,Action for Children,7842.77, 06-Apr-2020
92,Revenue,CAHD,CSC - Agency Fostering,Foster Parent Allowances,Action for Children,974.05, 15-Apr-2020
93,Revenue,CAHD,CSC - Agency Fostering,Foster Parent Allowances,Action for Children,974.05, 15-Apr-2020
94,Revenue,CAHD,South - Commissioned Services,Supported Living,Action on Hearing Loss,830.80, 29-Apr-2020
95,Revenue,CAHD,South - Commissioned Services,Supported Living,Action on Hearing Loss,844.20, 22-Apr-2020
96,Revenue,CAHD,South - Commissioned Services,Permanent Residential,Administration & Revenue Centre,1872.02, 07-Apr-2020
97,Revenue,CAHD,South - Commissioned Services,Permanent Residential,Administration & Revenue Centre,1872.02, 07-Apr-2020
98,Revenue,CAHD,South Glos Users in South Glos Homes,Permanent Nursing,Administration And Revenue Centre,662.24, 07-Apr-2020
99,Revenue,CAHD,South - Commissioned Services,Permanent Nursing,Administration And Revenue Centre,1394.90, 07-Apr-2020
100,Revenue,CAHD,South - Commissioned Services,Permanent Nursing,Administration And Revenue Centre,1367.54, 07-Apr-2020
101,Revenue,CAHD,South - Commissioned Services,Permanent Nursing,Administration And Revenue Centre,1222.98, 07-Apr-2020
102,Revenue,CAHD,South - Commissioned Services,Permanent Nursing,Administration And Revenue Centre,1199.00, 07-Apr-2020
103,Revenue,CAHD,South - Commissioned Services,Permanent Nursing,Administration And Revenue Centre,1222.98, 07-Apr-2020
104,Revenue,CAHD,South - Commissioned Services,Permanent Nursing,Administration And Revenue Centre,1199.00, 07-Apr-2020
105,Revenue,CAHD,South Glos Users in South Glos Homes,Permanent Nursing,Administration And Revenue Centre,662.24, 07-Apr-2020
106,Revenue,CAHD,South - Commissioned Services,Permanent Nursing,Administration And Revenue Centre,1222.98, 07-Apr-2020
107,Revenue,CAHD,South - Commissioned Services,Permanent Nursing,Administration And Revenue Centre,1199.00, 07-Apr-2020
108,Revenue,CAHD,South Glos Users in South Glos Homes,Permanent Nursing,Administration And Revenue Centre,662.24, 07-Apr-2020
109,Revenue,CAHD,South - Commissioned Services,Permanent Residential,Administration And Revenue Centre,1255.90, 07-Apr-2020
110,Revenue,CAHD,South - Commissioned Services,Permanent Residential,Administration And Revenue Centre,1231.28, 07-Apr-2020
111,Revenue,CAHD,South Glos Users in South Glos Homes,Permanent Nursing,Administration And Revenue Centre,662.24, 07-Apr-2020
112,Revenue,CAHD,North - Community based support,Permanent Nursing,Administration And Revenue Centre,1474.80, 07-Apr-2020
113,Revenue,CAHD,North - Community based support,Permanent Nursing,Administration And Revenue Centre,1445.88, 07-Apr-2020
114,Revenue,CAHD,South Glos Users in South Glos Homes,Permanent Nursing,Administration And Revenue Centre,662.24, 07-Apr-2020
115,Revenue,CAHD,South Glos Users in South Glos Homes,Permanent Nursing,Administration And Revenue Centre,662.24, 07-Apr-2020
116,Revenue,CAHD,South - Commissioned Services,Permanent Nursing,Administration And Revenue Centre,1474.80, 07-Apr-2020
117,Revenue,CAHD,South - Commissioned Services,Permanent Nursing,Administration And Revenue Centre,1445.88, 07-Apr-2020
118,Revenue,CAHD,South - Commissioned Services,Permanent Nursing,Administration And Revenue Centre,1336.94, 07-Apr-2020
119,Revenue,CAHD,South - Commissioned Services,Permanent Nursing,Administration And Revenue Centre,1310.72, 07-Apr-2020
120,Revenue,CAHD,South Glos Users in South Glos Homes,Permanent Nursing,Administration And Revenue Centre,662.24, 07-Apr-2020
121,Revenue,CAHD,South - Commissioned Services,Permanent Residential,Administration And Revenue Centre,8007.60, 07-Apr-2020
122,Revenue,CAHD,South - bed purchasing and direct  payments,Permanent Residential,Administration And Revenue Centre,4575.77, 07-Apr-2020
123,Revenue,CAHD,South - Commissioned Services,Permanent Residential,Administration And Revenue Centre,1601.52, 07-Apr-2020
124,Revenue,CAHD,South - Commissioned Services,Permanent Residential,Administration And Revenue Centre,1601.52, 07-Apr-2020
125,Revenue,CAHD,South Glos Users in South Glos Homes,Permanent Nursing,Administration And Revenue Centre,662.24, 07-Apr-2020
126,Revenue,CAHD,South Glos Users in South Glos Homes,Permanent Nursing,Administration And Revenue Centre,662.24, 07-Apr-2020
127,Revenue,CAHD,North - Community based support,Respite Planned - Residential,Administration And Revenue Centre,542.86, 07-Apr-2020
128,Revenue,CAHD,South - Commissioned Services,Permanent Nursing,Administration And Revenue Centre,1462.28, 07-Apr-2020
129,Revenue,CAHD,South - Commissioned Services,Permanent Nursing,Administration And Revenue Centre,1433.60, 07-Apr-2020
130,Revenue,CAHD,South Glos Users in South Glos Homes,Permanent Nursing,Administration And Revenue Centre,2790.87, 07-Apr-2020
131,Revenue,CAHD,South - Commissioned Services,Permanent Nursing,Administration And Revenue Centre,1255.90, 07-Apr-2020
132,Revenue,CAHD,South - Commissioned Services,Permanent Nursing,Administration And Revenue Centre,1231.28, 07-Apr-2020
133,Revenue,CAHD,South Glos Users in South Glos Homes,Permanent Nursing,Administration And Revenue Centre,662.24, 07-Apr-2020
134,Revenue,CAHD,South - Commissioned Services,Permanent Nursing,Administration And Revenue Centre,1222.98, 07-Apr-2020
135,Revenue,CAHD,South - Commissioned Services,Permanent Nursing,Administration And Revenue Centre,1199.00, 07-Apr-2020
136,Revenue,CAHD,South Glos Users in South Glos Homes,Permanent Nursing,Administration And Revenue Centre,662.24, 07-Apr-2020
137,Revenue,CAHD,South - Commissioned Services,Permanent Nursing,Administration And Revenue Centre,1222.98, 07-Apr-2020
138,Revenue,CAHD,South - Commissioned Services,Permanent Nursing,Administration And Revenue Centre,1199.00, 07-Apr-2020
139,Revenue,CAHD,South - S117,Permanent Residential,Administration And Revenue Centre,1595.28, 07-Apr-2020
140,Revenue,CAHD,South - S117,Permanent Residential,Administration And Revenue Centre,1564.00, 07-Apr-2020
141,Revenue,CAHD,South - Commissioned Services,Permanent Nursing,Administration And Revenue Centre,1222.98, 07-Apr-2020
142,Revenue,CAHD,South - Commissioned Services,Permanent Nursing,Administration And Revenue Centre,1199.00, 07-Apr-2020
143,Revenue,CAHD,South Glos Users in South Glos Homes,Permanent Nursing,Administration And Revenue Centre,662.24, 07-Apr-2020
144,Revenue,CAHD,Central - Commissioned Services,Respite Planned - Residential,Administration And Revenue Centre,950.00, 07-Apr-2020
145,Revenue,CAHD,South - Commissioned Services,Permanent Nursing,Administration And Revenue Centre,1495.84, 07-Apr-2020
146,Revenue,CAHD,South - Commissioned Services,Permanent Nursing,Administration And Revenue Centre,1466.50, 07-Apr-2020
147,Revenue,CAHD,North - Community based support,Permanent Residential,Administration And Revenue Centre,1474.80, 07-Apr-2020
148,Revenue,CAHD,North - Community based support,Permanent Residential,Administration And Revenue Centre,1445.88, 07-Apr-2020
149,Revenue,CAHD,South Glos Users in South Glos Homes,Permanent Nursing,Administration And Revenue Centre,662.24, 07-Apr-2020
150,Revenue,CAHD,Covid 19 -Adult Social Care,Permanent Residential,Administration And Revenue Centre,4740.32, 24-Apr-2020
151,Revenue,CAHD,Covid 19 -Adult Social Care,Permanent Residential,Administration And Revenue Centre,4740.32, 24-Apr-2020
152,Revenue,CAHD,North - Community based support,Permanent Nursing,Administration And Revenue Centre,1183.50, 07-Apr-2020
153,Revenue,CAHD,North - Community based support,Permanent Nursing,Administration And Revenue Centre,1183.50, 07-Apr-2020
154,Revenue,CAHD,North - Community based support,Permanent Nursing,Admirals Reach Care Home,1331.12, 07-Apr-2020
155,Revenue,CAHD,North - Community based support,Permanent Nursing,Admirals Reach Care Home,1331.12, 07-Apr-2020
156,Revenue,CAHD,South - Commissioned Services,Other Small Contracts,Advantedge Commercial Finance Limited,780.64, 07-Apr-2020
157,Revenue,CAHD,South - Commissioned Services,Other Small Contracts,Advantedge Commercial Finance Limited,2170.56, 07-Apr-2020
158,Revenue,CAHD,South - Commissioned Services,Other Small Contracts,Advantedge Commercial Finance Limited,1075.76, 07-Apr-2020
159,Revenue,CAHD,South - Commissioned Services,Other Small Contracts,Advantedge Commercial Finance Limited,1180.48, 07-Apr-2020
160,Revenue,CAHD,South - Commissioned Services,Other Small Contracts,Advantedge Commercial Finance Limited,628.32, 07-Apr-2020
161,Revenue,CAHD,South - Commissioned Services,Other Small Contracts,Advantedge Commercial Finance Limited,628.32, 07-Apr-2020
162,Revenue,CAHD,South - Commissioned Services,Other Small Contracts,Advantedge Commercial Finance Limited,733.04, 07-Apr-2020
163,Revenue,CAHD,South - Commissioned Services,Other Small Contracts,Advantedge Commercial Finance Limited,1399.44, 07-Apr-2020
164,Revenue,CAHD,South - Commissioned Services,Other Small Contracts,Advantedge Commercial Finance Limited,1723.12, 07-Apr-2020
165,Revenue,CAHD,South - Commissioned Services,Other Small Contracts,Advantedge Commercial Finance Limited,2018.24, 07-Apr-2020
166,Revenue,CAHD,South - Commissioned Services,Other Small Contracts,Advantedge Commercial Finance Limited,628.32, 07-Apr-2020
167,Revenue,CAHD,South - Commissioned Services,Other Small Contracts,Advantedge Commercial Finance Limited,1808.80, 07-Apr-2020
168,Revenue,CAHD,South - Commissioned Services,Other Small Contracts,Advantedge Commercial Finance Limited,2094.40, 07-Apr-2020
169,Revenue,CAHD,South - Commissioned Services,Other Small Contracts,Advantedge Commercial Finance Limited,828.24, 08-Apr-2020
170,Revenue,CAHD,South - Commissioned Services,Other Small Contracts,Advantedge Commercial Finance Limited,1185.24, 14-Apr-2020
171,Revenue,CAHD,South - Commissioned Services,Other Small Contracts,Advantedge Commercial Finance Limited,813.96, 08-Apr-2020
172,Revenue,CAHD,South - Commissioned Services,Other Small Contracts,Advantedge Commercial Finance Limited,1313.76, 08-Apr-2020
173,Revenue,CAHD,South - Commissioned Services,Other Small Contracts,Advantedge Commercial Finance Limited,656.88, 08-Apr-2020
174,Revenue,CAHD,South - Commissioned Services,Other Small Contracts,Advantedge Commercial Finance Limited,656.88, 14-Apr-2020
175,Revenue,CAHD,South - Commissioned Services,Other Small Contracts,Advantedge Commercial Finance Limited,2065.84, 14-Apr-2020
176,Revenue,CAHD,South - Commissioned Services,Other Small Contracts,Advantedge Commercial Finance Limited,947.24, 14-Apr-2020
177,Revenue,CAHD,North - Community based support,Other Small Contracts,Advantedge Commercial Finance Limited,680.68, 14-Apr-2020
178,Revenue,CAHD,South - Commissioned Services,Other Small Contracts,Advantedge Commercial Finance Limited,609.28, 14-Apr-2020
179,Revenue,CAHD,South - Commissioned Services,Other Small Contracts,Advantedge Commercial Finance Limited,1827.84, 14-Apr-2020
180,Revenue,CAHD,South - Commissioned Services,Other Small Contracts,Advantedge Commercial Finance Limited,1328.04, 14-Apr-2020
181,Revenue,CAHD,Covid 19 -Adult Social Care,Other Small Contracts,Advantedge Commercial Finance Limited,2012.90, 24-Apr-2020
182,Revenue,CAHD,Covid 19 -Adult Social Care,Other Small Contracts,Advantedge Commercial Finance Limited,2012.90, 24-Apr-2020
183,Revenue,CAHD,South - Commissioned Services,Other Small Contracts,Agincare UK Limited,439.89, 07-Apr-2020
184,Revenue,CAHD,Younger MH non-res purchasing,Other Small Contracts,Agincare UK Limited,132.44, 07-Apr-2020
185,Revenue,CAHD,South - Commissioned Services,Other Small Contracts,Agincare UK Limited,577.06, 07-Apr-2020
186,Revenue,CAHD,Younger MH non-res purchasing,Other Small Contracts,Agincare UK Limited,94.60, 07-Apr-2020
187,Revenue,CAHD,South - Commissioned Services,Other Small Contracts,Agincare UK Limited,543.95, 07-Apr-2020
188,Revenue,CAHD,Younger MH non-res purchasing,Other Small Contracts,Agincare UK Limited,94.60, 07-Apr-2020
189,Revenue,CAHD,South - Commissioned Services,Other Small Contracts,Agincare UK Limited,553.41, 09-Apr-2020
190,Revenue,CAHD,Younger MH non-res purchasing,Other Small Contracts,Agincare UK Limited,132.44, 09-Apr-2020
191,Revenue,CAHD,South - Commissioned Services,Other Small Contracts,Agincare UK Limited,591.25, 07-Apr-2020
192,Revenue,CAHD,South - Commissioned Services,Other Small Contracts,Agincare UK Limited,572.33, 20-Apr-2020
193,Revenue,CAHD,South - Commissioned Services,Other Small Contracts,Agincare UK Limited,531.30, 23-Apr-2020
194,Revenue,CAHD,Younger MH non-res purchasing,Other Small Contracts,Agincare UK Limited,57.96, 23-Apr-2020
195,Revenue,CAHD,Extra Care Housing,Private & Voluntary Home Care,Agincare UK Limited,24391.34, 01-Apr-2020
196,Revenue,CAHD,Extra Care Housing,Private & Voluntary Home Care,Agincare UK Limited,11734.93, 01-Apr-2020
197,Revenue,CAHD,Extra Care Housing,Private & Voluntary Home Care,Agincare UK Limited,28508.53, 02-Apr-2020
198,Revenue,CAHD,Extra Care Housing,Private & Voluntary Home Care,Agincare UK Limited,1776.07, 30-Apr-2020
199,Revenue,CAHD,Extra Care Housing,Private & Voluntary Home Care,Agincare UK Limited,1202.31, 30-Apr-2020
200,Revenue,CAHD,18-25 Year Olds,Permanent Residential,Alexander House,6077.58, 07-Apr-2020
201,Revenue,CAHD,18-25 Year Olds,Permanent Residential,Alexander House,6077.58, 07-Apr-2020
202,Revenue,CAHD,Covid 19 -Adult Social Care,Permanent Residential,Alexander House,1320.43, 24-Apr-2020
203,Revenue,CAHD,Covid 19 -Adult Social Care,Permanent Residential,Alexander House,1320.43, 24-Apr-2020
204,Revenue,CAHD,South - Commissioned Services,Other Small Contracts,AliMo Care Ltd,1057.68, 09-Apr-2020
205,Revenue,CAHD,North - Community based support,Other Small Contracts,AliMo Care Ltd,351.00, 09-Apr-2020
206,Revenue,CAHD,Covid 19 -Adult Social Care,Other Small Contracts,AliMo Care Ltd,9.36, 14-Apr-2020
207,Revenue,CAHD,South - Commissioned Services,Other Small Contracts,AliMo Care Ltd,1024.92, 14-Apr-2020
208,Revenue,CAHD,North - Community based support,Other Small Contracts,AliMo Care Ltd,308.88, 14-Apr-2020
209,Revenue,CAHD,Covid 19 -Adult Social Care,Other Small Contracts,AliMo Care Ltd,14.04, 22-Apr-2020
210,Revenue,CAHD,South - Commissioned Services,Other Small Contracts,AliMo Care Ltd,1062.36, 22-Apr-2020
211,Revenue,CAHD,North - Community based support,Other Small Contracts,AliMo Care Ltd,341.64, 22-Apr-2020
212,Revenue,CAHD,Covid 19 -Adult Social Care,Other Small Contracts,AliMo Care Ltd,9.36, 22-Apr-2020
213,Revenue,CAHD,South - Commissioned Services,Other Small Contracts,AliMo Care Ltd,1024.92, 22-Apr-2020
214,Revenue,CAHD,North - Community based support,Other Small Contracts,AliMo Care Ltd,351.00, 22-Apr-2020
215,Revenue,CAHD,Covid 19 -Adult Social Care,Other Small Contracts,AliMo Care Ltd,9.56, 30-Apr-2020
216,Revenue,CAHD,South - Commissioned Services,Other Small Contracts,AliMo Care Ltd,1080.28, 30-Apr-2020
217,Revenue,CAHD,North - Community based support,Other Small Contracts,AliMo Care Ltd,372.84, 30-Apr-2020
218,Revenue,CAHD,Covid 19 -Adult Social Care,Other Small Contracts,AliMo Care Ltd,9.56, 30-Apr-2020
219,Revenue,CAHD,South - Commissioned Services,Other Small Contracts,AliMo Care Ltd,1042.04, 30-Apr-2020
220,Revenue,CAHD,North - Community based support,Other Small Contracts,AliMo Care Ltd,358.50, 30-Apr-2020
221,Revenue,CAHD,Covid 19 -Adult Social Care,Other Small Contracts,AliMo Care Ltd,674.80, 24-Apr-2020
222,Revenue,CAHD,Covid 19 -Adult Social Care,Other Small Contracts,AliMo Care Ltd,674.80, 24-Apr-2020
223,Revenue,CAHD,North - Community based support,Permanent Nursing,Allambie Court,1160.22, 07-Apr-2020
224,Revenue,CAHD,North - Community based support,Permanent Nursing,Allambie Court,1160.22, 07-Apr-2020
225,Revenue,CAHD,Central - Commissioned Services,Permanent Residential,Alvony House Residential Care Home,1500.00, 07-Apr-2020
226,Revenue,CAHD,Central - Commissioned Services,Permanent Residential,Alvony House Residential Care Home,1500.00, 07-Apr-2020
227,Revenue,CAHD,CSC - Residential Placements,Permanent Residential,Amberleigh Care Ltd,17244.86, 08-Apr-2020
228,Revenue,CAHD,CSC - Residential Placements,Permanent Residential,Amberleigh Care Ltd,17244.86, 08-Apr-2020
229,Revenue,CAHD,CSC - Residential Placements,Permanent Residential,Amberleigh Care Ltd,16877.14, 23-Apr-2020
230,Revenue,CAHD,Schools Specific Grant Income,Other Public Bodies,Amberleigh Care Ltd,1500.00, 02-Apr-2020
231,Revenue,CAHD,CSC - Residential Placements,Permanent Residential,Ambito Care and Education,18388.48, 29-Apr-2020
232,Revenue,CAHD,CSC - Residential Placements,Permanent Residential,Ambito Care and Education,20358.67, 29-Apr-2020
233,Revenue,CAHD,CSC - Residential Placements,Permanent Residential,Ambito Care and Education,19701.94, 29-Apr-2020
234,Revenue,CAHD,CSC - Residential Placements,Permanent Residential,Ambito Care and Education,19930.88, 29-Apr-2020
235,Revenue,CAHD,CSC - Residential Placements,Permanent Residential,Ambito Care and Education,19930.88, 29-Apr-2020
236,Revenue,CAHD,CSC - Residential Placements,Permanent Residential,Ambito Care and Education,19930.88, 29-Apr-2020
237,Revenue,CAHD,CSC - Residential Placements,Permanent Residential,Ambito Care and Education,19930.88, 22-Apr-2020
238,Revenue,CAHD,North - Community based support,Permanent Nursing,Amerind Grove Nursing Home,1353.16, 07-Apr-2020
239,Revenue,CAHD,North - Community based support,Permanent Nursing,Amerind Grove Nursing Home,1353.16, 07-Apr-2020
240,Revenue,CAHD,ELS - Skills,Educational Materials,Amey Computer Services,987.00, 02-Apr-2020
241,Revenue,CAHD,CSC - Parent & Child Assessments,Foster Parent Allowances,Amicus Foster Care Ltd,2705.78, 09-Apr-2020
242,Revenue,CAHD,CSC - Agency Fostering,Foster Parent Allowances,Amicus Foster Care Ltd,4879.00, 16-Apr-2020
243,Revenue,CAHD,CSC - Agency Fostering,Foster Parent Allowances,Amicus Foster Care Ltd,3880.44, 16-Apr-2020
244,Revenue,CAHD,CSC - Agency Fostering,Foster Parent Allowances,Amicus Foster Care Ltd,4721.61, 30-Apr-2020
245,Revenue,CAHD,Supporting People Programme,Grants to Voluntary Bodies,Anchor Hanover Group,1043.00, 06-Apr-2020
246,Revenue,CAHD,Supporting People Programme,Grants to Voluntary Bodies,Anchor Hanover Group,855.00, 06-Apr-2020
247,Revenue,CAHD,CSC - Vinney Green Secure Unit,Educational Materials,Ascentis,600.00, 16-Apr-2020
248,Revenue,CAHD,South - Commissioned Services,Permanent Residential,Ash View House,2764.72, 07-Apr-2020
249,Revenue,CAHD,Jointly Funded H&SC Packages,Permanent Residential,Ash View House,566.82, 07-Apr-2020
250,Revenue,CAHD,South - Commissioned Services,Permanent Residential,Ash View House,2710.52, 07-Apr-2020
251,Revenue,CAHD,Jointly Funded H&SC Packages,Permanent Residential,Ash View House,555.70, 07-Apr-2020
252,Revenue,CAHD,S117 Placements PCT,Permanent Residential,Ash View House,3853.72, 07-Apr-2020
253,Revenue,CAHD,S117 Placements PCT,Permanent Residential,Ash View House,3778.16, 07-Apr-2020
254,Revenue,CAHD,18-25 Year Olds,Permanent Residential,Ash View House,3549.76, 07-Apr-2020
255,Revenue,CAHD,18-25 Year Olds,Permanent Residential,Ash View House,3549.76, 07-Apr-2020
256,Revenue,CAHD,North - Community based support,Permanent Residential,Ash View House,3560.00, 07-Apr-2020
257,Revenue,CAHD,North - Community based support,Permanent Residential,Ash View House,3560.00, 07-Apr-2020
258,Revenue,CAHD,Section 117 Placements MH Younger,Permanent Residential,Ash View House,2511.30, 07-Apr-2020
259,Revenue,CAHD,Jointly Funded H&SC Packages,Permanent Residential,Ash View House,1076.30, 07-Apr-2020
260,Revenue,CAHD,Section 117 Placements MH Younger,Permanent Residential,Ash View House,2462.06, 07-Apr-2020
261,Revenue,CAHD,Jointly Funded H&SC Packages,Permanent Residential,Ash View House,1055.20, 07-Apr-2020
262,Revenue,CAHD,South - S117,Permanent Residential,Ash View House,3413.32, 07-Apr-2020
263,Revenue,CAHD,South - S117,Permanent Residential,Ash View House,3346.40, 07-Apr-2020
264,Revenue,CAHD,18-25 Year Olds,Permanent Residential,Ash View House,3373.92, 07-Apr-2020
265,Revenue,CAHD,18-25 Year Olds,Permanent Residential,Ash View House,3307.76, 07-Apr-2020
266,Revenue,CAHD,Covid 19 -Adult Social Care,Permanent Residential,Ash View House,1544.68, 24-Apr-2020
267,Revenue,CAHD,Covid 19 -Adult Social Care,Permanent Residential,Ash View House,3457.22, 24-Apr-2020
268,Revenue,CAHD,Covid 19 -Adult Social Care,Permanent Residential,Ash View House,1544.68, 24-Apr-2020
269,Revenue,CAHD,Covid 19 -Adult Social Care,Permanent Residential,Ash View House,3457.22, 24-Apr-2020
270,Revenue,CAHD,CSC - Legal Fees,Legal Fees,Individual,500.00, 21-Apr-2020
271,Revenue,CAHD,CSC - Legal Fees,Legal Fees,Individual,700.00, 16-Apr-2020
272,Revenue,CAHD,Bed and Breakfast,Bed & Breakfast,Ashley Guest Houses Limited,420.00, 22-Apr-2020
273,Revenue,CAHD,Bed and Breakfast,Bed & Breakfast,Ashley Guest Houses Limited,420.00, 07-Apr-2020
274,Revenue,CAHD,Drug and Alcohol Programme,Rent,Ashville Asset Management Limited,1213.70, 01-Apr-2020
275,Revenue,CAHD,Drug and Alcohol Programme,Electricity,Ashville Asset Management Limited,1032.85, 06-Apr-2020
276,Revenue,CAHD,North - Community based support,Permanent Residential,Aspects 2 Limited,3615.94, 07-Apr-2020
277,Revenue,CAHD,North - Community based support,Permanent Residential,Aspects 2 Limited,3615.94, 07-Apr-2020
278,Revenue,CAHD,Covid 19 -Adult Social Care,Permanent Residential,Aspects 2 Limited,785.61, 24-Apr-2020
279,Revenue,CAHD,Covid 19 -Adult Social Care,Permanent Residential,Aspects 2 Limited,785.61, 24-Apr-2020
280,Revenue,CAHD,Supporting People Programme,Grants to Voluntary Bodies,Aspects and Milestones Trust,3448.00, 06-Apr-2020
281,Revenue,CAHD,Supporting People Programme,Grants to Voluntary Bodies,Aspects and Milestones Trust,1730.00, 06-Apr-2020
282,Revenue,CAHD,ELS - Skills,Consultants Fees,Aspiro Education Ltd,2500.00, 06-Apr-2020
283,Revenue,CAHD,South - Commissioned Services,Adults - Family Support,Ategi Limited,17599.27, 01-Apr-2020
284,Revenue,CAHD,South - Commissioned Services,Adults - Family Support,Ategi Limited,17773.52, 29-Apr-2020
285,Revenue,CAHD,CSC - Vinney Green Secure Unit,R & M by Departments,Atus Systems Limited,849.75, 06-Apr-2020
286,Revenue,CAHD,Independent Special Placements - Pre 16,Other Private Contractors,Aurora Hedgeway School,15154.34, 29-Apr-2020
287,Revenue,CAHD,Independent Special Placements - Pre 16,Other Private Contractors,Aurora Hedgeway School,24091.00, 29-Apr-2020
288,Revenue,CAHD,Independent Special Placements - Pre 16,Other Private Contractors,Aurora Hedgeway School,25461.67, 29-Apr-2020
289,Revenue,CAHD,Independent Special Placements - Pre 16,Other Private Contractors,Aurora Hedgeway School,15154.34, 29-Apr-2020
290,Revenue,CAHD,Independent Special Placements - Pre 16,Other Private Contractors,Aurora Hedgeway School,15154.34, 29-Apr-2020
291,Revenue,CAHD,Independent Special Placements - Pre 16,Other Private Contractors,Aurora Hedgeway School,15154.34, 29-Apr-2020
292,Revenue,CAHD,Independent Special Placements - Post 16,Other Private Contractors,Aurora Hedgeway School,15114.66, 29-Apr-2020
293,Revenue,CAHD,Independent Special Placements - Pre 16,Other Private Contractors,Aurora Hedgeway School,15154.34, 29-Apr-2020
294,Revenue,CAHD,Independent Special Placements - Pre 16,Other Private Contractors,Aurora Hedgeway School,20948.67, 29-Apr-2020
295,Revenue,CAHD,Independent Special Placements - Pre 16,Other Private Contractors,Aurora Hedgeway School,20948.66, 29-Apr-2020
296,Revenue,CAHD,Independent Special Placements - Pre 16,Other Private Contractors,Aurora Hedgeway School,15154.34, 29-Apr-2020
297,Revenue,CAHD,Independent Special Placements - Pre 16,Other Private Contractors,Aurora Hedgeway School,16984.00, 29-Apr-2020
298,Revenue,CAHD,Independent Special Placements - Pre 16,Other Private Contractors,Aurora Hedgeway School,22260.34, 29-Apr-2020
299,Revenue,CAHD,Independent Special Placements - Post 16,Other Private Contractors,Aurora Hedgeway School,18225.34, 29-Apr-2020
300,Revenue,CAHD,Independent Special Placements - Pre 16,Other Private Contractors,Aurora Hedgeway School,15154.34, 29-Apr-2020
301,Revenue,CAHD,Independent Special Placements - Pre 16,Other Private Contractors,Aurora Hedgeway School,15154.34, 29-Apr-2020
302,Revenue,CAHD,Independent Special Placements - Pre 16,Other Private Contractors,Aurora Hedgeway School,15154.34, 29-Apr-2020
303,Revenue,CAHD,Independent Special Placements - Post 16,Other Private Contractors,Aurora Hedgeway School,19773.00, 29-Apr-2020
304,Revenue,CAHD,Independent Special Placements - Pre 16,Other Private Contractors,Aurora Hedgeway School,15154.34, 29-Apr-2020
305,Revenue,CAHD,Independent Special Placements - Post 16,Other Private Contractors,Aurora Hedgeway School,17258.66, 29-Apr-2020
306,Revenue,CAHD,Independent Special Placements - Pre 16,Other Private Contractors,Aurora Hedgeway School,15154.34, 29-Apr-2020
307,Revenue,CAHD,Independent Special Placements - Pre 16,Other Private Contractors,Aurora Hedgeway School,18225.34, 29-Apr-2020
308,Revenue,CAHD,South - Commissioned Services,Permanent Residential,Autism Specialised Care Homes,3253.44, 07-Apr-2020
309,Revenue,CAHD,South - Commissioned Services,Permanent Residential,Autism Specialised Care Homes,3253.44, 07-Apr-2020
310,Revenue,CAHD,Covid 19 -Adult Social Care,Permanent Residential,Autism Specialised Care Homes,706.85, 24-Apr-2020
311,Revenue,CAHD,Covid 19 -Adult Social Care,Permanent Residential,Autism Specialised Care Homes,706.85, 24-Apr-2020
312,Revenue,CAHD,CSC - Adoption Support Fund,Post Adoption,Avalon Thomas,564.00, 07-Apr-2020
313,Revenue,CAHD,CSC - LAC - Counselling & Therapy,Other Supplies & Services,Avon & Wiltshire Mental Health,15000.00, 16-Apr-2020
314,Revenue,CAHD,Younger Adult Mental Health,Health Services (Third Party Payments),Avon & Wiltshire Mental Health,1693.33, 15-Apr-2020
315,Revenue,CAHD,South - Commissioned Services,Permanent Nursing,Avon Lodge Care Centre,2170.68, 07-Apr-2020
316,Revenue,CAHD,South - Commissioned Services,Permanent Nursing,Avon Lodge Care Centre,2128.12, 07-Apr-2020
317,Revenue,CAHD,South Glos Users in South Glos Homes,Permanent Nursing,Avon Lodge Care Centre,662.24, 07-Apr-2020
318,Revenue,CAHD,South Glos Users in South Glos Homes,Permanent Nursing,Avon Lodge Care Centre,662.24, 07-Apr-2020
319,Revenue,CAHD,South - Commissioned Services,Permanent Nursing,Avon Lodge Care Centre,2268.88, 07-Apr-2020
320,Revenue,CAHD,South - Commissioned Services,Permanent Nursing,Avon Lodge Care Centre,2268.88, 07-Apr-2020
321,Revenue,CAHD,South Glos Users in South Glos Homes,Permanent Nursing,Avon Lodge Care Centre,662.24, 07-Apr-2020
322,Revenue,CAHD,South - Commissioned Services,Permanent Nursing,Avon Lodge Care Centre,14038.47, 07-Apr-2020
323,Revenue,CAHD,South - Commissioned Services,Permanent Nursing,Avon Lodge Care Centre,2155.58, 07-Apr-2020
324,Revenue,CAHD,South - Commissioned Services,Permanent Nursing,Avon Lodge Care Centre,2113.32, 07-Apr-2020
325,Revenue,CAHD,South - Commissioned Services,Fees & Charges Income - General,Avon Lodge Care Centre,610.07, 07-Apr-2020
326,Revenue,CAHD,South - Commissioned Services,Fees & Charges Income - General,Avon Lodge Care Centre,1140.17, 07-Apr-2020
327,Revenue,CAHD,South - Commissioned Services,Fees & Charges Income - General,Avon Lodge Care Centre,1062.69, 07-Apr-2020
328,Revenue,CAHD,South Glos Users in South Glos Homes,Permanent Nursing,Avon Lodge Care Centre,662.24, 07-Apr-2020
329,Revenue,CAHD,South Glos Users in South Glos Homes,Permanent Nursing,Avon Lodge Care Centre,662.24, 07-Apr-2020
330,Revenue,CAHD,South Glos Users in South Glos Homes,Permanent Nursing,Avon Lodge Care Centre,3027.38, 07-Apr-2020
331,Revenue,CAHD,South - Commissioned Services,Permanent Nursing,Avon Lodge Care Centre,2155.58, 07-Apr-2020
332,Revenue,CAHD,South - Commissioned Services,Permanent Nursing,Avon Lodge Care Centre,2113.32, 07-Apr-2020
333,Revenue,CAHD,South Glos Users in South Glos Homes,Permanent Nursing,Avon Lodge Care Centre,662.24, 07-Apr-2020
334,Revenue,CAHD,South - Commissioned Services,Permanent Nursing,Avon Lodge Care Centre,1942.74, 07-Apr-2020
335,Revenue,CAHD,South - Commissioned Services,Permanent Nursing,Avon Lodge Care Centre,1904.64, 07-Apr-2020
336,Revenue,CAHD,South Glos Users in South Glos Homes,Permanent Nursing,Avon Lodge Care Centre,662.24, 07-Apr-2020
337,Revenue,CAHD,South - Commissioned Services,Permanent Nursing,Avon Lodge Care Centre,2268.88, 07-Apr-2020
338,Revenue,CAHD,South - Commissioned Services,Permanent Nursing,Avon Lodge Care Centre,2268.88, 07-Apr-2020
339,Revenue,CAHD,South Glos Users in South Glos Homes,Permanent Nursing,Avon Lodge Care Centre,662.24, 07-Apr-2020
340,Revenue,CAHD,South Glos Users in South Glos Homes,Permanent Nursing,Avon Lodge Care Centre,662.24, 07-Apr-2020
341,Revenue,CAHD,Central - Commissioned Services,Permanent Nursing,Avon Lodge Care Centre,2113.32, 07-Apr-2020
342,Revenue,CAHD,Central - Commissioned Services,Permanent Nursing,Avon Lodge Care Centre,2113.32, 07-Apr-2020
343,Revenue,CAHD,South Glos Users in South Glos Homes,Permanent Nursing,Avon Lodge Care Centre,662.24, 07-Apr-2020
344,Revenue,CAHD,South - Commissioned Services,Permanent Nursing,Avon Lodge Care Centre,2155.58, 07-Apr-2020
345,Revenue,CAHD,South - Commissioned Services,Permanent Nursing,Avon Lodge Care Centre,2113.32, 07-Apr-2020
346,Revenue,CAHD,South Glos Users in South Glos Homes,Permanent Nursing,Avon Lodge Care Centre,662.24, 07-Apr-2020
347,Revenue,CAHD,South Glos Users in South Glos Homes,Permanent Nursing,Avon Lodge Care Centre,662.24, 07-Apr-2020
348,Revenue,CAHD,South - Commissioned Services,Respite Planned - Nursing,Avon Lodge Care Centre,3169.98, 07-Apr-2020
349,Revenue,CAHD,South Glos Users in South Glos Homes,Permanent Nursing,Avon Lodge Care Centre,662.24, 07-Apr-2020
350,Revenue,CAHD,South - Commissioned Services,Permanent Nursing,Avon Lodge Care Centre,5887.11, 07-Apr-2020
351,Revenue,CAHD,South - Commissioned Services,Permanent Nursing,Avon Lodge Care Centre,2155.58, 07-Apr-2020
352,Revenue,CAHD,South - Commissioned Services,Permanent Nursing,Avon Lodge Care Centre,2113.32, 07-Apr-2020
353,Revenue,CAHD,South - Commissioned Services,Permanent Nursing,Avon Lodge Care Centre,1724.10, 07-Apr-2020
354,Revenue,CAHD,South - Commissioned Services,Permanent Nursing,Avon Lodge Care Centre,1690.30, 07-Apr-2020
355,Revenue,CAHD,South Glos Users in South Glos Homes,Permanent Nursing,Avon Lodge Care Centre,662.24, 07-Apr-2020
356,Revenue,CAHD,South - Commissioned Services,Permanent Nursing,Avon Lodge Care Centre,2155.58, 07-Apr-2020
357,Revenue,CAHD,South - Commissioned Services,Permanent Nursing,Avon Lodge Care Centre,2113.32, 07-Apr-2020
358,Revenue,CAHD,South Glos Users in South Glos Homes,Permanent Nursing,Avon Lodge Care Centre,662.24, 07-Apr-2020
359,Revenue,CAHD,South - Commissioned Services,Permanent Nursing,Avon Lodge Care Centre,2268.88, 07-Apr-2020
360,Revenue,CAHD,South - Commissioned Services,Permanent Nursing,Avon Lodge Care Centre,2268.88, 07-Apr-2020
361,Revenue,CAHD,South Glos Users in South Glos Homes,Permanent Nursing,Avon Lodge Care Centre,662.24, 07-Apr-2020
362,Revenue,CAHD,South - Commissioned Services,Permanent Nursing,Avon Lodge Care Centre,2155.58, 07-Apr-2020
363,Revenue,CAHD,South - Commissioned Services,Permanent Nursing,Avon Lodge Care Centre,2113.32, 07-Apr-2020
364,Revenue,CAHD,South Glos Users in South Glos Homes,Permanent Nursing,Avon Lodge Care Centre,662.24, 07-Apr-2020
365,Revenue,CAHD,South - Commissioned Services,Permanent Nursing,Avon Lodge Care Centre,2173.94, 07-Apr-2020
366,Revenue,CAHD,South - Commissioned Services,Permanent Nursing,Avon Lodge Care Centre,2131.32, 07-Apr-2020
367,Revenue,CAHD,South Glos Users in South Glos Homes,Permanent Nursing,Avon Lodge Care Centre,662.24, 07-Apr-2020
368,Revenue,CAHD,South Glos Users in South Glos Homes,Permanent Nursing,Avon Lodge Care Centre,662.24, 07-Apr-2020
369,Revenue,CAHD,South Glos Users in South Glos Homes,Permanent Nursing,Avon Lodge Care Centre,662.24, 07-Apr-2020
370,Revenue,CAHD,South Glos Users in South Glos Homes,Permanent Nursing,Avon Lodge Care Centre,662.24, 07-Apr-2020
371,Revenue,CAHD,South - Commissioned Services,Permanent Nursing,Avon Lodge Care Centre,2155.58, 07-Apr-2020
372,Revenue,CAHD,South - Commissioned Services,Permanent Nursing,Avon Lodge Care Centre,2113.32, 07-Apr-2020
373,Revenue,CAHD,South Glos Users in South Glos Homes,Permanent Nursing,Avon Lodge Care Centre,662.24, 07-Apr-2020
374,Revenue,CAHD,South - Commissioned Services,Permanent Nursing,Avon Lodge Care Centre,2201.92, 07-Apr-2020
375,Revenue,CAHD,South - Commissioned Services,Permanent Nursing,Avon Lodge Care Centre,2158.74, 07-Apr-2020
376,Revenue,CAHD,South Glos Users in South Glos Homes,Permanent Nursing,Avon Lodge Care Centre,662.24, 07-Apr-2020
377,Revenue,CAHD,South - Commissioned Services,Permanent Nursing,Avon Lodge Care Centre,2222.78, 07-Apr-2020
378,Revenue,CAHD,South - Commissioned Services,Permanent Nursing,Avon Lodge Care Centre,2179.20, 07-Apr-2020
379,Revenue,CAHD,South Glos Users in South Glos Homes,Permanent Nursing,Avon Lodge Care Centre,662.24, 07-Apr-2020
380,Revenue,CAHD,South Glos Users in South Glos Homes,Permanent Nursing,Avon Lodge Care Centre,662.24, 07-Apr-2020
381,Revenue,CAHD,South - Commissioned Services,Permanent Nursing,Avon Lodge Care Centre,2155.58, 07-Apr-2020
382,Revenue,CAHD,South - Commissioned Services,Permanent Nursing,Avon Lodge Care Centre,2113.32, 07-Apr-2020
383,Revenue,CAHD,South Glos Users in South Glos Homes,Permanent Nursing,Avon Lodge Care Centre,662.24, 07-Apr-2020
384,Revenue,CAHD,South Glos Users in South Glos Homes,Permanent Nursing,Avon Lodge Care Centre,662.24, 07-Apr-2020
385,Revenue,CAHD,South Glos Users in South Glos Homes,Permanent Nursing,Avon Lodge Care Centre,662.24, 07-Apr-2020
386,Revenue,CAHD,South - Commissioned Services,Permanent Nursing,Avon Lodge Care Centre,2155.58, 07-Apr-2020
387,Revenue,CAHD,South - Commissioned Services,Permanent Nursing,Avon Lodge Care Centre,2113.32, 07-Apr-2020
388,Revenue,CAHD,Central - Commissioned Services,Permanent Nursing,Avon Lodge Care Centre,1942.40, 07-Apr-2020
389,Revenue,CAHD,Central - Commissioned Services,Permanent Nursing,Avon Lodge Care Centre,1904.32, 07-Apr-2020
390,Revenue,CAHD,South Glos Users in South Glos Homes,Permanent Nursing,Avon Lodge Care Centre,662.24, 07-Apr-2020
391,Revenue,CAHD,South - Commissioned Services,Permanent Nursing,Avon Lodge Care Centre,2155.58, 07-Apr-2020
392,Revenue,CAHD,South - Commissioned Services,Permanent Nursing,Avon Lodge Care Centre,2113.32, 07-Apr-2020
393,Revenue,CAHD,South Glos Users in South Glos Homes,Permanent Nursing,Avon Lodge Care Centre,662.24, 07-Apr-2020
394,Revenue,CAHD,South Glos Users in South Glos Homes,Permanent Nursing,Avon Lodge Care Centre,8443.56, 07-Apr-2020
395,Revenue,CAHD,South Glos Users in South Glos Homes,Permanent Nursing,Avon Lodge Care Centre,8246.91, 07-Apr-2020
396,Revenue,CAHD,South Glos Users in South Glos Homes,Permanent Nursing,Avon Lodge Care Centre,686.65, 07-Apr-2020
397,Revenue,CAHD,South Glos Users in South Glos Homes,Permanent Nursing,Avon Lodge Care Centre,662.24, 07-Apr-2020
398,Revenue,CAHD,South Glos Users in South Glos Homes,Permanent Nursing,Avon Lodge Care Centre,2246.89, 07-Apr-2020
399,Revenue,CAHD,South Glos Users in South Glos Homes,Permanent Nursing,Avon Lodge Care Centre,662.24, 07-Apr-2020
400,Revenue,CAHD,South - bed purchasing and direct  payments,Permanent Nursing,Avon Lodge Care Centre,2155.58, 07-Apr-2020
401,Revenue,CAHD,South - bed purchasing and direct  payments,Permanent Nursing,Avon Lodge Care Centre,2113.32, 07-Apr-2020
402,Revenue,CAHD,South Glos Users in South Glos Homes,Permanent Nursing,Avon Lodge Care Centre,662.24, 07-Apr-2020
403,Revenue,CAHD,North - Community based support,Permanent Nursing,Avon Lodge Care Centre,2155.58, 07-Apr-2020
404,Revenue,CAHD,North - Community based support,Permanent Nursing,Avon Lodge Care Centre,2113.32, 07-Apr-2020
405,Revenue,CAHD,South Glos Users in South Glos Homes,Permanent Nursing,Avon Lodge Care Centre,662.24, 07-Apr-2020
406,Revenue,CAHD,South - Commissioned Services,Permanent Nursing,Avon Lodge Care Centre,2265.02, 07-Apr-2020
407,Revenue,CAHD,South - Commissioned Services,Permanent Nursing,Avon Lodge Care Centre,2220.60, 07-Apr-2020
408,Revenue,CAHD,South Glos Users in South Glos Homes,Permanent Nursing,Avon Lodge Care Centre,662.24, 07-Apr-2020
409,Revenue,CAHD,South - S117,Permanent Nursing,Avon Lodge Care Centre,1942.74, 07-Apr-2020
410,Revenue,CAHD,South - S117,Permanent Nursing,Avon Lodge Care Centre,1904.64, 07-Apr-2020
411,Revenue,CAHD,South Glos Users in South Glos Homes,Permanent Nursing,Avon Lodge Care Centre,662.24, 07-Apr-2020
412,Revenue,CAHD,South Glos Users in South Glos Homes,Permanent Nursing,Avon Lodge Care Centre,662.24, 07-Apr-2020
413,Revenue,CAHD,South Glos Users in South Glos Homes,Permanent Nursing,Avon Lodge Care Centre,662.24, 07-Apr-2020
414,Revenue,CAHD,South Glos Users in South Glos Homes,Permanent Nursing,Avon Lodge Care Centre,662.24, 07-Apr-2020
415,Revenue,CAHD,Covid 19 -Adult Social Care,Permanent Residential,Avon Lodge Care Centre,11593.38, 24-Apr-2020
416,Revenue,CAHD,Covid 19 -Adult Social Care,Permanent Residential,Avon Lodge Care Centre,11593.38, 24-Apr-2020
417,Revenue,CAHD,South - Commissioned Services,Permanent Residential,Avon Valley Care Home,2019.60, 07-Apr-2020
418,Revenue,CAHD,South - Commissioned Services,Permanent Residential,Avon Valley Care Home,1980.00, 07-Apr-2020
419,Revenue,CAHD,South - Commissioned Services,Permanent Residential,Avon Valley Care Home,5571.43, 07-Apr-2020
420,Revenue,CAHD,South - Commissioned Services,Permanent Residential,Avon Valley Care Home,2040.00, 07-Apr-2020
421,Revenue,CAHD,South - Commissioned Services,Permanent Residential,Avon Valley Care Home,2000.00, 07-Apr-2020
422,Revenue,CAHD,South - Commissioned Services,Permanent Residential,Avon Valley Care Home,2000.00, 07-Apr-2020
423,Revenue,CAHD,South - Commissioned Services,Permanent Residential,Avon Valley Care Home,2040.00, 07-Apr-2020
424,Revenue,CAHD,South - Commissioned Services,Permanent Residential,Avon Valley Care Home,2019.60, 07-Apr-2020
425,Revenue,CAHD,South - Commissioned Services,Permanent Residential,Avon Valley Care Home,1980.00, 07-Apr-2020
426,Revenue,CAHD,South - Commissioned Services,Permanent Residential,Avon Valley Care Home,2040.00, 07-Apr-2020
427,Revenue,CAHD,South - Commissioned Services,Permanent Residential,Avon Valley Care Home,2000.00, 07-Apr-2020
428,Revenue,CAHD,South - Commissioned Services,Permanent Residential,Avon Valley Care Home,2400.00, 07-Apr-2020
429,Revenue,CAHD,South - Commissioned Services,Permanent Residential,Avon Valley Care Home,2400.00, 07-Apr-2020
430,Revenue,CAHD,Central - Commissioned Services,Respite Planned - Residential,Avon Valley Care Home,1714.29, 07-Apr-2020
431,Revenue,CAHD,Central - Commissioned Services,Respite Planned - Residential,Avon Valley Care Home,1285.71, 07-Apr-2020
432,Revenue,CAHD,South - Commissioned Services,Permanent Residential,Avon Valley Care Home,14888.30, 07-Apr-2020
433,Revenue,CAHD,South - Commissioned Services,Permanent Residential,Avon Valley Care Home,2169.44, 07-Apr-2020
434,Revenue,CAHD,South - Commissioned Services,Permanent Residential,Avon Valley Care Home,2126.90, 07-Apr-2020
435,Revenue,CAHD,Covid 19 -Adult Social Care,Permanent Residential,Avon Valley Care Home,3250.66, 24-Apr-2020
436,Revenue,CAHD,Covid 19 -Adult Social Care,Permanent Residential,Avon Valley Care Home,3250.66, 24-Apr-2020
437,Revenue,CAHD,North - Community based support,Permanent Residential,Avonmere Care Home,2142.00, 07-Apr-2020
438,Revenue,CAHD,North - Community based support,Permanent Residential,Avonmere Care Home,2100.00, 07-Apr-2020
439,Revenue,CAHD,North - Community based support,Permanent Residential,Avonmere Care Home,2193.40, 07-Apr-2020
440,Revenue,CAHD,North - Community based support,Permanent Residential,Avonmere Care Home,2150.40, 07-Apr-2020
441,Revenue,CAHD,North - Community based support,Permanent Residential,Avonmere Care Home,2710.00, 07-Apr-2020
442,Revenue,CAHD,North - Community based support,Permanent Residential,Avonmere Care Home,2710.00, 07-Apr-2020
443,Revenue,CAHD,North - Community based support,Permanent Residential,Avonmere Care Home,2210.00, 07-Apr-2020
444,Revenue,CAHD,North - Community based support,Permanent Residential,Avonmere Care Home,2210.00, 07-Apr-2020
445,Revenue,CAHD,North - Community based support,Permanent Residential,Avonmere Care Home,2310.00, 07-Apr-2020
446,Revenue,CAHD,North - Community based support,Permanent Residential,Avonmere Care Home,2310.00, 07-Apr-2020
447,Revenue,CAHD,Covid 19 -Adult Social Care,Permanent Residential,Avonmere Care Home,2025.72, 24-Apr-2020
448,Revenue,CAHD,Covid 19 -Adult Social Care,Permanent Residential,Avonmere Care Home,2025.72, 24-Apr-2020
449,Revenue,CAHD,A &CL - Pre-Employability 19/20,Premises Hire,Banjo Island Community & Sports Association,360.00, 30-Apr-2020
450,Revenue,CAHD,A & CL - Functional Skills 19/20,Premises Hire,Banjo Island Community & Sports Association,400.00, 30-Apr-2020
451,Revenue,CAHD,CSC - Vinney Green Secure Unit,Service Contracts (Premises),Barnardo Services Limited,5980.00, 27-Apr-2020
452,Revenue,CAHD,CSC - Family Group Conferencing,Grants to Voluntary Bodies,Barnardo Services Limited,5422.75, 30-Apr-2020
453,Revenue,CAHD,Children & Young People�s Health,Other Small Contracts,Barnardos,7650.00, 24-Apr-2020
454,Revenue,CAHD,Pensions - Non DSG,Annual Pension,Bath & North East Somerset Council,104786.42, 07-Apr-2020
455,Revenue,CAHD,Independent Special Placements - Pre 16,Other Private Contractors,Bath Road Priory,79767.93, 22-Apr-2020
456,Revenue,CAHD,CSC - Adoption Support Fund,Post Adoption,Individual,630.00, 09-Apr-2020
457,Revenue,CAHD,South Glos Users in South Glos Homes,Permanent Nursing,Beaufort Grange Care Home,662.24, 07-Apr-2020
458,Revenue,CAHD,South Glos Users in South Glos Homes,Permanent Nursing,Beaufort Grange Care Home,662.24, 07-Apr-2020
459,Revenue,CAHD,South Glos Users in South Glos Homes,Permanent Nursing,Beaufort Grange Care Home,3334.85, 07-Apr-2020
460,Revenue,CAHD,South Glos Users in South Glos Homes,Permanent Nursing,Beaufort Grange Care Home,662.24, 07-Apr-2020
461,Revenue,CAHD,South Glos Users in South Glos Homes,Permanent Nursing,Beaufort Grange Care Home,662.24, 07-Apr-2020
462,Revenue,CAHD,South Glos Users in South Glos Homes,Permanent Nursing,Beaufort Grange Care Home,2648.96, 07-Apr-2020
463,Revenue,CAHD,South Glos Users in South Glos Homes,Permanent Nursing,Beaufort Grange Care Home,662.24, 07-Apr-2020
464,Revenue,CAHD,South - Commissioned Services,Respite Emergency - Residential,Beaufort Grange Care Home,1000.00, 07-Apr-2020
465,Revenue,CAHD,South Glos Users in South Glos Homes,Permanent Nursing,Beaufort Grange Care Home,662.24, 07-Apr-2020
466,Revenue,CAHD,South - bed purchasing and direct  payments,Respite Planned - Nursing,Beaufort Grange Care Home,1450.00, 07-Apr-2020
467,Revenue,CAHD,South Glos Users in South Glos Homes,Permanent Nursing,Beaufort Grange Care Home,662.24, 07-Apr-2020
468,Revenue,CAHD,South Glos Users in South Glos Homes,Permanent Nursing,Beaufort Grange Care Home,662.24, 07-Apr-2020
469,Revenue,CAHD,South Glos Users in South Glos Homes,Permanent Nursing,Beaufort Grange Care Home,662.24, 07-Apr-2020
470,Revenue,CAHD,South Glos Users in South Glos Homes,Permanent Nursing,Beaufort Grange Care Home,662.24, 07-Apr-2020
471,Revenue,CAHD,North - S117,Permanent Nursing,Beaufort Grange Care Home,2438.52, 07-Apr-2020
472,Revenue,CAHD,North - S117,Permanent Nursing,Beaufort Grange Care Home,2438.52, 07-Apr-2020
473,Revenue,CAHD,South Glos Users in South Glos Homes,Permanent Nursing,Beaufort Grange Care Home,662.24, 07-Apr-2020
474,Revenue,CAHD,South Glos Users in South Glos Homes,Permanent Nursing,Beaufort Grange Care Home,662.24, 07-Apr-2020
475,Revenue,CAHD,South Glos Users in South Glos Homes,Permanent Nursing,Beaufort Grange Care Home,662.24, 07-Apr-2020
476,Revenue,CAHD,South Glos Users in South Glos Homes,Permanent Nursing,Beaufort Grange Care Home,662.24, 07-Apr-2020
477,Revenue,CAHD,Central - Commissioned Services,Respite Planned - Nursing,Beaufort Grange Care Home,2834.00, 07-Apr-2020
478,Revenue,CAHD,Central - Commissioned Services,Respite Planned - Nursing,Beaufort Grange Care Home,2226.71, 07-Apr-2020
479,Revenue,CAHD,Central - Commissioned Services,Respite Planned - Nursing,Beaufort Grange Care Home,607.29, 07-Apr-2020
480,Revenue,CAHD,South Glos Users in South Glos Homes,Permanent Nursing,Beaufort Grange Care Home,4517.42, 07-Apr-2020
481,Revenue,CAHD,Central - Commissioned Services,Permanent Nursing,Beaufort Grange Care Home,2214.00, 07-Apr-2020
482,Revenue,CAHD,Central - Commissioned Services,Permanent Nursing,Beaufort Grange Care Home,2214.00, 07-Apr-2020
483,Revenue,CAHD,South Glos Users in South Glos Homes,Permanent Nursing,Beaufort Grange Care Home,662.24, 07-Apr-2020
484,Revenue,CAHD,North - Community based support,Permanent Residential,Beaufort Grange Care Home,2800.00, 07-Apr-2020
485,Revenue,CAHD,North - Community based support,Permanent Residential,Beaufort Grange Care Home,2800.00, 07-Apr-2020
486,Revenue,CAHD,South Glos Users in South Glos Homes,Permanent Nursing,Beaufort Grange Care Home,662.24, 07-Apr-2020
487,Revenue,CAHD,Central - Commissioned Services,Permanent Nursing,Beaufort Grange Care Home,15910.71, 07-Apr-2020
488,Revenue,CAHD,South Glos Users in South Glos Homes,Permanent Nursing,Beaufort Grange Care Home,4375.51, 07-Apr-2020
489,Revenue,CAHD,Central - Commissioned Services,Permanent Nursing,Beaufort Grange Care Home,2750.00, 07-Apr-2020
490,Revenue,CAHD,Central - Commissioned Services,Permanent Nursing,Beaufort Grange Care Home,2750.00, 07-Apr-2020
491,Revenue,CAHD,South Glos Users in South Glos Homes,Permanent Nursing,Beaufort Grange Care Home,662.24, 07-Apr-2020
492,Revenue,CAHD,Central - Commissioned Services,Fees & Charges Income - General,Beaufort Grange Care Home,3745.51, 07-Apr-2020
493,Revenue,CAHD,South Glos Users in South Glos Homes,Permanent Nursing,Beaufort Grange Care Home,662.24, 07-Apr-2020
494,Revenue,CAHD,South Glos Users in South Glos Homes,Permanent Nursing,Beaufort Grange Care Home,662.24, 07-Apr-2020
495,Revenue,CAHD,North - S117,Permanent Nursing,Beaufort Grange Care Home,2502.88, 07-Apr-2020
496,Revenue,CAHD,North - S117,Permanent Nursing,Beaufort Grange Care Home,2502.88, 07-Apr-2020
497,Revenue,CAHD,Central - Commissioned Services,Respite Planned - Residential,Beaufort Grange Care Home,5668.00, 07-Apr-2020
498,Revenue,CAHD,Central - Commissioned Services,Respite Planned - Residential,Beaufort Grange Care Home,2024.29, 07-Apr-2020
499,Revenue,CAHD,South Glos Users in South Glos Homes,Permanent Nursing,Beaufort Grange Care Home,662.24, 07-Apr-2020
500,Revenue,CAHD,South - Commissioned Services,Respite Emergency - Residential,Beaufort Grange Care Home,2294.29, 07-Apr-2020
501,Revenue,CAHD,South - Commissioned Services,Respite Emergency - Residential,Beaufort Grange Care Home,625.71, 07-Apr-2020
502,Revenue,CAHD,South Glos Users in South Glos Homes,Permanent Nursing,Beaufort Grange Care Home,662.24, 07-Apr-2020
503,Revenue,CAHD,South Glos Users in South Glos Homes,Permanent Nursing,Beaufort Grange Care Home,662.24, 07-Apr-2020
504,Revenue,CAHD,South Glos Users in South Glos Homes,Permanent Nursing,Beaufort Grange Care Home,662.24, 07-Apr-2020
505,Revenue,CAHD,South Glos Users in South Glos Homes,Permanent Nursing,Beaufort Grange Care Home,662.24, 07-Apr-2020
506,Revenue,CAHD,South Glos Users in South Glos Homes,Permanent Nursing,Beaufort Grange Care Home,662.24, 07-Apr-2020
507,Revenue,CAHD,South Glos Users in South Glos Homes,Permanent Nursing,Beaufort Grange Care Home,662.24, 07-Apr-2020
508,Revenue,CAHD,South Glos Users in South Glos Homes,Permanent Nursing,Beaufort Grange Care Home,662.24, 07-Apr-2020
509,Revenue,CAHD,South Glos Users in South Glos Homes,Permanent Nursing,Beaufort Grange Care Home,662.24, 07-Apr-2020
510,Revenue,CAHD,South Glos Users in South Glos Homes,Permanent Nursing,Beaufort Grange Care Home,662.24, 07-Apr-2020
511,Revenue,CAHD,South Glos Users in South Glos Homes,Permanent Nursing,Beaufort Grange Care Home,662.24, 07-Apr-2020
512,Revenue,CAHD,South Glos Users in South Glos Homes,Permanent Nursing,Beaufort Grange Care Home,662.24, 07-Apr-2020
513,Revenue,CAHD,South Glos Users in South Glos Homes,Permanent Nursing,Beaufort Grange Care Home,662.24, 07-Apr-2020
514,Revenue,CAHD,South Glos Users in South Glos Homes,Permanent Nursing,Beaufort Grange Care Home,662.24, 07-Apr-2020
515,Revenue,CAHD,South Glos Users in South Glos Homes,Permanent Nursing,Beaufort Grange Care Home,662.24, 07-Apr-2020
516,Revenue,CAHD,South Glos Users in South Glos Homes,Permanent Nursing,Beaufort Grange Care Home,3287.55, 07-Apr-2020
517,Revenue,CAHD,South Glos Users in South Glos Homes,Permanent Nursing,Beaufort Grange Care Home,662.24, 07-Apr-2020
518,Revenue,CAHD,South Glos Users in South Glos Homes,Permanent Nursing,Beaufort Grange Care Home,662.24, 07-Apr-2020
519,Revenue,CAHD,South Glos Users in South Glos Homes,Permanent Nursing,Beaufort Grange Care Home,2861.82, 07-Apr-2020
520,Revenue,CAHD,South Glos Users in South Glos Homes,Permanent Nursing,Beaufort Grange Care Home,662.24, 07-Apr-2020
521,Revenue,CAHD,South Glos Users in South Glos Homes,Permanent Nursing,Beaufort Grange Care Home,3405.81, 07-Apr-2020
522,Revenue,CAHD,South Glos Users in South Glos Homes,Permanent Nursing,Beaufort Grange Care Home,662.24, 07-Apr-2020
523,Revenue,CAHD,South Glos Users in South Glos Homes,Permanent Nursing,Beaufort Grange Care Home,3263.90, 07-Apr-2020
524,Revenue,CAHD,South Glos Users in South Glos Homes,Permanent Nursing,Beaufort Grange Care Home,662.24, 07-Apr-2020
525,Revenue,CAHD,South Glos Users in South Glos Homes,Permanent Nursing,Beaufort Grange Care Home,5037.75, 07-Apr-2020
526,Revenue,CAHD,South Glos Users in South Glos Homes,Permanent Nursing,Beaufort Grange Care Home,662.24, 07-Apr-2020
527,Revenue,CAHD,South Glos Users in South Glos Homes,Permanent Nursing,Beaufort Grange Care Home,662.24, 07-Apr-2020
528,Revenue,CAHD,South Glos Users in South Glos Homes,Permanent Nursing,Beaufort Grange Care Home,662.24, 07-Apr-2020
529,Revenue,CAHD,North - Community based support,Permanent Nursing,Beaufort Grange Care Home,2702.88, 07-Apr-2020
530,Revenue,CAHD,North - Community based support,Permanent Nursing,Beaufort Grange Care Home,2702.88, 07-Apr-2020
531,Revenue,CAHD,South Glos Users in South Glos Homes,Permanent Nursing,Beaufort Grange Care Home,662.24, 07-Apr-2020
532,Revenue,CAHD,Covid 19 -Adult Social Care,Permanent Residential,Beaufort Grange Care Home,2795.12, 24-Apr-2020
533,Revenue,CAHD,Covid 19 -Adult Social Care,Permanent Residential,Beaufort Grange Care Home,2795.12, 24-Apr-2020
534,Revenue,CAHD,North - Community based support,Permanent Residential,Beaufort House,1300.28, 07-Apr-2020
535,Revenue,CAHD,North - Community based support,Permanent Residential,Beaufort House,1274.78, 07-Apr-2020
536,Revenue,CAHD,Central - Commissioned Services,Permanent Residential,Beaufort House,1462.28, 07-Apr-2020
537,Revenue,CAHD,Central - Commissioned Services,Permanent Residential,Beaufort House,1433.60, 07-Apr-2020
538,Revenue,CAHD,Central - Commissioned Services,Permanent Residential,Beaufort House,1415.56, 07-Apr-2020
539,Revenue,CAHD,Central - Commissioned Services,Permanent Residential,Beaufort House,1387.80, 07-Apr-2020
540,Revenue,CAHD,North - Community based support,Permanent Residential,Beaufort House,1311.42, 07-Apr-2020
541,Revenue,CAHD,North - Community based support,Permanent Residential,Beaufort House,1285.70, 07-Apr-2020
542,Revenue,CAHD,South - Commissioned Services,Permanent Residential,Beaufort House,1293.78, 07-Apr-2020
543,Revenue,CAHD,South - Commissioned Services,Permanent Residential,Beaufort House,1268.42, 07-Apr-2020
544,Revenue,CAHD,Central - Commissioned Services,Permanent Residential,Beaufort House,1700.00, 07-Apr-2020
545,Revenue,CAHD,Central - Commissioned Services,Permanent Residential,Beaufort House,1700.00, 07-Apr-2020
546,Revenue,CAHD,South - Commissioned Services,Permanent Residential,Beaufort House,1700.00, 07-Apr-2020
547,Revenue,CAHD,South - Commissioned Services,Permanent Residential,Beaufort House,1700.00, 07-Apr-2020
548,Revenue,CAHD,North - Community based support,Permanent Residential,Beaufort House,1376.96, 07-Apr-2020
549,Revenue,CAHD,North - Community based support,Permanent Residential,Beaufort House,1349.96, 07-Apr-2020
550,Revenue,CAHD,Central - Bed Purchasing and Direct Payments,Permanent Residential,Beaufort House,2173.75, 07-Apr-2020
551,Revenue,CAHD,Central - Bed Purchasing and Direct Payments,Permanent Residential,Beaufort House,1700.00, 07-Apr-2020
552,Revenue,CAHD,Central - Bed Purchasing and Direct Payments,Permanent Residential,Beaufort House,1700.00, 07-Apr-2020
553,Revenue,CAHD,Covid 19 -Adult Social Care,Permanent Residential,Beaufort House,3182.21, 24-Apr-2020
554,Revenue,CAHD,Covid 19 -Adult Social Care,Permanent Residential,Beaufort House,3182.21, 24-Apr-2020
555,Revenue,CAHD,South - Commissioned Services,Permanent Residential,Beech House,1509.42, 07-Apr-2020
556,Revenue,CAHD,South - Commissioned Services,Permanent Residential,Beech House,1479.82, 07-Apr-2020
557,Revenue,CAHD,South Glos Users in South Glos Homes,Permanent Nursing,Beech House,662.24, 07-Apr-2020
558,Revenue,CAHD,South Glos Users in South Glos Homes,Permanent Nursing,Beech House,662.24, 07-Apr-2020
559,Revenue,CAHD,North - Community based support,Permanent Residential,Beech House,2131.80, 07-Apr-2020
560,Revenue,CAHD,North - Community based support,Permanent Residential,Beech House,2090.00, 07-Apr-2020
561,Revenue,CAHD,South Glos Users in South Glos Homes,Permanent Nursing,Beech House,662.24, 07-Apr-2020
562,Revenue,CAHD,South Glos Users in South Glos Homes,Permanent Nursing,Beech House,662.24, 07-Apr-2020
563,Revenue,CAHD,South Glos Users in South Glos Homes,Permanent Nursing,Beech House,662.24, 07-Apr-2020
564,Revenue,CAHD,South Glos Users in South Glos Homes,Permanent Nursing,Beech House,662.24, 07-Apr-2020
565,Revenue,CAHD,North - Community based support,Permanent Nursing,Beech House,1773.88, 07-Apr-2020
566,Revenue,CAHD,North - Community based support,Permanent Nursing,Beech House,1809.36, 07-Apr-2020
567,Revenue,CAHD,South Glos Users in South Glos Homes,Permanent Nursing,Beech House,662.24, 07-Apr-2020
568,Revenue,CAHD,South Glos Users in South Glos Homes,Permanent Nursing,Beech House,662.24, 07-Apr-2020
569,Revenue,CAHD,South Glos Users in South Glos Homes,Permanent Nursing,Beech House,662.24, 07-Apr-2020
570,Revenue,CAHD,North - Community based support,Permanent Nursing,Beech House,2184.44, 07-Apr-2020
571,Revenue,CAHD,North - Community based support,Permanent Nursing,Beech House,2141.60, 07-Apr-2020
572,Revenue,CAHD,South Glos Users in South Glos Homes,Permanent Nursing,Beech House,662.24, 07-Apr-2020
573,Revenue,CAHD,South Glos Users in South Glos Homes,Permanent Nursing,Beech House,662.24, 07-Apr-2020
574,Revenue,CAHD,South Glos Users in South Glos Homes,Permanent Nursing,Beech House,662.24, 07-Apr-2020
575,Revenue,CAHD,South Glos Users in South Glos Homes,Permanent Nursing,Beech House,662.24, 07-Apr-2020
576,Revenue,CAHD,South Glos Users in South Glos Homes,Permanent Nursing,Beech House,662.24, 07-Apr-2020
577,Revenue,CAHD,North - Community based support,Permanent Nursing,Beech House,2036.74, 07-Apr-2020
578,Revenue,CAHD,North - Community based support,Permanent Nursing,Beech House,1996.80, 07-Apr-2020
579,Revenue,CAHD,South Glos Users in South Glos Homes,Permanent Nursing,Beech House,662.24, 07-Apr-2020
580,Revenue,CAHD,South Glos Users in South Glos Homes,Permanent Nursing,Beech House,662.24, 07-Apr-2020
581,Revenue,CAHD,South Glos Users in South Glos Homes,Permanent Nursing,Beech House,662.24, 07-Apr-2020
582,Revenue,CAHD,South Glos Users in South Glos Homes,Permanent Nursing,Beech House,1468.63, 07-Apr-2020
583,Revenue,CAHD,North - Community based support,Permanent Nursing,Beech House,2154.02, 07-Apr-2020
584,Revenue,CAHD,North - Community based support,Permanent Nursing,Beech House,2111.78, 07-Apr-2020
585,Revenue,CAHD,South Glos Users in South Glos Homes,Permanent Nursing,Beech House,662.24, 07-Apr-2020
586,Revenue,CAHD,North - Community based support,Respite Planned - Nursing,Beech House,3880.00, 07-Apr-2020
587,Revenue,CAHD,South Glos Users in South Glos Homes,Permanent Nursing,Beech House,662.24, 07-Apr-2020
588,Revenue,CAHD,South Glos Users in South Glos Homes,Permanent Nursing,Beech House,2767.22, 07-Apr-2020
589,Revenue,CAHD,South Glos Users in South Glos Homes,Permanent Nursing,Beech House,662.24, 07-Apr-2020
590,Revenue,CAHD,South Glos Users in South Glos Homes,Permanent Nursing,Beech House,662.24, 07-Apr-2020
591,Revenue,CAHD,North - Community based support,Permanent Nursing,Beech House,2091.00, 07-Apr-2020
592,Revenue,CAHD,North - Community based support,Permanent Nursing,Beech House,2050.00, 07-Apr-2020
593,Revenue,CAHD,South Glos Users in South Glos Homes,Permanent Nursing,Beech House,662.24, 07-Apr-2020
594,Revenue,CAHD,South Glos Users in South Glos Homes,Permanent Nursing,Beech House,662.24, 07-Apr-2020
595,Revenue,CAHD,South Glos Users in South Glos Homes,Permanent Nursing,Beech House,662.24, 07-Apr-2020
596,Revenue,CAHD,South Glos Users in South Glos Homes,Permanent Nursing,Beech House,662.24, 07-Apr-2020
597,Revenue,CAHD,North - Community based support,Permanent Residential,Beech House,2182.96, 07-Apr-2020
598,Revenue,CAHD,North - Community based support,Permanent Residential,Beech House,2140.16, 07-Apr-2020
599,Revenue,CAHD,Covid 19 -Adult Social Care,Permanent Residential,Beech House,3496.92, 24-Apr-2020
600,Revenue,CAHD,Covid 19 -Adult Social Care,Permanent Residential,Beech House,3496.92, 24-Apr-2020
601,Revenue,CAHD,South Glos Users in South Glos Homes,Permanent Nursing,Beechwood Care Home,1028.00, 07-Apr-2020
602,Revenue,CAHD,18-25 Year Olds,Permanent Residential,Beechwood Court,7627.46, 07-Apr-2020
603,Revenue,CAHD,18-25 Year Olds,Permanent Residential,Beechwood Court,7627.46, 07-Apr-2020
604,Revenue,CAHD,Covid 19 -Adult Social Care,Permanent Residential,Beechwood Court,1657.16, 24-Apr-2020
605,Revenue,CAHD,Covid 19 -Adult Social Care,Permanent Residential,Beechwood Court,1657.16, 24-Apr-2020
606,Revenue,CAHD,CSC - Residential Placements,Permanent Residential,Beechwood Court Ltd,21794.66, 21-Apr-2020
607,Revenue,CAHD,CSC - Residential Placements,Permanent Residential,Beechwood Court Ltd,21794.66, 20-Apr-2020
608,Revenue,CAHD,CSC - Residential Placements,Permanent Residential,Beechwood Court Ltd,21794.66, 20-Apr-2020
609,Revenue,CAHD,Independent Special Placements - Pre 16,Other Private Contractors,Belgrave School,6662.50, 22-Apr-2020
610,Revenue,CAHD,Independent Special Placements - Pre 16,Other Private Contractors,Belgrave School,13089.50, 29-Apr-2020
611,Revenue,CAHD,Independent Special Placements - Pre 16,Other Private Contractors,Belgrave School,4225.39, 22-Apr-2020
612,Revenue,CAHD,Independent Special Placements - Pre 16,Other Private Contractors,Belgrave School,4927.50, 22-Apr-2020
613,Revenue,CAHD,Independent Special Placements - Post 16,Other Private Contractors,Belgrave School,4783.33, 22-Apr-2020
614,Revenue,CAHD,Independent Special Placements - Pre 16,Other Private Contractors,Belgrave School,5577.00, 22-Apr-2020
615,Revenue,CAHD,Independent Special Placements - Pre 16,Other Private Contractors,Belgrave School,7845.69, 22-Apr-2020
616,Revenue,CAHD,Learning Difficulties PSL,Other Supplies & Services,Bethany Sage,1859.78, 29-Apr-2020
617,Revenue,CAHD,South - S117,Permanent Residential,Bidna House,1846.32, 07-Apr-2020
618,Revenue,CAHD,South - S117,Permanent Residential,Bidna House,1846.32, 07-Apr-2020
619,Revenue,CAHD,One You South Glos,Other Small Contracts,Bionical Solutions Limited,6830.25, 23-Apr-2020
620,Revenue,CAHD,Statemented Support Academies,Other L.A.'s - General,Blaise High School,907.83, 28-Apr-2020
621,Revenue,CAHD,Central - Commissioned Services,Other Small Contracts,Blakehill Healthcare Ltd,9912.50, 06-Apr-2020
622,Revenue,CAHD,Central - Commissioned Services,Other Small Contracts,Blakehill Healthcare Ltd,4400.00, 06-Apr-2020
623,Revenue,CAHD,Central - Commissioned Services,Other Small Contracts,Blakehill Healthcare Ltd,750.00, 06-Apr-2020
624,Revenue,CAHD,Central - Commissioned Services,Other Small Contracts,Blakehill Healthcare Ltd,1618.75, 06-Apr-2020
625,Revenue,CAHD,Central - Commissioned Services,Other Small Contracts,Blakehill Healthcare Ltd,750.00, 06-Apr-2020
626,Revenue,CAHD,Central - Commissioned Services,Other Small Contracts,Blakehill Healthcare Ltd,4434.80, 06-Apr-2020
627,Revenue,CAHD,Central - Commissioned Services,Other Small Contracts,Blakehill Healthcare Ltd,1400.00, 07-Apr-2020
628,Revenue,CAHD,Central - Commissioned Services,Other Small Contracts,Blakehill Healthcare Ltd,2681.25, 08-Apr-2020
629,Revenue,CAHD,Central - Commissioned Services,Other Small Contracts,Blakehill Healthcare Ltd,1575.00, 14-Apr-2020
630,Revenue,CAHD,Central - Commissioned Services,Other Small Contracts,Blakehill Healthcare Ltd,4411.75, 24-Apr-2020
631,Revenue,CAHD,Central - Commissioned Services,Other Small Contracts,Blakehill Healthcare Ltd,1125.00, 24-Apr-2020
632,Revenue,CAHD,Central - Commissioned Services,Other Small Contracts,Blakehill Healthcare Ltd,1212.50, 24-Apr-2020
633,Revenue,CAHD,Central - Commissioned Services,Other Small Contracts,Blakehill Healthcare Ltd,1150.00, 24-Apr-2020
634,Revenue,CAHD,North - Community based support,Other Small Contracts,Blakehill Healthcare Ltd,3037.50, 22-Apr-2020
635,Revenue,CAHD,Central - Commissioned Services,Other Small Contracts,Blakehill Healthcare Ltd,6158.75, 08-Apr-2020
636,Revenue,CAHD,Central - Commissioned Services,Other Small Contracts,Blakehill Healthcare Ltd,750.00, 24-Apr-2020
637,Revenue,CAHD,Covid 19 -Adult Social Care,Other Small Contracts,Blakehill Healthcare Ltd,6502.85, 24-Apr-2020
638,Revenue,CAHD,Covid 19 -Adult Social Care,Other Small Contracts,Blakehill Healthcare Ltd,6502.85, 24-Apr-2020
639,Revenue,CAHD,South - Commissioned Services,Permanent Nursing,Blossom Field,2390.18, 07-Apr-2020
640,Revenue,CAHD,South - Commissioned Services,Permanent Nursing,Blossom Field,2390.18, 07-Apr-2020
641,Revenue,CAHD,South Glos Users in South Glos Homes,Permanent Nursing,Blossom Field,662.24, 07-Apr-2020
642,Revenue,CAHD,South Glos Users in South Glos Homes,Permanent Nursing,Blossom Field,662.24, 07-Apr-2020
643,Revenue,CAHD,North - Community based support,Permanent Nursing,Blossom Field,2385.20, 07-Apr-2020
644,Revenue,CAHD,North - Community based support,Permanent Nursing,Blossom Field,2385.20, 07-Apr-2020
645,Revenue,CAHD,South Glos Users in South Glos Homes,Permanent Nursing,Blossom Field,662.24, 07-Apr-2020
646,Revenue,CAHD,South Glos Users in South Glos Homes,Permanent Nursing,Blossom Field,662.24, 07-Apr-2020
647,Revenue,CAHD,North - Community based support,Permanent Nursing,Blossom Field,2176.40, 07-Apr-2020
648,Revenue,CAHD,North - Community based support,Permanent Nursing,Blossom Field,2133.72, 07-Apr-2020
649,Revenue,CAHD,South Glos Users in South Glos Homes,Permanent Nursing,Blossom Field,662.24, 07-Apr-2020
650,Revenue,CAHD,North - Community based support,Permanent Nursing,Blossom Field,5374.29, 07-Apr-2020
651,Revenue,CAHD,North - Community based support,Permanent Nursing,Blossom Field,2019.60, 07-Apr-2020
652,Revenue,CAHD,North - Community based support,Permanent Nursing,Blossom Field,1980.00, 07-Apr-2020
653,Revenue,CAHD,South Glos Users in South Glos Homes,Permanent Nursing,Blossom Field,662.24, 07-Apr-2020
654,Revenue,CAHD,South Glos Users in South Glos Homes,Permanent Nursing,Blossom Field,662.24, 07-Apr-2020
655,Revenue,CAHD,South - Commissioned Services,Permanent Nursing,Blossom Field,2250.68, 07-Apr-2020
656,Revenue,CAHD,South - Commissioned Services,Permanent Nursing,Blossom Field,2206.54, 07-Apr-2020
657,Revenue,CAHD,South Glos Users in South Glos Homes,Permanent Nursing,Blossom Field,662.24, 07-Apr-2020
658,Revenue,CAHD,South Glos Users in South Glos Homes,Permanent Nursing,Blossom Field,662.24, 07-Apr-2020
659,Revenue,CAHD,South Glos Users in South Glos Homes,Permanent Nursing,Blossom Field,591.29, 07-Apr-2020
660,Revenue,CAHD,North - Community based support,Permanent Nursing,Blossom Field,1802.30, 07-Apr-2020
661,Revenue,CAHD,North - Community based support,Permanent Nursing,Blossom Field,1766.96, 07-Apr-2020
662,Revenue,CAHD,South Glos Users in South Glos Homes,Permanent Nursing,Blossom Field,662.24, 07-Apr-2020
663,Revenue,CAHD,South Glos Users in South Glos Homes,Permanent Nursing,Blossom Field,662.24, 07-Apr-2020
664,Revenue,CAHD,South Glos Users in South Glos Homes,Permanent Nursing,Blossom Field,685.89, 07-Apr-2020
665,Revenue,CAHD,North - Community based support,Permanent Nursing,Blossom Field,2399.94, 07-Apr-2020
666,Revenue,CAHD,North - Community based support,Permanent Nursing,Blossom Field,2399.94, 07-Apr-2020
667,Revenue,CAHD,South Glos Users in South Glos Homes,Permanent Nursing,Blossom Field,662.24, 07-Apr-2020
668,Revenue,CAHD,South Glos Users in South Glos Homes,Permanent Nursing,Blossom Field,662.24, 07-Apr-2020
669,Revenue,CAHD,North - Community based support,Permanent Nursing,Blossom Field,2400.00, 07-Apr-2020
670,Revenue,CAHD,North - Community based support,Permanent Nursing,Blossom Field,2400.00, 07-Apr-2020
671,Revenue,CAHD,South Glos Users in South Glos Homes,Permanent Nursing,Blossom Field,662.24, 07-Apr-2020
672,Revenue,CAHD,South Glos Users in South Glos Homes,Permanent Nursing,Blossom Field,662.24, 07-Apr-2020
673,Revenue,CAHD,Central - Commissioned Services,Permanent Nursing,Blossom Field,2176.36, 07-Apr-2020
674,Revenue,CAHD,Central - Commissioned Services,Permanent Nursing,Blossom Field,2133.68, 07-Apr-2020
675,Revenue,CAHD,South Glos Users in South Glos Homes,Permanent Nursing,Blossom Field,662.24, 07-Apr-2020
676,Revenue,CAHD,South Glos Users in South Glos Homes,Permanent Nursing,Blossom Field,1348.13, 07-Apr-2020
677,Revenue,CAHD,South Glos Users in South Glos Homes,Permanent Nursing,Blossom Field,662.24, 07-Apr-2020
678,Revenue,CAHD,South Glos Users in South Glos Homes,Permanent Nursing,Blossom Field,1560.99, 07-Apr-2020
679,Revenue,CAHD,South Glos Users in South Glos Homes,Permanent Nursing,Blossom Field,662.24, 07-Apr-2020
680,Revenue,CAHD,North - Community based support,Permanent Nursing,Blossom Field,2176.36, 07-Apr-2020
681,Revenue,CAHD,North - Community based support,Permanent Nursing,Blossom Field,2133.68, 07-Apr-2020
682,Revenue,CAHD,South Glos Users in South Glos Homes,Permanent Nursing,Blossom Field,662.24, 07-Apr-2020
683,Revenue,CAHD,South Glos Users in South Glos Homes,Permanent Nursing,Blossom Field,1797.51, 07-Apr-2020
684,Revenue,CAHD,South - Commissioned Services,Permanent Nursing,Blossom Field,2019.60, 07-Apr-2020
685,Revenue,CAHD,South - Commissioned Services,Permanent Nursing,Blossom Field,1980.00, 07-Apr-2020
686,Revenue,CAHD,South Glos Users in South Glos Homes,Permanent Nursing,Blossom Field,662.24, 07-Apr-2020
687,Revenue,CAHD,South Glos Users in South Glos Homes,Permanent Nursing,Blossom Field,662.24, 07-Apr-2020
688,Revenue,CAHD,South Glos Users in South Glos Homes,Permanent Nursing,Blossom Field,662.24, 07-Apr-2020
689,Revenue,CAHD,South Glos Users in South Glos Homes,Permanent Nursing,Blossom Field,662.24, 07-Apr-2020
690,Revenue,CAHD,South Glos Users in South Glos Homes,Permanent Nursing,Blossom Field,662.24, 07-Apr-2020
691,Revenue,CAHD,South Glos Users in South Glos Homes,Permanent Nursing,Blossom Field,662.24, 07-Apr-2020
692,Revenue,CAHD,South Glos Users in South Glos Homes,Permanent Nursing,Blossom Field,662.24, 07-Apr-2020
693,Revenue,CAHD,South Glos Users in South Glos Homes,Permanent Nursing,Blossom Field,662.24, 07-Apr-2020
694,Revenue,CAHD,North - Community based support,Permanent Nursing,Blossom Field,1853.82, 07-Apr-2020
695,Revenue,CAHD,North - Community based support,Permanent Nursing,Blossom Field,1817.48, 07-Apr-2020
696,Revenue,CAHD,South Glos Users in South Glos Homes,Permanent Nursing,Blossom Field,662.24, 07-Apr-2020
697,Revenue,CAHD,North - bed purchasing and direct  payments,Permanent Nursing,Blossom Field,2019.60, 07-Apr-2020
698,Revenue,CAHD,North - bed purchasing and direct  payments,Permanent Nursing,Blossom Field,1980.00, 07-Apr-2020
699,Revenue,CAHD,South Glos Users in South Glos Homes,Permanent Nursing,Blossom Field,662.24, 07-Apr-2020
700,Revenue,CAHD,Covid 19 -Adult Social Care,Permanent Residential,Blossom Field,6097.47, 24-Apr-2020
701,Revenue,CAHD,Covid 19 -Adult Social Care,Permanent Residential,Blossom Field,6097.47, 24-Apr-2020
702,Revenue,CAHD,North - Community based support,Permanent Residential,Bluebells,1849.80, 07-Apr-2020
703,Revenue,CAHD,North - Community based support,Permanent Residential,Bluebells,1849.80, 07-Apr-2020
704,Revenue,CAHD,Central - Commissioned Services,Other Small Contracts,Bluebird Care (South Gloucestershire),3773.80, 06-Apr-2020
705,Revenue,CAHD,South - Commissioned Services,Other Small Contracts,Bluebird Care (South Gloucestershire),1442.05, 06-Apr-2020
706,Revenue,CAHD,North - Community based support,Other Small Contracts,Bluebird Care (South Gloucestershire),4286.76, 06-Apr-2020
707,Revenue,CAHD,Central - Commissioned Services,Other Small Contracts,Bluebird Care (South Gloucestershire),3909.70, 06-Apr-2020
708,Revenue,CAHD,South - Commissioned Services,Other Small Contracts,Bluebird Care (South Gloucestershire),1532.65, 06-Apr-2020
709,Revenue,CAHD,North - Community based support,Other Small Contracts,Bluebird Care (South Gloucestershire),4271.66, 06-Apr-2020
710,Revenue,CAHD,Central - Commissioned Services,Other Small Contracts,Bluebird Care (South Gloucestershire),3977.65, 22-Apr-2020
711,Revenue,CAHD,South - Commissioned Services,Other Small Contracts,Bluebird Care (South Gloucestershire),1517.55, 22-Apr-2020
712,Revenue,CAHD,North - Community based support,Other Small Contracts,Bluebird Care (South Gloucestershire),4330.11, 22-Apr-2020
713,Revenue,CAHD,Covid 19 -Adult Social Care,Other Small Contracts,Bluebird Care (South Gloucestershire),15.10, 22-Apr-2020
714,Revenue,CAHD,Central - Commissioned Services,Other Small Contracts,Bluebird Care (South Gloucestershire),4664.70, 22-Apr-2020
715,Revenue,CAHD,South - Commissioned Services,Other Small Contracts,Bluebird Care (South Gloucestershire),1366.55, 22-Apr-2020
716,Revenue,CAHD,North - Community based support,Other Small Contracts,Bluebird Care (South Gloucestershire),4721.36, 22-Apr-2020
717,Revenue,CAHD,Covid 19 -Adult Social Care,Other Small Contracts,Bluebird Care (South Gloucestershire),15.10, 23-Apr-2020
718,Revenue,CAHD,Central - Commissioned Services,Other Small Contracts,Bluebird Care (South Gloucestershire),4749.66, 23-Apr-2020
719,Revenue,CAHD,South - Commissioned Services,Other Small Contracts,Bluebird Care (South Gloucestershire),1411.85, 23-Apr-2020
720,Revenue,CAHD,North - Community based support,Other Small Contracts,Bluebird Care (South Gloucestershire),4560.14, 23-Apr-2020
721,Revenue,CAHD,Covid 19 -Adult Social Care,Other Small Contracts,Bluebird Care (South Gloucestershire),5151.87, 24-Apr-2020
722,Revenue,CAHD,Covid 19 -Adult Social Care,Other Small Contracts,Bluebird Care (South Gloucestershire),5151.87, 24-Apr-2020
723,Revenue,CAHD,CSC - Care Leavers Support Costs,Personal Needs of Clients,Individual,600.00, 24-Apr-2020
724,Revenue,CAHD,CSC - Vinney Green Secure Unit,"Provisions (Food, etc)",Booker Cash & Carry,499.85, 09-Apr-2020
725,Revenue,CAHD,CSC - Vinney Green Secure Unit,"Provisions (Food, etc)",Booker Cash & Carry,499.79, 08-Apr-2020
726,Revenue,CAHD,Sexual Health,Other Small Contracts,Boots UK Ltd,635.82, 17-Apr-2020
727,Revenue,CAHD,Sexual Health,Other Small Contracts,Boots UK Ltd,715.41, 17-Apr-2020
728,Revenue,CAHD,S28A cases,Permanent Residential,Bradbury House,3252.58, 07-Apr-2020
729,Revenue,CAHD,S28A cases,Permanent Residential,Bradbury House,3252.58, 07-Apr-2020
730,Revenue,CAHD,Covid 19 -Adult Social Care,Permanent Residential,Bradbury House,706.66, 24-Apr-2020
731,Revenue,CAHD,Covid 19 -Adult Social Care,Permanent Residential,Bradbury House,706.66, 24-Apr-2020
732,Revenue,CAHD,18-25 Year Olds,Permanent Residential,Bradbury House,4958.54, 07-Apr-2020
733,Revenue,CAHD,18-25 Year Olds,Permanent Residential,Bradbury House,4958.54, 07-Apr-2020
734,Revenue,CAHD,Covid 19 -Adult Social Care,Permanent Residential,Bradbury House,1077.30, 24-Apr-2020
735,Revenue,CAHD,Covid 19 -Adult Social Care,Permanent Residential,Bradbury House,1077.30, 24-Apr-2020
736,Revenue,CAHD,North - S117,Permanent Residential,Bradbury House,2870.12, 07-Apr-2020
737,Revenue,CAHD,Jointly Funded H&SC Packages,Permanent Residential,Bradbury House,3963.50, 07-Apr-2020
738,Revenue,CAHD,Covid 19 -Adult Social Care,Permanent Residential,Bradbury House,623.57, 24-Apr-2020
739,Revenue,CAHD,Covid 19 -Adult Social Care,Permanent Residential,Bradbury House,623.57, 24-Apr-2020
740,Revenue,CAHD,South - Commissioned Services,Permanent Residential,Bradbury House,4888.50, 07-Apr-2020
741,Revenue,CAHD,South - Commissioned Services,Permanent Residential,Bradbury House,4888.50, 07-Apr-2020
742,Revenue,CAHD,Covid 19 -Adult Social Care,Permanent Residential,Bradbury House,1062.08, 24-Apr-2020
743,Revenue,CAHD,Covid 19 -Adult Social Care,Permanent Residential,Bradbury House,1062.08, 24-Apr-2020
744,Revenue,CAHD,Tobacco Control,Other Small Contracts,Bradley Stoke Surgery,580.00, 08-Apr-2020
745,Revenue,CAHD,CSC - Residential Placements,Permanent Residential,Branas ISAF Ltd,19285.71, 01-Apr-2020
746,Revenue,CAHD,CSC - Residential Placements,Permanent Residential,Branas ISAF Ltd,19928.57, 09-Apr-2020
747,Revenue,CAHD,North - Community based support,Permanent Residential,Breadstone House Care Centre,1044.34, 07-Apr-2020
748,Revenue,CAHD,North - Community based support,Permanent Residential,Breadstone House Care Centre,1044.34, 07-Apr-2020
749,Revenue,CAHD,North - Community based support,Permanent Residential,Breadstone House Care Centre,1182.18, 07-Apr-2020
750,Revenue,CAHD,North - Community based support,Permanent Residential,Breadstone House Care Centre,1182.18, 07-Apr-2020
751,Revenue,CAHD,North - Community based support,Respite Emergency - Residential,Breadstone House Care Centre,1114.62, 07-Apr-2020
752,Revenue,CAHD,North - bed purchasing and direct  payments,Permanent Residential,Bridge House Care Home,9590.00, 07-Apr-2020
753,Revenue,CAHD,North - bed purchasing and direct  payments,Permanent Residential,Bridge House Care Home,1370.00, 07-Apr-2020
754,Revenue,CAHD,North - bed purchasing and direct  payments,Permanent Residential,Bridge House Care Home,1370.00, 07-Apr-2020
755,Revenue,CAHD,North - bed purchasing and direct  payments,Permanent Residential,Bridge House Care Home,1272.14, 07-Apr-2020
756,Revenue,CAHD,North - bed purchasing and direct  payments,Fees & Charges Income - General,Bridge House Care Home,962.40, 07-Apr-2020
757,Revenue,CAHD,North - bed purchasing and direct  payments,Fees & Charges Income - General,Bridge House Care Home,2632.29, 07-Apr-2020
758,Revenue,CAHD,North - Community based support,Permanent Residential,Bridge House Care Home,1339.02, 07-Apr-2020
759,Revenue,CAHD,North - Community based support,Permanent Residential,Bridge House Care Home,1312.76, 07-Apr-2020
760,Revenue,CAHD,Covid 19 -Adult Social Care,Permanent Residential,Bridge House Care Home,588.49, 24-Apr-2020
761,Revenue,CAHD,Covid 19 -Adult Social Care,Permanent Residential,Bridge House Care Home,588.49, 24-Apr-2020
762,Revenue,CAHD,North - Community based support,Permanent Residential,Bridgwater Court Care Home,5386.82, 07-Apr-2020
763,Revenue,CAHD,North - Community based support,Permanent Residential,Bridgwater Court Care Home,5386.82, 07-Apr-2020
764,Revenue,CAHD,Covid 19 -Adult Social Care,Permanent Residential,Bridgwater Court Care Home,1170.35, 24-Apr-2020
765,Revenue,CAHD,Covid 19 -Adult Social Care,Permanent Residential,Bridgwater Court Care Home,1170.35, 24-Apr-2020
766,Revenue,CAHD,Community Support - North,Preventative Assistance,Bristol Ambulance EMS Limited,651.00, 07-Apr-2020
767,Revenue,CAHD,Winter Incentive Payments,Advertising for Recruitment,Bristol City Council,894.94, 07-Apr-2020
768,Revenue,CAHD,Winter Incentive Payments,Advertising for Recruitment,Bristol City Council,511.00, 08-Apr-2020
769,Revenue,CAHD,CSC - Short Breaks,Other L.A.'s - General,Bristol City Council,10678.41, 02-Apr-2020
770,Revenue,CAHD,Transport OLA Special Schools and RB,Client Transport,Bristol City Council,4590.00, 17-Apr-2020
771,Revenue,CAHD,Placements OLA Special Schools and RB,Other L.A.'s - General,Bristol City Council - Schools,2578.00, 28-Apr-2020
772,Revenue,CAHD,Placements OLA Special Schools and RB,Other L.A.'s - General,Bristol City Council - Schools,1381.00, 28-Apr-2020
773,Revenue,CAHD,Statemented Support Payments to OLAs,Other L.A.'s - General,Bristol City Council - Schools,1379.43, 28-Apr-2020
774,Revenue,CAHD,Placements OLA Special Schools and RB,Other L.A.'s - General,Bristol City Council - Schools,914.33, 28-Apr-2020
775,Revenue,CAHD,Placements OLA Special Schools and RB,Other L.A.'s - General,Bristol City Council - Schools,1305.58, 28-Apr-2020
776,Revenue,CAHD,Statemented Support Payments to OLAs,Other L.A.'s - General,Bristol City Council - Schools,554.13, 28-Apr-2020
777,Revenue,CAHD,Statemented Support Payments to OLAs,Other L.A.'s - General,Bristol City Council - Schools,660.24, 28-Apr-2020
778,Revenue,CAHD,Placements OLA Special Schools and RB,Other L.A.'s - General,Bristol City Council - Schools,3356.33, 28-Apr-2020
779,Revenue,CAHD,Placements OLA Special Schools and RB,Other L.A.'s - General,Bristol City Council - Schools,2722.50, 28-Apr-2020
780,Revenue,CAHD,Placements OLA Special Schools and RB,Other L.A.'s - General,Bristol City Council - Schools,1275.67, 28-Apr-2020
781,Revenue,CAHD,Placements OLA Special Schools and RB,Other L.A.'s - General,Bristol City Council - Schools,2578.00, 28-Apr-2020
782,Revenue,CAHD,Placements OLA Special Schools and RB,Other L.A.'s - General,Bristol City Council - Schools,1381.00, 28-Apr-2020
783,Revenue,CAHD,Placements OLA Special Schools and RB,Other L.A.'s - General,Bristol City Council - Schools,2050.17, 28-Apr-2020
784,Revenue,CAHD,Placements OLA Special Schools and RB,Other L.A.'s - General,Bristol City Council - Schools,1381.00, 28-Apr-2020
785,Revenue,CAHD,Placements OLA Special Schools and RB,Other L.A.'s - General,Bristol City Council - Schools,1381.00, 28-Apr-2020
786,Revenue,CAHD,Placements OLA Special Schools and RB,Other L.A.'s - General,Bristol City Council - Schools,2050.17, 28-Apr-2020
787,Revenue,CAHD,Placements OLA Special Schools and RB,Other L.A.'s - General,Bristol City Council - Schools,1675.30, 28-Apr-2020
788,Revenue,CAHD,Placements OLA Special Schools and RB,Other L.A.'s - General,Bristol City Council - Schools,1976.78, 28-Apr-2020
789,Revenue,CAHD,Placements OLA Special Schools and RB,Other L.A.'s - General,Bristol City Council - Schools,2722.50, 28-Apr-2020
790,Revenue,CAHD,Placements OLA Special Schools and RB,Other L.A.'s - General,Bristol City Council - Schools,1975.67, 28-Apr-2020
791,Revenue,CAHD,Placements OLA Special Schools and RB,Other L.A.'s - General,Bristol City Council - Schools,2722.50, 28-Apr-2020
792,Revenue,CAHD,Placements OLA Special Schools and RB,Other L.A.'s - General,Bristol City Council - Schools,883.50, 28-Apr-2020
793,Revenue,CAHD,Placements OLA Special Schools and RB,Other L.A.'s - General,Bristol City Council - Schools,4107.54, 28-Apr-2020
794,Revenue,CAHD,Placements OLA Special Schools and RB,Other L.A.'s - General,Bristol City Council - Schools,777.50, 28-Apr-2020
795,Revenue,CAHD,Placements OLA Special Schools and RB,Other L.A.'s - General,Bristol City Council - Schools,1031.20, 28-Apr-2020
796,Revenue,CAHD,Placements OLA Special Schools and RB,Other L.A.'s - General,Bristol City Council - Schools,3356.33, 28-Apr-2020
797,Revenue,CAHD,Placements OLA Special Schools and RB,Other L.A.'s - General,Bristol City Council - Schools,2578.00, 28-Apr-2020
798,Revenue,CAHD,Placements OLA Special Schools and RB,Other L.A.'s - General,Bristol City Council - Schools,809.00, 28-Apr-2020
799,Revenue,CAHD,Placements OLA Special Schools and RB,Other L.A.'s - General,Bristol City Council - Schools,3356.33, 28-Apr-2020
800,Revenue,CAHD,Placements OLA Special Schools and RB,Other L.A.'s - General,Bristol City Council - Schools,3405.92, 28-Apr-2020
801,Revenue,CAHD,Placements OLA Special Schools and RB,Other L.A.'s - General,Bristol City Council - Schools,2062.40, 28-Apr-2020
802,Revenue,CAHD,Placements OLA Special Schools and RB,Other L.A.'s - General,Bristol City Council - Schools,2578.00, 28-Apr-2020
803,Revenue,CAHD,Placements OLA Special Schools and RB,Other L.A.'s - General,Bristol City Council - Schools,2828.50, 28-Apr-2020
804,Revenue,CAHD,Placements OLA Special Schools and RB,Other L.A.'s - General,Bristol City Council - Schools,1305.58, 28-Apr-2020
805,Revenue,CAHD,Training - Adult Services,Training Expenses,Bristol MIND,2560.00, 02-Apr-2020
806,Revenue,CAHD,SEN High Needs - Not at School Base,Other Private Contractors,Bristol Tuition Limited,642.00, 17-Apr-2020
807,Revenue,CAHD,Training - Adult Services,Training Expenses,British Institute of Human Rights,2000.00, 22-Apr-2020
808,Revenue,CAHD,Statemented Support Payments to OLAs,Other L.A.'s - General,Broadlands Academy,1332.27, 28-Apr-2020
809,Revenue,CAHD,Supporting People Programme,Grants to Voluntary Bodies,Bromford  :  Merlin Housing Society,15641.00, 06-Apr-2020
810,Revenue,CAHD,Supporting People Programme,Grants to Voluntary Bodies,Bromford  :  Merlin Housing Society,2752.00, 06-Apr-2020
811,Revenue,CAHD,Supporting People Programme,Grants to Voluntary Bodies,Bromford  :  Merlin Housing Society,22948.00, 06-Apr-2020
812,Revenue,CAHD,Supporting People Programme,Grants to Voluntary Bodies,Bromford  :  Merlin Housing Society,1120.00, 06-Apr-2020
813,Revenue,CAHD,Parent Partnership,Fees - General,Browne Jacobson,1209.00, 06-Apr-2020
814,Revenue,CAHD,South Glos Users in South Glos Homes,Permanent Nursing,Brunelcare,733.19, 20-Apr-2020
815,Revenue,CAHD,South Glos Users in South Glos Homes,Permanent Nursing,Brunelcare,733.19, 20-Apr-2020
816,Revenue,CAHD,South Glos Users in South Glos Homes,Permanent Nursing,Brunelcare,733.19, 20-Apr-2020
817,Revenue,CAHD,South Glos Users in South Glos Homes,Permanent Nursing,Brunelcare,733.19, 20-Apr-2020
818,Revenue,CAHD,South Glos Users in South Glos Homes,Permanent Nursing,Brunelcare,520.33, 20-Apr-2020
819,Revenue,CAHD,South Glos Users in South Glos Homes,Permanent Nursing,Brunelcare,733.19, 20-Apr-2020
820,Revenue,CAHD,South Glos Users in South Glos Homes,Permanent Nursing,Brunelcare,733.19, 20-Apr-2020
821,Revenue,CAHD,South Glos Users in South Glos Homes,Permanent Nursing,Brunelcare,733.19, 20-Apr-2020
822,Revenue,CAHD,South Glos Users in South Glos Homes,Permanent Nursing,Brunelcare,733.19, 20-Apr-2020
823,Revenue,CAHD,South Glos Users in South Glos Homes,Permanent Nursing,Brunelcare,733.19, 20-Apr-2020
824,Revenue,CAHD,South Glos Users in South Glos Homes,Permanent Nursing,Brunelcare,733.19, 20-Apr-2020
825,Revenue,CAHD,South Glos Users in South Glos Homes,Permanent Nursing,Brunelcare,733.19, 20-Apr-2020
826,Revenue,CAHD,South Glos Users in South Glos Homes,Permanent Nursing,Brunelcare,733.19, 20-Apr-2020
827,Revenue,CAHD,South Glos Users in South Glos Homes,Permanent Nursing,Brunelcare,733.19, 20-Apr-2020
828,Revenue,CAHD,South - S117,Permanent Nursing,Brunelcare,2603.86, 20-Apr-2020
829,Revenue,CAHD,North - S117,Permanent Nursing,Brunelcare,3669.07, 20-Apr-2020
830,Revenue,CAHD,North - S117,Permanent Nursing,Brunelcare,3669.07, 20-Apr-2020
831,Revenue,CAHD,South - Commissioned Services,Permanent Nursing,Brunelcare,3669.07, 20-Apr-2020
832,Revenue,CAHD,South - Commissioned Services,Permanent Nursing,Brunelcare,2674.86, 20-Apr-2020
833,Revenue,CAHD,South - Commissioned Services,Permanent Nursing,Brunelcare,2831.98, 20-Apr-2020
834,Revenue,CAHD,South - Commissioned Services,Permanent Nursing,Brunelcare,2938.31, 20-Apr-2020
835,Revenue,CAHD,South - Commissioned Services,Permanent Nursing,Brunelcare,3056.38, 20-Apr-2020
836,Revenue,CAHD,South - Commissioned Services,Permanent Nursing,Brunelcare,2663.87, 20-Apr-2020
837,Revenue,CAHD,South - Commissioned Services,Permanent Nursing,Brunelcare,2123.72, 20-Apr-2020
838,Revenue,CAHD,North - Community based support,Permanent Nursing,Brunelcare,2945.09, 20-Apr-2020
839,Revenue,CAHD,North - Community based support,Permanent Nursing,Brunelcare,2938.49, 20-Apr-2020
840,Revenue,CAHD,North - Community based support,Permanent Nursing,Brunelcare,3669.07, 20-Apr-2020
841,Revenue,CAHD,North - Community based support,Respite Planned - Nursing,Brunelcare,710.04, 20-Apr-2020
842,Revenue,CAHD,Central - Commissioned Services,Respite Planned - Nursing,Brunelcare,3147.94, 20-Apr-2020
843,Revenue,CAHD,Central - Commissioned Services,Permanent Nursing,Brunelcare,3016.52, 20-Apr-2020
844,Revenue,CAHD,South - Commissioned Services,Other Small Contracts,Brunelcare,19186.92, 06-Apr-2020
845,Revenue,CAHD,North - Community based support,Other Small Contracts,Brunelcare,305.92, 06-Apr-2020
846,Revenue,CAHD,South - Commissioned Services,Other Small Contracts,Brunelcare,16433.64, 06-Apr-2020
847,Revenue,CAHD,North - Community based support,Other Small Contracts,Brunelcare,286.80, 06-Apr-2020
848,Revenue,CAHD,South - Commissioned Services,Other Small Contracts,Brunelcare,14755.86, 22-Apr-2020
849,Revenue,CAHD,North - Community based support,Other Small Contracts,Brunelcare,301.14, 22-Apr-2020
850,Revenue,CAHD,South - Commissioned Services,Other Small Contracts,Brunelcare,15190.84, 30-Apr-2020
851,Revenue,CAHD,North - Community based support,Other Small Contracts,Brunelcare,272.46, 30-Apr-2020
852,Revenue,CAHD,Covid 19 -Adult Social Care,Other Small Contracts,Brunelcare,8940.15, 24-Apr-2020
853,Revenue,CAHD,Covid 19 -Adult Social Care,Other Small Contracts,Brunelcare,4625.94, 14-Apr-2020
854,Revenue,CAHD,Covid 19 -Adult Social Care,Other Small Contracts,Brunelcare,4625.94, 22-Apr-2020
855,Revenue,CAHD,Covid 19 -Adult Social Care,Other Small Contracts,Brunelcare,4219.64, 29-Apr-2020
856,Revenue,CAHD,Covid 19 -Adult Social Care,Other Small Contracts,Brunelcare,8940.15, 24-Apr-2020
857,Revenue,CAHD,North - S117,Permanent Residential,Buckland Care,5400.00, 07-Apr-2020
858,Revenue,CAHD,North - S117,Permanent Residential,Buckland Care,1800.00, 07-Apr-2020
859,Revenue,CAHD,CSC - Legal Fees,Legal Fees,Burges Salmon,552.00, 27-Apr-2020
860,Revenue,CAHD,Training - Adult Services,Training Expenses,BW Training & Coaching Ltd,1200.00, 14-Apr-2020
861,Revenue,CAHD,CSC - Vinney Green Secure Unit,R & M by Departments,BWS Standfast Fire & Security Systems,18000.00, 29-Apr-2020
862,Revenue,CAHD,CSC - Vinney Green Secure Unit,Service Contracts (Premises),BWS Standfast Fire & Security Systems,62277.00, 21-Apr-2020
863,Revenue,CAHD,CSC - Vinney Green Secure Unit,R & M by Departments,BWS Standfast Fire & Security Systems,18000.00, 16-Apr-2020
864,Revenue,CAHD,CSC - Vinney Green Secure Unit,R & M by Departments,BWS Standfast Fire & Security Systems,571.00, 16-Apr-2020
865,Revenue,CAHD,CSC - Agency Fostering,Foster Parent Allowances,By the Bridge Ltd,4495.00, 07-Apr-2020
866,Revenue,CAHD,Social Lettings Agency,Fees - General,Individual,16.16, 24-Apr-2020
867,Revenue,CAHD,Social Lettings Agency,Other Supplies & Services,Individual,710.96, 24-Apr-2020
868,Revenue,CAHD,CSC - Special Guardianship Orders,Special Payments,Individual,1717.43, 24-Apr-2020
869,Revenue,CAHD,Statemented Support Payments to OLAs,Other L.A.'s - General,Cabot Learning Federation,1544.49, 28-Apr-2020
870,Revenue,CAHD,Statemented Support Academies,Other Public Bodies,Cabot Learning Federation,918.71, 28-Apr-2020
871,Revenue,CAHD,Statemented Support Academies,Other Public Bodies,Cabot Learning Federation,1202.39, 28-Apr-2020
872,Revenue,CAHD,Statemented Support Academies,Other Public Bodies,Cabot Learning Federation,518.76, 28-Apr-2020
873,Revenue,CAHD,Statemented Support Academies,Other Public Bodies,Cabot Learning Federation,907.83, 28-Apr-2020
874,Revenue,CAHD,Statemented Support Academies,Other Public Bodies,Cabot Learning Federation,554.13, 28-Apr-2020
875,Revenue,CAHD,Statemented Support Academies,Other Public Bodies,Cabot Learning Federation,565.92, 28-Apr-2020
876,Revenue,CAHD,Statemented Support Academies,Other Public Bodies,Cabot Learning Federation,1048.67, 28-Apr-2020
877,Revenue,CAHD,Statemented Support Academies,Other Public Bodies,Cabot Learning Federation,2616.63, 28-Apr-2020
878,Revenue,CAHD,Statemented Support Payments to OLAs,Other L.A.'s - General,Cabot Learning Federation,1013.94, 28-Apr-2020
879,Revenue,CAHD,Statemented Support Academies,Other Public Bodies,Cabot Learning Federation,695.61, 28-Apr-2020
880,Revenue,CAHD,Statemented Support Academies,Other Public Bodies,Cabot Learning Federation,530.55, 28-Apr-2020
881,Revenue,CAHD,Statemented Support Academies,Other Public Bodies,Cabot Learning Federation,918.75, 28-Apr-2020
882,Revenue,CAHD,Statemented Support Academies,Other Public Bodies,Cabot Learning Federation,975.58, 28-Apr-2020
883,Revenue,CAHD,Academy Resource Base Funding,Other Public Bodies,Cabot Learning Federation,2118.90, 27-Apr-2020
884,Revenue,CAHD,Academy Resource Base Funding,Other Public Bodies,Cabot Learning Federation,1137.95, 27-Apr-2020
885,Revenue,CAHD,Academy Resource Base Funding,Other Public Bodies,Cabot Learning Federation,1137.95, 27-Apr-2020
886,Revenue,CAHD,Academy Resource Base Funding,Other Public Bodies,Cabot Learning Federation,627.77, 27-Apr-2020
887,Revenue,CAHD,Academy Resource Base Funding,Other Public Bodies,Cabot Learning Federation,1137.95, 27-Apr-2020
888,Revenue,CAHD,Academy Resource Base Funding,Other Public Bodies,Cabot Learning Federation,1648.03, 27-Apr-2020
889,Revenue,CAHD,Academy Resource Base Funding,Other Public Bodies,Cabot Learning Federation,1491.13, 27-Apr-2020
890,Revenue,CAHD,Academy Resource Base Funding,Other Public Bodies,Cabot Learning Federation,1137.95, 27-Apr-2020
891,Revenue,CAHD,Academy Resource Base Funding,Other Public Bodies,Cabot Learning Federation,1137.95, 27-Apr-2020
892,Revenue,CAHD,Academy Resource Base Funding,Other Public Bodies,Cabot Learning Federation,627.77, 27-Apr-2020
893,Revenue,CAHD,Academy Resource Base Funding,Other Public Bodies,Cabot Learning Federation,1491.13, 27-Apr-2020
894,Revenue,CAHD,Academy Resource Base Funding,Other Public Bodies,Cabot Learning Federation,981.05, 27-Apr-2020
895,Revenue,CAHD,Academy Resource Base Funding,Other Public Bodies,Cabot Learning Federation,1648.03, 27-Apr-2020
896,Revenue,CAHD,Academy Resource Base Funding,Other Public Bodies,Cabot Learning Federation,1491.13, 27-Apr-2020
897,Revenue,CAHD,Academy Resource Base Funding,Other Public Bodies,Cabot Learning Federation,1648.03, 27-Apr-2020
898,Revenue,CAHD,Academy Resource Base Funding,Other Public Bodies,Cabot Learning Federation,2118.90, 27-Apr-2020
899,Revenue,CAHD,Academy Resource Base Funding,Other Public Bodies,Cabot Learning Federation,1491.13, 27-Apr-2020
900,Revenue,CAHD,Academy Resource Base Funding,Other Public Bodies,Cabot Learning Federation,1137.95, 27-Apr-2020
901,Revenue,CAHD,Academy Resource Base Funding,Other Public Bodies,Cabot Learning Federation,1137.95, 27-Apr-2020
902,Revenue,CAHD,Academy Resource Base Funding,Other Public Bodies,Cabot Learning Federation,5081.94, 06-Apr-2020
903,Revenue,CAHD,South Glos Alternative Provision,Fees & Charges Income - General,Cabot Learning Federation,984.95, 06-Apr-2020
904,Revenue,CAHD,Statemented Support Payments to OLAs,Other L.A.'s - General,Cabot Learning Federation,872.46, 28-Apr-2020
905,Revenue,CAHD,Statemented Support Academies,Other Public Bodies,Cabot Learning Federation,804.08, 28-Apr-2020
906,Revenue,CAHD,Statemented Support Academies,Other Public Bodies,Cabot Learning Federation,554.13, 28-Apr-2020
907,Revenue,CAHD,Statemented Support Academies,Other Public Bodies,Cabot Learning Federation,742.77, 28-Apr-2020
908,Revenue,CAHD,Statemented Support Academies,Other Public Bodies,Cabot Learning Federation,778.14, 28-Apr-2020
909,Revenue,CAHD,Statemented Support Academies,Other Public Bodies,Cabot Learning Federation,943.20, 28-Apr-2020
910,Revenue,CAHD,Statemented Support Academies,Other Public Bodies,Cabot Learning Federation,813.51, 28-Apr-2020
911,Revenue,CAHD,South Glos Alternative Provision,Fees & Charges Income - General,Cabot Learning Federation,5187.58, 06-Apr-2020
912,Revenue,CAHD,Schools Block Growth Contingency,Other Public Bodies,Cabot Learning Federation,22689.00, 15-Apr-2020
913,Revenue,CAHD,Statemented Support Payments to OLAs,Other L.A.'s - General,Cabot Learning Federation,601.29, 28-Apr-2020
914,Revenue,CAHD,Statemented Support Academies,Other Public Bodies,Cabot Learning Federation,860.67, 28-Apr-2020
915,Revenue,CAHD,Statemented Support Academies,Other Public Bodies,Cabot Learning Federation,589.50, 28-Apr-2020
916,Revenue,CAHD,Statemented Support Academies,Other Public Bodies,Cabot Learning Federation,801.72, 28-Apr-2020
917,Revenue,CAHD,Statemented Support Academies,Other Public Bodies,Cabot Learning Federation,1096.47, 28-Apr-2020
918,Revenue,CAHD,Statemented Support Academies,Other Public Bodies,Cabot Learning Federation,730.98, 28-Apr-2020
919,Revenue,CAHD,Statemented Support Academies,Other Public Bodies,Cabot Learning Federation,907.83, 28-Apr-2020
920,Revenue,CAHD,Statemented Support Academies,Other Public Bodies,Cabot Learning Federation,530.55, 28-Apr-2020
921,Revenue,CAHD,Statemented Support Academies,Other Public Bodies,Cabot Learning Federation,907.83, 28-Apr-2020
922,Revenue,CAHD,Statemented Support Payments to OLAs,Other L.A.'s - General,Cabot Learning Federation,1072.89, 28-Apr-2020
923,Revenue,CAHD,Statemented Support Academies,Other Public Bodies,Cabot Learning Federation,1296.90, 28-Apr-2020
924,Revenue,CAHD,Statemented Support Academies,Other Public Bodies,Cabot Learning Federation,872.46, 28-Apr-2020
925,Revenue,CAHD,CSC - YOT Pooled Budget,Software Support & Maintenance,CACI Limited,8013.51, 06-Apr-2020
926,Revenue,CAHD,North - Community based support,Permanent Nursing,Caernarvon House,2400.00, 07-Apr-2020
927,Revenue,CAHD,North - Community based support,Permanent Nursing,Caernarvon House,2400.00, 07-Apr-2020
928,Revenue,CAHD,North - Community based support,Permanent Nursing,Caernarvon House,2355.20, 07-Apr-2020
929,Revenue,CAHD,North - Community based support,Permanent Nursing,Caernarvon House,2355.20, 07-Apr-2020
930,Revenue,CAHD,South - Commissioned Services,Permanent Nursing,Caernarvon House,2355.20, 07-Apr-2020
931,Revenue,CAHD,South - Commissioned Services,Permanent Nursing,Caernarvon House,2355.20, 07-Apr-2020
932,Revenue,CAHD,North - S117,Permanent Nursing,Caernarvon House,1995.12, 07-Apr-2020
933,Revenue,CAHD,North - S117,Permanent Nursing,Caernarvon House,1995.12, 07-Apr-2020
934,Revenue,CAHD,South - Commissioned Services,Permanent Nursing,Caernarvon House,2457.60, 07-Apr-2020
935,Revenue,CAHD,South - Commissioned Services,Permanent Nursing,Caernarvon House,2457.60, 07-Apr-2020
936,Revenue,CAHD,North - bed purchasing and direct  payments,Permanent Nursing,Caernarvon House,2366.88, 07-Apr-2020
937,Revenue,CAHD,North - Community based support,Permanent Nursing,Caernarvon House,2366.88, 07-Apr-2020
938,Revenue,CAHD,South - Commissioned Services,Permanent Nursing,Caernarvon House,2400.00, 07-Apr-2020
939,Revenue,CAHD,South - Commissioned Services,Permanent Nursing,Caernarvon House,2400.00, 07-Apr-2020
940,Revenue,CAHD,South - Commissioned Services,Permanent Nursing,Caernarvon House,2150.40, 07-Apr-2020
941,Revenue,CAHD,South - Commissioned Services,Permanent Nursing,Caernarvon House,2150.40, 07-Apr-2020
942,Revenue,CAHD,South - S117,Permanent Nursing,Caernarvon House,2457.60, 07-Apr-2020
943,Revenue,CAHD,South - S117,Permanent Nursing,Caernarvon House,2457.60, 07-Apr-2020
944,Revenue,CAHD,North - Community based support,Permanent Nursing,Caernarvon House,2400.00, 07-Apr-2020
945,Revenue,CAHD,North - Community based support,Permanent Nursing,Caernarvon House,2400.00, 07-Apr-2020
946,Revenue,CAHD,South - Commissioned Services,Respite Emergency - Residential,Caernarvon House,2400.00, 07-Apr-2020
947,Revenue,CAHD,South - Commissioned Services,Respite Emergency - Residential,Caernarvon House,2400.00, 07-Apr-2020
948,Revenue,CAHD,Covid 19 -Adult Social Care,Permanent Residential,Caernarvon House,5591.89, 24-Apr-2020
949,Revenue,CAHD,Covid 19 -Adult Social Care,Permanent Residential,Caernarvon House,5591.89, 24-Apr-2020
950,Revenue,CAHD,Schools Specific Grant Income,Other Public Bodies,Caerphilly County Borough Council,3000.00, 06-Apr-2020
951,Revenue,CAHD,CAHC - Complaints & Advocacy Service,Complaints External Expenses,Individual,1425.00, 22-Apr-2020
952,Revenue,CAHD,CSC - Residential Placements,Permanent Residential,Cambian Childcare Ltd,18428.70, 21-Apr-2020
953,Revenue,CAHD,CSC - Residential Placements,Permanent Residential,Cambian Childcare Ltd,22500.00, 20-Apr-2020
954,Revenue,CAHD,Post 16 High Needs Placements,Other Private Contractors,Cambian Whinfell School Limited,27833.33, 06-Apr-2020
955,Revenue,CAHD,Post 16 High Needs Placements,Other Private Contractors,Cambian Whinfell School Limited,48238.15, 06-Apr-2020
956,Revenue,CAHD,Post 16 High Needs Placements,Other Private Contractors,Cambian Whinfell School Limited,28734.89, 06-Apr-2020
957,Revenue,CAHD,Post 16 High Needs Placements,Other Private Contractors,Cambian Whinfell School Limited,39509.47, 06-Apr-2020
958,Revenue,CAHD,Post 16 High Needs Placements,Other Private Contractors,Cambian Whinfell School Limited,28867.27, 06-Apr-2020
959,Revenue,CAHD,Post 16 High Needs Placements,Other Private Contractors,Cambian Whinfell School Limited,27747.77, 06-Apr-2020
960,Revenue,CAHD,Post 16 High Needs Placements,Other Private Contractors,Cambian Whinfell School Limited,24166.67, 06-Apr-2020
961,Revenue,CAHD,Post 16 High Needs Placements,Other Private Contractors,Cambian Whinfell School Limited,60422.18, 06-Apr-2020
962,Revenue,CAHD,30 Hours Development Fund,External Lecturers Fees,Cambium Sustainable Landscapes & Training,750.00, 06-Apr-2020
963,Revenue,CAHD,Early Years Development,External Lecturers Fees,Cambium Sustainable Landscapes & Training,520.00, 14-Apr-2020
964,Revenue,CAHD,North - Community based support,Day Care / Social Activities,Camphill Communities Thornbury Limited,1135.20, 02-Apr-2020
965,Revenue,CAHD,North - Community based support,Other Small Contracts,Camphill Communities Thornbury Limited,657.47, 02-Apr-2020
966,Revenue,CAHD,North - Community based support,Supported Living,Camphill Communities Thornbury Limited,998.03, 02-Apr-2020
967,Revenue,CAHD,North - Community based support,Day Care / Social Activities,Camphill Communities Thornbury Limited,1144.66, 06-Apr-2020
968,Revenue,CAHD,North - Community based support,Other Small Contracts,Camphill Communities Thornbury Limited,657.47, 06-Apr-2020
969,Revenue,CAHD,North - Community based support,Supported Living,Camphill Communities Thornbury Limited,1031.14, 06-Apr-2020
970,Revenue,CAHD,North - Community based support,Day Care / Social Activities,Camphill Communities Thornbury Limited,1016.95, 06-Apr-2020
971,Revenue,CAHD,North - Community based support,Other Small Contracts,Camphill Communities Thornbury Limited,662.20, 06-Apr-2020
972,Revenue,CAHD,North - Community based support,Supported Living,Camphill Communities Thornbury Limited,1054.79, 06-Apr-2020
973,Revenue,CAHD,North - Community based support,Day Care / Social Activities,Camphill Communities Thornbury Limited,1012.22, 06-Apr-2020
974,Revenue,CAHD,North - Community based support,Other Small Contracts,Camphill Communities Thornbury Limited,662.20, 06-Apr-2020
975,Revenue,CAHD,North - Community based support,Supported Living,Camphill Communities Thornbury Limited,1026.41, 06-Apr-2020
976,Revenue,CAHD,North - Community based support,Day Care / Social Activities,Camphill Communities Thornbury Limited,477.73, 20-Apr-2020
977,Revenue,CAHD,North - Community based support,Other Small Contracts,Camphill Communities Thornbury Limited,671.66, 20-Apr-2020
978,Revenue,CAHD,North - Community based support,Supported Living,Camphill Communities Thornbury Limited,1031.14, 20-Apr-2020
979,Revenue,CAHD,North - Community based support,Day Care / Social Activities,Camphill Communities Thornbury Limited,458.81, 24-Apr-2020
980,Revenue,CAHD,North - Community based support,Other Small Contracts,Camphill Communities Thornbury Limited,666.93, 24-Apr-2020
981,Revenue,CAHD,North - Community based support,Supported Living,Camphill Communities Thornbury Limited,1045.33, 24-Apr-2020
982,Revenue,CAHD,North - Community based support,Day Care / Social Activities,Camphill Communities Thornbury Limited,502.32, 29-Apr-2020
983,Revenue,CAHD,North - Community based support,Other Small Contracts,Camphill Communities Thornbury Limited,681.03, 29-Apr-2020
984,Revenue,CAHD,North - Community based support,Supported Living,Camphill Communities Thornbury Limited,1057.77, 29-Apr-2020
985,Revenue,CAHD,North - Community based support,Day Care / Social Activities,Camphill Communities Thornbury Limited,473.34, 29-Apr-2020
986,Revenue,CAHD,North - Community based support,Other Small Contracts,Camphill Communities Thornbury Limited,681.03, 29-Apr-2020
987,Revenue,CAHD,North - Community based support,Supported Living,Camphill Communities Thornbury Limited,1062.60, 29-Apr-2020
988,Revenue,CAHD,Telecare,Other Supplies & Services,Canary Care Global Ltd,526.00, 06-Apr-2020
989,Revenue,CAHD,North - S117,Permanent Residential,Canjayor,1968.88, 07-Apr-2020
990,Revenue,CAHD,North - S117,Permanent Residential,Canjayor,1968.88, 07-Apr-2020
991,Revenue,CAHD,CSC - Asylum Seekers - Unaccompanied,Foster Parent Allowances,Capstone Foster Care (South West) Limited,3405.66, 02-Apr-2020
992,Revenue,CAHD,CSC - Agency Fostering,Foster Parent Allowances,Capstone Foster Care (South West) Limited,3671.33, 30-Apr-2020
993,Revenue,CAHD,CSC - Agency Fostering,Foster Parent Allowances,Capstone Foster Care (South West) Limited,1065.87, 22-Apr-2020
994,Revenue,CAHD,CSC - Asylum Seekers - Unaccompanied,Foster Parent Allowances,Capstone Foster Care (South West) Limited,3295.80, 22-Apr-2020
995,Revenue,CAHD,CSC - Agency Fostering,Foster Parent Allowances,Capstone Foster Care (South West) Limited,3552.90, 22-Apr-2020
996,Revenue,CAHD,Central - Commissioned Services,Other Small Contracts,Care 1st Homecare,2929.92, 15-Apr-2020
997,Revenue,CAHD,Central - Commissioned Services,Other Small Contracts,Care 1st Homecare,2947.36, 24-Apr-2020
998,Revenue,CAHD,Central - Commissioned Services,Other Small Contracts,Care 1st Homecare,2994.85, 24-Apr-2020
999,Revenue,CAHD,Covid 19 -Adult Social Care,Other Small Contracts,Care 1st Homecare,1299.66, 24-Apr-2020
1000,Revenue,CAHD,Covid 19 -Adult Social Care,Other Small Contracts,Care 1st Homecare,1299.66, 24-Apr-2020
1001,Revenue,CAHD,North - Community based support,Supported Living,Care Horizons,2717.64, 07-Apr-2020
1002,Revenue,CAHD,North - Community based support,Supported Living,Care Horizons,2664.36, 07-Apr-2020
1003,Revenue,CAHD,North - Community based support,Supported Living,Care Horizons,2717.64, 07-Apr-2020
1004,Revenue,CAHD,North - Community based support,Supported Living,Care Horizons,2664.36, 07-Apr-2020
1005,Revenue,CAHD,18-25 Year Olds,Other Small Contracts,Care Horizons Limited,77.28, 07-Apr-2020
1006,Revenue,CAHD,Central - Commissioned Services,Other Small Contracts,Care Horizons Limited,966.00, 07-Apr-2020
1007,Revenue,CAHD,South - Commissioned Services,Other Small Contracts,Care Horizons Limited,289.80, 07-Apr-2020
1008,Revenue,CAHD,North - Community based support,Day Care / Social Activities,Care Horizons Limited,405.72, 07-Apr-2020
1009,Revenue,CAHD,North - Community based support,Other Small Contracts,Care Horizons Limited,627.90, 07-Apr-2020
1010,Revenue,CAHD,Younger MH non-res purchasing,Other Small Contracts,Care Horizons Limited,154.56, 07-Apr-2020
1011,Revenue,CAHD,18-25 Year Olds,Other Small Contracts,Care Horizons Limited,77.28, 07-Apr-2020
1012,Revenue,CAHD,Central - Commissioned Services,Other Small Contracts,Care Horizons Limited,975.66, 07-Apr-2020
1013,Revenue,CAHD,South - Commissioned Services,Other Small Contracts,Care Horizons Limited,289.80, 07-Apr-2020
1014,Revenue,CAHD,North - Community based support,Day Care / Social Activities,Care Horizons Limited,405.72, 07-Apr-2020
1015,Revenue,CAHD,North - Community based support,Other Small Contracts,Care Horizons Limited,700.35, 07-Apr-2020
1016,Revenue,CAHD,Younger MH non-res purchasing,Other Small Contracts,Care Horizons Limited,154.56, 07-Apr-2020
1017,Revenue,CAHD,18-25 Year Olds,Other Small Contracts,Care Horizons Limited,77.28, 20-Apr-2020
1018,Revenue,CAHD,Central - Commissioned Services,Other Small Contracts,Care Horizons Limited,975.66, 20-Apr-2020
1019,Revenue,CAHD,South - Commissioned Services,Other Small Contracts,Care Horizons Limited,251.16, 20-Apr-2020
1020,Revenue,CAHD,North - Community based support,Day Care / Social Activities,Care Horizons Limited,405.72, 20-Apr-2020
1021,Revenue,CAHD,North - Community based support,Other Small Contracts,Care Horizons Limited,725.62, 20-Apr-2020
1022,Revenue,CAHD,Younger MH non-res purchasing,Other Small Contracts,Care Horizons Limited,154.56, 20-Apr-2020
1023,Revenue,CAHD,18-25 Year Olds,Other Small Contracts,Care Horizons Limited,78.88, 20-Apr-2020
1024,Revenue,CAHD,Central - Commissioned Services,Other Small Contracts,Care Horizons Limited,995.86, 20-Apr-2020
1025,Revenue,CAHD,South - Commissioned Services,Other Small Contracts,Care Horizons Limited,290.87, 20-Apr-2020
1026,Revenue,CAHD,North - Community based support,Day Care / Social Activities,Care Horizons Limited,414.12, 20-Apr-2020
1027,Revenue,CAHD,North - Community based support,Other Small Contracts,Care Horizons Limited,714.85, 20-Apr-2020
1028,Revenue,CAHD,Younger MH non-res purchasing,Other Small Contracts,Care Horizons Limited,157.76, 20-Apr-2020
1029,Revenue,CAHD,Covid 19 -Adult Social Care,Other Small Contracts,Care Horizons Limited,1106.15, 24-Apr-2020
1030,Revenue,CAHD,Covid 19 -Adult Social Care,Other Small Contracts,Care Horizons Limited,1106.15, 24-Apr-2020
1031,Revenue,CAHD,CSC - Care Leavers Independent Living,Independent Living,Caring for Communities and People,10432.48, 09-Apr-2020
1032,Revenue,CAHD,Statemented Support Academies,Other Public Bodies,Castle School Education Trust,530.55, 28-Apr-2020
1033,Revenue,CAHD,Statemented Support Academies,Other Public Bodies,Castle School Education Trust,565.92, 28-Apr-2020
1034,Revenue,CAHD,Statemented Support Academies,Other Public Bodies,Castle School Education Trust,778.14, 28-Apr-2020
1035,Revenue,CAHD,Statemented Support Academies,Other Public Bodies,Castle School Education Trust,931.41, 28-Apr-2020
1036,Revenue,CAHD,Statemented Support Academies,Other Public Bodies,Castle School Education Trust,542.34, 28-Apr-2020
1037,Revenue,CAHD,Statemented Support Academies,Other Public Bodies,Castle School Education Trust,672.03, 28-Apr-2020
1038,Revenue,CAHD,Statemented Support Academies,Other Public Bodies,Castle School Education Trust,577.71, 28-Apr-2020
1039,Revenue,CAHD,Statemented Support Academies,Other Public Bodies,Castle School Education Trust,505.08, 28-Apr-2020
1040,Revenue,CAHD,Statemented Support Academies,Other Public Bodies,Castle School Education Trust,860.67, 28-Apr-2020
1041,Revenue,CAHD,Statemented Support Academies,Other Public Bodies,Castle School Education Trust,1461.96, 28-Apr-2020
1042,Revenue,CAHD,Statemented Support Academies,Other Public Bodies,Castle School Education Trust,860.67, 28-Apr-2020
1043,Revenue,CAHD,Statemented Support Academies,Other Public Bodies,Castle School Education Trust,1002.15, 28-Apr-2020
1044,Revenue,CAHD,Statemented Support Academies,Other Public Bodies,Castle School Education Trust,613.08, 28-Apr-2020
1045,Revenue,CAHD,Statemented Support Academies,Other Public Bodies,Castle School Education Trust,672.03, 28-Apr-2020
1046,Revenue,CAHD,Statemented Support Academies,Other Public Bodies,Castle School Education Trust,1120.05, 28-Apr-2020
1047,Revenue,CAHD,Statemented Support Academies,Other Public Bodies,Castle School Education Trust,636.66, 28-Apr-2020
1048,Revenue,CAHD,Statemented Support Academies,Other Public Bodies,Castle School Education Trust,589.50, 28-Apr-2020
1049,Revenue,CAHD,Statemented Support Academies,Other Public Bodies,Castle School Education Trust,589.08, 28-Apr-2020
1050,Revenue,CAHD,Statemented Support Academies,Other Public Bodies,Castle School Education Trust,954.99, 28-Apr-2020
1051,Revenue,CAHD,Statemented Support Academies,Other Public Bodies,Castle School Education Trust,577.71, 28-Apr-2020
1052,Revenue,CAHD,Statemented Support Academies,Other Public Bodies,Castle School Education Trust,624.87, 28-Apr-2020
1053,Revenue,CAHD,Statemented Support Academies,Other Public Bodies,Castle School Education Trust,825.30, 28-Apr-2020
1054,Revenue,CAHD,Statemented Support Academies,Other Public Bodies,Castle School Education Trust,1190.79, 28-Apr-2020
1055,Revenue,CAHD,Statemented Support Academies,Other Public Bodies,Castle School Education Trust,848.88, 28-Apr-2020
1056,Revenue,CAHD,Statemented Support Academies,Other Public Bodies,Castle School Education Trust,1237.95, 28-Apr-2020
1057,Revenue,CAHD,Statemented Support Academies,Other Public Bodies,Castle School Education Trust,1061.10, 28-Apr-2020
1058,Revenue,CAHD,Statemented Support Academies,Other Public Bodies,Castle School Education Trust,518.76, 28-Apr-2020
1059,Revenue,CAHD,Statemented Support Academies,Other Public Bodies,Castle School Education Trust,577.71, 28-Apr-2020
1060,Revenue,CAHD,Statemented Support Academies,Other Public Bodies,Castle School Education Trust,1143.63, 28-Apr-2020
1061,Revenue,CAHD,Statemented Support Academies,Other Public Bodies,Castle School Education Trust,1072.89, 28-Apr-2020
1062,Revenue,CAHD,South Glos Alternative Provision,Fees & Charges Income - General,Castle School Education Trust,1463.17, 06-Apr-2020
1063,Revenue,CAHD,Statemented Support Academies,Other Public Bodies,Castle School Education Trust,1485.54, 28-Apr-2020
1064,Revenue,CAHD,Statemented Support Academies,Other Public Bodies,Castle School Education Trust,888.75, 28-Apr-2020
1065,Revenue,CAHD,Statemented Support Academies,Other Public Bodies,Castle School Education Trust,1322.75, 28-Apr-2020
1066,Revenue,CAHD,Statemented Support Academies,Other Public Bodies,Castle School Education Trust,943.17, 28-Apr-2020
1067,Revenue,CAHD,Statemented Support Academies,Other Public Bodies,Castle School Education Trust,1267.50, 28-Apr-2020
1068,Revenue,CAHD,Academy Resource Base Funding,Other Public Bodies,Castle School Education Trust,1648.03, 27-Apr-2020
1069,Revenue,CAHD,Academy Resource Base Funding,Other Public Bodies,Castle School Education Trust,1648.03, 27-Apr-2020
1070,Revenue,CAHD,Academy Resource Base Funding,Other Public Bodies,Castle School Education Trust,1648.03, 27-Apr-2020
1071,Revenue,CAHD,Academy Resource Base Funding,Other Public Bodies,Castle School Education Trust,1648.03, 27-Apr-2020
1072,Revenue,CAHD,Academy Resource Base Funding,Other Public Bodies,Castle School Education Trust,1648.03, 27-Apr-2020
1073,Revenue,CAHD,Academy Resource Base Funding,Other Public Bodies,Castle School Education Trust,1648.03, 27-Apr-2020
1074,Revenue,CAHD,Academy Resource Base Funding,Other Public Bodies,Castle School Education Trust,2118.90, 27-Apr-2020
1075,Revenue,CAHD,Academy Resource Base Funding,Other Public Bodies,Castle School Education Trust,1648.03, 27-Apr-2020
1076,Revenue,CAHD,Academy Resource Base Funding,Other Public Bodies,Castle School Education Trust,1648.03, 27-Apr-2020
1077,Revenue,CAHD,Academy Resource Base Funding,Other Public Bodies,Castle School Education Trust,1648.03, 27-Apr-2020
1078,Revenue,CAHD,Statemented Support Academies,Other Public Bodies,Castle School Education Trust,672.03, 28-Apr-2020
1079,Revenue,CAHD,Statemented Support Academies,Other Public Bodies,Castle School Education Trust,872.46, 28-Apr-2020
1080,Revenue,CAHD,Statemented Support Academies,Other Public Bodies,Castle School Education Trust,848.88, 28-Apr-2020
1081,Revenue,CAHD,Statemented Support Academies,Other Public Bodies,Castle School Education Trust,1556.28, 28-Apr-2020
1082,Revenue,CAHD,Statemented Support Academies,Other Public Bodies,Castle School Education Trust,1025.73, 28-Apr-2020
1083,Revenue,CAHD,Statemented Support Academies,Other Public Bodies,Castle School Education Trust,630.58, 28-Apr-2020
1084,Revenue,CAHD,Statemented Support Academies,Other Public Bodies,Castle School Education Trust,778.14, 28-Apr-2020
1085,Revenue,CAHD,Statemented Support Academies,Other Public Bodies,Castle School Education Trust,613.08, 28-Apr-2020
1086,Revenue,CAHD,Statemented Support Academies,Other Public Bodies,Castle School Educational Turust,1148.20, 28-Apr-2020
1087,Revenue,CAHD,Statemented Support Academies,Other Public Bodies,Castle School Educational Turust,1497.33, 28-Apr-2020
1088,Revenue,CAHD,South Glos Alternative Provision,Fees & Charges Income - General,Castle School Educational Turust,2530.75, 06-Apr-2020
1089,Revenue,CAHD,Social Lettings Agency,Fees - General,Individual,10.53, 01-Apr-2020
1090,Revenue,CAHD,Social Lettings Agency,Fees & Charges Income - General,Individual,595.11, 01-Apr-2020
1091,Revenue,CAHD,North - Community based support,Day Care / Social Activities,Causeway House,1066.98, 07-Apr-2020
1092,Revenue,CAHD,North - Community based support,Day Care / Social Activities,Causeway House,1088.32, 07-Apr-2020
1093,Revenue,CAHD,Central - Commissioned Services,Day Care / Social Activities,Causeway House,615.74, 07-Apr-2020
1094,Revenue,CAHD,Central - Commissioned Services,Day Care / Social Activities,Causeway House,628.06, 07-Apr-2020
1095,Revenue,CAHD,Central - Commissioned Services,Day Care / Social Activities,Causeway House,1041.92, 07-Apr-2020
1096,Revenue,CAHD,South - Commissioned Services,Day Care / Social Activities,Causeway House,2626.56, 07-Apr-2020
1097,Revenue,CAHD,South - Commissioned Services,Day Care / Social Activities,Causeway House,2679.10, 07-Apr-2020
1098,Revenue,CAHD,18-25 Year Olds,Day Care / Social Activities,Causeway House,709.36, 07-Apr-2020
1099,Revenue,CAHD,18-25 Year Olds,Day Care / Social Activities,Causeway House,723.54, 07-Apr-2020
1100,Revenue,CAHD,18-25 Year Olds,Day Care / Social Activities,Causeway House,2207.32, 07-Apr-2020
1101,Revenue,CAHD,18-25 Year Olds,Day Care / Social Activities,Causeway House,2251.46, 07-Apr-2020
1102,Revenue,CAHD,Central - Commissioned Services,Day Care / Social Activities,Causeway House,1799.68, 07-Apr-2020
1103,Revenue,CAHD,Central - Commissioned Services,Day Care / Social Activities,Causeway House,1835.68, 07-Apr-2020
1104,Revenue,CAHD,Central - Commissioned Services,Day Care / Social Activities,Causeway House,1945.80, 07-Apr-2020
1105,Revenue,CAHD,Central - Commissioned Services,Day Care / Social Activities,Causeway House,1984.72, 07-Apr-2020
1106,Revenue,CAHD,Central - Commissioned Services,Day Care / Social Activities,Causeway House,4472.16, 07-Apr-2020
1107,Revenue,CAHD,Central - Commissioned Services,Day Care / Social Activities,Causeway House,1038.82, 07-Apr-2020
1108,Revenue,CAHD,Central - Commissioned Services,Day Care / Social Activities,Causeway House,1059.60, 07-Apr-2020
1109,Revenue,CAHD,North - Community based support,Day Care / Social Activities,Causeway House,1613.10, 07-Apr-2020
1110,Revenue,CAHD,North - Community based support,Day Care / Social Activities,Causeway House,1645.36, 07-Apr-2020
1111,Revenue,CAHD,North - Community based support,Day Care / Social Activities,Causeway House,2403.22, 07-Apr-2020
1112,Revenue,CAHD,North - Community based support,Day Care / Social Activities,Causeway House,2451.28, 07-Apr-2020
1113,Revenue,CAHD,Central - Commissioned Services,Day Care / Social Activities,Causeway House,1826.06, 07-Apr-2020
1114,Revenue,CAHD,Central - Commissioned Services,Day Care / Social Activities,Causeway House,1862.58, 07-Apr-2020
1115,Revenue,CAHD,North - Community based support,Day Care / Social Activities,Causeway House,1574.54, 07-Apr-2020
1116,Revenue,CAHD,North - Community based support,Day Care / Social Activities,Causeway House,1606.04, 07-Apr-2020
1117,Revenue,CAHD,South - Commissioned Services,Permanent Residential,Challenge House,1417.22, 07-Apr-2020
1118,Revenue,CAHD,South - Commissioned Services,Permanent Residential,Challenge House,1417.22, 07-Apr-2020
1119,Revenue,CAHD,South - Commissioned Services,Permanent Residential,Challenge House,1418.00, 07-Apr-2020
1120,Revenue,CAHD,South - Commissioned Services,Permanent Residential,Challenge House,709.00, 07-Apr-2020
1121,Revenue,CAHD,South - Commissioned Services,Permanent Residential,Challenge House,709.00, 07-Apr-2020
1122,Revenue,CAHD,North - S117,Permanent Residential,Challenge House,1285.70, 07-Apr-2020
1123,Revenue,CAHD,North - S117,Permanent Residential,Challenge House,1285.70, 07-Apr-2020
1124,Revenue,CAHD,Covid 19 -Adult Social Care,Permanent Residential,Challenge House,895.32, 24-Apr-2020
1125,Revenue,CAHD,Covid 19 -Adult Social Care,Permanent Residential,Challenge House,895.32, 24-Apr-2020
1126,Revenue,CAHD,Central - Commissioned Services,Permanent Residential,Challenge House,2800.00, 07-Apr-2020
1127,Revenue,CAHD,Central - Commissioned Services,Permanent Residential,Challenge House,1400.00, 07-Apr-2020
1128,Revenue,CAHD,Central - Commissioned Services,Permanent Residential,Challenge House,1400.00, 07-Apr-2020
1129,Revenue,CAHD,North - Community based support,Permanent Residential,Challenge House,1116.50, 07-Apr-2020
1130,Revenue,CAHD,North - Community based support,Permanent Residential,Challenge House,1116.50, 07-Apr-2020
1131,Revenue,CAHD,Central - Commissioned Services,Permanent Residential,Challenge House,1182.80, 07-Apr-2020
1132,Revenue,CAHD,Central - Commissioned Services,Permanent Residential,Challenge House,1182.80, 07-Apr-2020
1133,Revenue,CAHD,Central - Commissioned Services,Permanent Residential,Challenge House,1181.70, 07-Apr-2020
1134,Revenue,CAHD,Central - Commissioned Services,Permanent Residential,Challenge House,1181.70, 07-Apr-2020
1135,Revenue,CAHD,North - Community based support,Permanent Residential,Challenge House,1181.70, 07-Apr-2020
1136,Revenue,CAHD,North - Community based support,Permanent Residential,Challenge House,1181.70, 07-Apr-2020
1137,Revenue,CAHD,North - Community based support,Fees & Charges Income - General,Challenge House,508.39, 07-Apr-2020
1138,Revenue,CAHD,Covid 19 -Adult Social Care,Permanent Residential,Challenge House,1317.19, 24-Apr-2020
1139,Revenue,CAHD,Covid 19 -Adult Social Care,Permanent Residential,Challenge House,1317.19, 24-Apr-2020
1140,Revenue,CAHD,North - Community based support,Permanent Residential,Challenge House,1417.20, 07-Apr-2020
1141,Revenue,CAHD,North - Community based support,Permanent Residential,Challenge House,1417.20, 07-Apr-2020
1142,Revenue,CAHD,North - Community based support,Permanent Nursing,Challenge House,1565.18, 07-Apr-2020
1143,Revenue,CAHD,North - Community based support,Permanent Nursing,Challenge House,1565.18, 07-Apr-2020
1144,Revenue,CAHD,North - S117,Permanent Nursing,Challenge House,1197.90, 07-Apr-2020
1145,Revenue,CAHD,North - S117,Permanent Nursing,Challenge House,1197.90, 07-Apr-2020
1146,Revenue,CAHD,Central - Commissioned Services,Permanent Nursing,Challenge House,1528.00, 07-Apr-2020
1147,Revenue,CAHD,Central - Commissioned Services,Permanent Nursing,Challenge House,1528.00, 07-Apr-2020
1148,Revenue,CAHD,North - Community based support,Permanent Nursing,Challenge House,1197.90, 07-Apr-2020
1149,Revenue,CAHD,North - Community based support,Permanent Nursing,Challenge House,1197.90, 07-Apr-2020
1150,Revenue,CAHD,North - Community based support,Permanent Nursing,Challenge House,1565.18, 07-Apr-2020
1151,Revenue,CAHD,North - Community based support,Permanent Nursing,Challenge House,1565.18, 07-Apr-2020
1152,Revenue,CAHD,Covid 19 -Adult Social Care,Permanent Residential,Challenge House,1532.60, 24-Apr-2020
1153,Revenue,CAHD,Covid 19 -Adult Social Care,Permanent Residential,Challenge House,1532.60, 24-Apr-2020
1154,Revenue,CAHD,South Glos Users in South Glos Homes,Permanent Nursing,Challenge House,662.24, 07-Apr-2020
1155,Revenue,CAHD,South Glos Users in South Glos Homes,Permanent Nursing,Challenge House,662.24, 07-Apr-2020
1156,Revenue,CAHD,South - Commissioned Services,Permanent Nursing,Challenge House,1470.94, 07-Apr-2020
1157,Revenue,CAHD,South - Commissioned Services,Permanent Nursing,Challenge House,1442.10, 07-Apr-2020
1158,Revenue,CAHD,North - Community based support,Permanent Nursing,Challenge House,1700.90, 07-Apr-2020
1159,Revenue,CAHD,North - Community based support,Permanent Nursing,Challenge House,1667.54, 07-Apr-2020
1160,Revenue,CAHD,South Glos Users in South Glos Homes,Permanent Nursing,Challenge House,662.24, 07-Apr-2020
1161,Revenue,CAHD,North - Community based support,Permanent Nursing,Challenge House,1636.32, 07-Apr-2020
1162,Revenue,CAHD,North - Community based support,Permanent Nursing,Challenge House,1604.24, 07-Apr-2020
1163,Revenue,CAHD,South Glos Users in South Glos Homes,Permanent Nursing,Challenge House,662.24, 07-Apr-2020
1164,Revenue,CAHD,South Glos Users in South Glos Homes,Permanent Nursing,Challenge House,662.24, 07-Apr-2020
1165,Revenue,CAHD,North - Community based support,Permanent Nursing,Challenge House,1702.80, 07-Apr-2020
1166,Revenue,CAHD,North - Community based support,Permanent Nursing,Challenge House,1669.42, 07-Apr-2020
1167,Revenue,CAHD,South Glos Users in South Glos Homes,Permanent Nursing,Challenge House,662.24, 07-Apr-2020
1168,Revenue,CAHD,South - Commissioned Services,Permanent Nursing,Challenge House,1530.00, 07-Apr-2020
1169,Revenue,CAHD,South - Commissioned Services,Permanent Nursing,Challenge House,1500.00, 07-Apr-2020
1170,Revenue,CAHD,South Glos Users in South Glos Homes,Permanent Nursing,Challenge House,662.24, 07-Apr-2020
1171,Revenue,CAHD,South - Commissioned Services,Permanent Residential,Challenge House,1530.00, 07-Apr-2020
1172,Revenue,CAHD,South - Commissioned Services,Permanent Residential,Challenge House,1500.00, 07-Apr-2020
1173,Revenue,CAHD,South Glos Users in South Glos Homes,Permanent Nursing,Challenge House,662.24, 07-Apr-2020
1174,Revenue,CAHD,South Glos Users in South Glos Homes,Permanent Nursing,Challenge House,5297.92, 07-Apr-2020
1175,Revenue,CAHD,South Glos Users in South Glos Homes,Permanent Nursing,Challenge House,662.24, 07-Apr-2020
1176,Revenue,CAHD,North - Community based support,Permanent Nursing,Challenge House,1442.04, 07-Apr-2020
1177,Revenue,CAHD,North - Community based support,Permanent Nursing,Challenge House,1413.76, 07-Apr-2020
1178,Revenue,CAHD,South Glos Users in South Glos Homes,Permanent Nursing,Challenge House,662.24, 07-Apr-2020
1179,Revenue,CAHD,North - Community based support,Permanent Nursing,Challenge House,1702.80, 07-Apr-2020
1180,Revenue,CAHD,North - Community based support,Permanent Nursing,Challenge House,1669.42, 07-Apr-2020
1181,Revenue,CAHD,South Glos Users in South Glos Homes,Permanent Nursing,Challenge House,662.24, 07-Apr-2020
1182,Revenue,CAHD,South Glos Users in South Glos Homes,Permanent Nursing,Challenge House,662.24, 07-Apr-2020
1183,Revenue,CAHD,North - Community based support,Permanent Nursing,Challenge House,1442.04, 07-Apr-2020
1184,Revenue,CAHD,North - Community based support,Permanent Nursing,Challenge House,1413.76, 07-Apr-2020
1185,Revenue,CAHD,South Glos Users in South Glos Homes,Permanent Nursing,Challenge House,662.24, 07-Apr-2020
1186,Revenue,CAHD,South Glos Users in South Glos Homes,Permanent Nursing,Challenge House,662.24, 07-Apr-2020
1187,Revenue,CAHD,Covid 19 -Adult Social Care,Permanent Residential,Challenge House,3427.39, 24-Apr-2020
1188,Revenue,CAHD,Covid 19 -Adult Social Care,Permanent Residential,Challenge House,3427.39, 24-Apr-2020
1189,Revenue,CAHD,CSC - Vinney Green Secure Unit,"Provisions (Food, etc)",Charles Saunders Limited,590.39, 09-Apr-2020
1190,Revenue,CAHD,CSC - Vinney Green Secure Unit,"Provisions (Food, etc)",Charles Saunders Limited,610.07, 16-Apr-2020
1191,Revenue,CAHD,Statemented Support Academies,Other Public Bodies,Charlton Wood Primary Academy,702.17, 28-Apr-2020
1192,Revenue,CAHD,Central - Commissioned Services,Other Small Contracts,Cherish Able Care Limited,2076.47, 07-Apr-2020
1193,Revenue,CAHD,South - Commissioned Services,Other Small Contracts,Cherish Able Care Limited,4319.38, 07-Apr-2020
1194,Revenue,CAHD,North - Community based support,Other Small Contracts,Cherish Able Care Limited,1092.63, 07-Apr-2020
1195,Revenue,CAHD,Central - Commissioned Services,Other Small Contracts,Cherish Able Care Limited,2076.47, 15-Apr-2020
1196,Revenue,CAHD,South - Commissioned Services,Other Small Contracts,Cherish Able Care Limited,3962.61, 15-Apr-2020
1197,Revenue,CAHD,North - Community based support,Other Small Contracts,Cherish Able Care Limited,1021.68, 15-Apr-2020
1198,Revenue,CAHD,Central - Commissioned Services,Other Small Contracts,Cherish Able Care Limited,2104.85, 20-Apr-2020
1199,Revenue,CAHD,South - Commissioned Services,Other Small Contracts,Cherish Able Care Limited,4449.80, 20-Apr-2020
1200,Revenue,CAHD,North - Community based support,Other Small Contracts,Cherish Able Care Limited,875.05, 20-Apr-2020
1201,Revenue,CAHD,Central - Commissioned Services,Other Small Contracts,Cherish Able Care Limited,2241.12, 24-Apr-2020
1202,Revenue,CAHD,South - Commissioned Services,Other Small Contracts,Cherish Able Care Limited,4557.45, 24-Apr-2020
1203,Revenue,CAHD,North - Community based support,Other Small Contracts,Cherish Able Care Limited,854.91, 24-Apr-2020
1204,Revenue,CAHD,Central - Commissioned Services,Other Small Contracts,Cherish Able Care Limited,2255.61, 30-Apr-2020
1205,Revenue,CAHD,South - Commissioned Services,Other Small Contracts,Cherish Able Care Limited,4552.62, 30-Apr-2020
1206,Revenue,CAHD,North - Community based support,Other Small Contracts,Cherish Able Care Limited,637.56, 30-Apr-2020
1207,Revenue,CAHD,Covid 19 -Adult Social Care,Other Small Contracts,Cherish Able Care Limited,3558.03, 24-Apr-2020
1208,Revenue,CAHD,Covid 19 -Adult Social Care,Other Small Contracts,Cherish Able Care Limited,875.24, 14-Apr-2020
1209,Revenue,CAHD,Covid 19 -Adult Social Care,Other Small Contracts,Cherish Able Care Limited,506.30, 22-Apr-2020
1210,Revenue,CAHD,Covid 19 -Adult Social Care,Other Small Contracts,Cherish Able Care Limited,3558.03, 24-Apr-2020
1211,Revenue,CAHD,18-25 Year Olds,Other Small Contracts,Cherry Orchards,3036.66, 20-Apr-2020
1212,Revenue,CAHD,South - Commissioned Services,Supported Living,Cherry Orchards,1286.56, 20-Apr-2020
1213,Revenue,CAHD,18-25 Year Olds,Other Small Contracts,Cherry Orchards,1589.28, 20-Apr-2020
1214,Revenue,CAHD,South - Commissioned Services,Other Small Contracts,Cherry Orchards,6390.72, 20-Apr-2020
1215,Revenue,CAHD,Covid 19 -Adult Social Care,Other Small Contracts,Cherry Orchards,1380.51, 24-Apr-2020
1216,Revenue,CAHD,Covid 19 -Adult Social Care,Other Small Contracts,Cherry Orchards,1380.51, 24-Apr-2020
1217,Revenue,CAHD,18-25 Year Olds,Supported Living,Cherry Orchards,857.82, 07-Apr-2020
1218,Revenue,CAHD,18-25 Year Olds,Supported Living,Cherry Orchards,841.00, 07-Apr-2020
1219,Revenue,CAHD,South - Commissioned Services,Supported Living,Cherry Orchards,1042.92, 07-Apr-2020
1220,Revenue,CAHD,South - Commissioned Services,Supported Living,Cherry Orchards,1022.48, 07-Apr-2020
1221,Revenue,CAHD,18-25 Year Olds,Supported Living,Cherry Orchards,1015.26, 07-Apr-2020
1222,Revenue,CAHD,18-25 Year Olds,Supported Living,Cherry Orchards,995.36, 07-Apr-2020
1223,Revenue,CAHD,North - Community based support,Supported Living,Cherry Orchards,521.48, 07-Apr-2020
1224,Revenue,CAHD,North - Community based support,Supported Living,Cherry Orchards,511.26, 07-Apr-2020
1225,Revenue,CAHD,S28A cases,Permanent Residential,Chescombe Trust Ltd,4979.86, 07-Apr-2020
1226,Revenue,CAHD,S28A cases,Permanent Residential,Chescombe Trust Ltd,4882.22, 07-Apr-2020
1227,Revenue,CAHD,Covid 19 -Adult Social Care,Permanent Residential,Chescombe Trust Ltd,1081.64, 24-Apr-2020
1228,Revenue,CAHD,Covid 19 -Adult Social Care,Permanent Residential,Chescombe Trust Ltd,1081.64, 24-Apr-2020
1229,Revenue,CAHD,18-25 Year Olds,Other Small Contracts,Cintre,78.08, 09-Apr-2020
1230,Revenue,CAHD,Central - Commissioned Services,Other Small Contracts,Cintre,273.28, 09-Apr-2020
1231,Revenue,CAHD,South - Commissioned Services,Other Small Contracts,Cintre,1015.04, 09-Apr-2020
1232,Revenue,CAHD,18-25 Year Olds,Other Small Contracts,Cintre,39.04, 20-Apr-2020
1233,Revenue,CAHD,Central - Commissioned Services,Other Small Contracts,Cintre,204.96, 20-Apr-2020
1234,Revenue,CAHD,South - Commissioned Services,Other Small Contracts,Cintre,897.92, 20-Apr-2020
1235,Revenue,CAHD,18-25 Year Olds,Other Small Contracts,Cintre,59.76, 23-Apr-2020
1236,Revenue,CAHD,Central - Commissioned Services,Other Small Contracts,Cintre,169.32, 23-Apr-2020
1237,Revenue,CAHD,South - Commissioned Services,Other Small Contracts,Cintre,916.32, 23-Apr-2020
1238,Revenue,CAHD,18-25 Year Olds,Other Small Contracts,Cintre,49.80, 30-Apr-2020
1239,Revenue,CAHD,Central - Commissioned Services,Other Small Contracts,Cintre,209.16, 30-Apr-2020
1240,Revenue,CAHD,South - Commissioned Services,Other Small Contracts,Cintre,916.32, 30-Apr-2020
1241,Revenue,CAHD,Covid 19 -Adult Social Care,Other Small Contracts,Cintre,657.62, 24-Apr-2020
1242,Revenue,CAHD,Covid 19 -Adult Social Care,Other Small Contracts,Cintre,657.62, 24-Apr-2020
1243,Revenue,CAHD,CSC - Fostering Carer Support,"Holidays, Outings & Visits",Circadian Trust,506.05, 08-Apr-2020
1244,Revenue,CAHD,Homelessness Contingency,Other Supplies & Services,Civica UK Limited,26462.50, 07-Apr-2020
1245,Revenue,CAHD,South - Commissioned Services,Permanent Residential,Clearwater Care,2640.14, 07-Apr-2020
1246,Revenue,CAHD,South - Commissioned Services,Permanent Residential,Clearwater Care,2640.14, 07-Apr-2020
1247,Revenue,CAHD,Covid 19 -Adult Social Care,Permanent Residential,Clearwater Care,573.60, 24-Apr-2020
1248,Revenue,CAHD,Covid 19 -Adult Social Care,Permanent Residential,Clearwater Care,573.60, 24-Apr-2020
1249,Revenue,CAHD,South - Commissioned Services,Permanent Residential,Cleeve Lodge,1880.06, 07-Apr-2020
1250,Revenue,CAHD,South - Commissioned Services,Permanent Residential,Cleeve Lodge,1843.20, 07-Apr-2020
1251,Revenue,CAHD,Central - Commissioned Services,Respite Planned - Residential,Cleeve Lodge,1414.29, 07-Apr-2020
1252,Revenue,CAHD,South - Commissioned Services,Permanent Residential,Cleeve Lodge,1880.06, 07-Apr-2020
1253,Revenue,CAHD,South - Commissioned Services,Permanent Residential,Cleeve Lodge,1843.20, 07-Apr-2020
1254,Revenue,CAHD,South - Commissioned Services,Permanent Residential,Cleeve Lodge,667.30, 07-Apr-2020
1255,Revenue,CAHD,South - Commissioned Services,Permanent Residential,Cleeve Lodge,654.22, 07-Apr-2020
1256,Revenue,CAHD,South - Commissioned Services,Permanent Residential,Cleeve Lodge,1490.06, 07-Apr-2020
1257,Revenue,CAHD,South - Commissioned Services,Permanent Residential,Cleeve Lodge,1460.84, 07-Apr-2020
1258,Revenue,CAHD,South - Commissioned Services,Respite Planned - Residential,Cleeve Lodge,1885.71, 07-Apr-2020
1259,Revenue,CAHD,South - Commissioned Services,Permanent Residential,Cleeve Lodge,2200.00, 07-Apr-2020
1260,Revenue,CAHD,South - Commissioned Services,Permanent Residential,Cleeve Lodge,2200.00, 07-Apr-2020
1261,Revenue,CAHD,South - Commissioned Services,Permanent Residential,Cleeve Lodge,2000.00, 07-Apr-2020
1262,Revenue,CAHD,South - Commissioned Services,Permanent Residential,Cleeve Lodge,2000.00, 07-Apr-2020
1263,Revenue,CAHD,North - Community based support,Respite Planned - Residential,Cleeve Lodge,2671.43, 07-Apr-2020
1264,Revenue,CAHD,North - Community based support,Respite Planned - Residential,Cleeve Lodge,2244.00, 07-Apr-2020
1265,Revenue,CAHD,North - Community based support,Respite Planned - Residential,Cleeve Lodge,2200.00, 07-Apr-2020
1266,Revenue,CAHD,South - Commissioned Services,Permanent Residential,Cleeve Lodge,2000.00, 07-Apr-2020
1267,Revenue,CAHD,South - Commissioned Services,Permanent Residential,Cleeve Lodge,2000.00, 07-Apr-2020
1268,Revenue,CAHD,South - Commissioned Services,Permanent Residential,Cleeve Lodge,1475.44, 07-Apr-2020
1269,Revenue,CAHD,South - Commissioned Services,Permanent Residential,Cleeve Lodge,1446.50, 07-Apr-2020
1270,Revenue,CAHD,South - Commissioned Services,Permanent Residential,Cleeve Lodge,1344.16, 07-Apr-2020
1271,Revenue,CAHD,South - Commissioned Services,Permanent Residential,Cleeve Lodge,1317.80, 07-Apr-2020
1272,Revenue,CAHD,Covid 19 -Adult Social Care,Permanent Residential,Cleeve Lodge,3276.67, 24-Apr-2020
1273,Revenue,CAHD,Covid 19 -Adult Social Care,Permanent Residential,Cleeve Lodge,3276.67, 24-Apr-2020
1274,Revenue,CAHD,North - Community based support,Permanent Nursing,Clevedon Court Nursing Home,1724.08, 07-Apr-2020
1275,Revenue,CAHD,North - Community based support,Permanent Nursing,Clevedon Court Nursing Home,1724.08, 07-Apr-2020
1276,Revenue,CAHD,Independent Special Placements - Pre 16,Other Private Contractors,Clifton College,8380.00, 15-Apr-2020
1277,Revenue,CAHD,Covid 19 -Adult Social Care,Other Small Contracts,Clover Health and Home Care Ltd,973.64, 24-Apr-2020
1278,Revenue,CAHD,Central - Commissioned Services,Other Small Contracts,Clover Health and Home Care Ltd,1677.96, 20-Apr-2020
1279,Revenue,CAHD,Central - Commissioned Services,Other Small Contracts,Clover Health and Home Care Ltd,509.76, 14-Apr-2020
1280,Revenue,CAHD,Central - Commissioned Services,Other Small Contracts,Clover Health and Home Care Ltd,509.76, 30-Apr-2020
1281,Revenue,CAHD,Central - Commissioned Services,Other Small Contracts,Clover Health and Home Care Ltd,3270.96, 20-Apr-2020
1282,Revenue,CAHD,Central - Commissioned Services,Other Small Contracts,Clover Health and Home Care Ltd,892.08, 14-Apr-2020
1283,Revenue,CAHD,Central - Commissioned Services,Other Small Contracts,Clover Health and Home Care Ltd,892.08, 27-Apr-2020
1284,Revenue,CAHD,Central - Commissioned Services,Other Small Contracts,Clover Health and Home Care Ltd,1423.08, 24-Apr-2020
1285,Revenue,CAHD,Covid 19 -Adult Social Care,Other Small Contracts,Clover Health and Home Care Ltd,973.64, 24-Apr-2020
1286,Revenue,CAHD,South - Commissioned Services,Permanent Residential,Collingwood Care Home,1441.38, 07-Apr-2020
1287,Revenue,CAHD,South - Commissioned Services,Permanent Residential,Collingwood Care Home,1413.12, 07-Apr-2020
1288,Revenue,CAHD,North - Community based support,Permanent Residential,Collingwood Care Home,1500.00, 07-Apr-2020
1289,Revenue,CAHD,North - Community based support,Permanent Residential,Collingwood Care Home,1500.00, 07-Apr-2020
1290,Revenue,CAHD,South - Commissioned Services,Permanent Residential,Collingwood Care Home,1277.18, 07-Apr-2020
1291,Revenue,CAHD,South - Commissioned Services,Permanent Residential,Collingwood Care Home,1252.14, 07-Apr-2020
1292,Revenue,CAHD,Covid 19 -Adult Social Care,Permanent Residential,Collingwood Care Home,916.37, 24-Apr-2020
1293,Revenue,CAHD,Covid 19 -Adult Social Care,Permanent Residential,Collingwood Care Home,916.37, 24-Apr-2020
1294,Revenue,CAHD,South - Commissioned Services,Permanent Residential,Community Theraputic Services,3946.70, 07-Apr-2020
1295,Revenue,CAHD,Jointly Funded H&SC Packages,Permanent Residential,Community Theraputic Services,2437.92, 07-Apr-2020
1296,Revenue,CAHD,South - Commissioned Services,Permanent Residential,Community Theraputic Services,3946.70, 07-Apr-2020
1297,Revenue,CAHD,Jointly Funded H&SC Packages,Permanent Residential,Community Theraputic Services,2437.92, 07-Apr-2020
1298,Revenue,CAHD,Jointly Funded H&SC Packages,Permanent Residential,Community Theraputic Services,1013.76, 07-Apr-2020
1299,Revenue,CAHD,North - Community based support,Permanent Residential,Community Theraputic Services,4059.88, 07-Apr-2020
1300,Revenue,CAHD,North - Community based support,Permanent Residential,Community Theraputic Services,4059.88, 07-Apr-2020
1301,Revenue,CAHD,Jointly Funded H&SC Packages,Permanent Residential,Community Theraputic Services,1013.76, 07-Apr-2020
1302,Revenue,CAHD,Covid 19 -Adult Social Care,Permanent Residential,Community Theraputic Services,1739.52, 24-Apr-2020
1303,Revenue,CAHD,Covid 19 -Adult Social Care,Permanent Residential,Community Theraputic Services,1739.52, 24-Apr-2020
1304,Revenue,CAHD,Bed and Breakfast,Bed & Breakfast,Connolly & Callaghan Limited,457.80, 08-Apr-2020
1305,Revenue,CAHD,Bed and Breakfast,Bed & Breakfast,Connolly & Callaghan Limited,641.90, 07-Apr-2020
1306,Revenue,CAHD,Bed and Breakfast,Bed & Breakfast,Connolly & Callaghan Limited,593.60, 08-Apr-2020
1307,Revenue,CAHD,Bed and Breakfast,Bed & Breakfast,Connolly & Callaghan Limited,422.80, 07-Apr-2020
1308,Revenue,CAHD,Bed and Breakfast,Bed & Breakfast,Connolly & Callaghan Limited,764.40, 07-Apr-2020
1309,Revenue,CAHD,Bed and Breakfast,Bed & Breakfast,Connolly & Callaghan Limited,422.80, 08-Apr-2020
1310,Revenue,CAHD,Bed and Breakfast,Bed & Breakfast,Connolly & Callaghan Limited,727.30, 07-Apr-2020
1311,Revenue,CAHD,Bed and Breakfast,Bed & Breakfast,Connolly & Callaghan Limited,548.80, 07-Apr-2020
1312,Revenue,CAHD,Bed and Breakfast,Bed & Breakfast,Connolly & Callaghan Limited,508.80, 07-Apr-2020
1313,Revenue,CAHD,Bed and Breakfast,Bed & Breakfast,Connolly & Callaghan Limited,422.80, 07-Apr-2020
1314,Revenue,CAHD,Bed and Breakfast,Bed & Breakfast,Connolly & Callaghan Limited,686.70, 07-Apr-2020
1315,Revenue,CAHD,Bed and Breakfast,Bed & Breakfast,Connolly & Callaghan Limited,679.00, 08-Apr-2020
1316,Revenue,CAHD,Bed and Breakfast,Bed & Breakfast,Connolly & Callaghan Limited,463.40, 08-Apr-2020
1317,Revenue,CAHD,Bed and Breakfast,Bed & Breakfast,Connolly & Callaghan Limited,463.40, 07-Apr-2020
1318,Revenue,CAHD,Bed and Breakfast,Bed & Breakfast,Connolly & Callaghan Limited,422.80, 08-Apr-2020
1319,Revenue,CAHD,Bed and Breakfast,Bed & Breakfast,Connolly & Callaghan Limited,457.80, 08-Apr-2020
1320,Revenue,CAHD,Bed and Breakfast,Bed & Breakfast,Connolly & Callaghan Limited,641.90, 08-Apr-2020
1321,Revenue,CAHD,Bed and Breakfast,Bed & Breakfast,Connolly & Callaghan Limited,593.60, 21-Apr-2020
1322,Revenue,CAHD,Bed and Breakfast,Bed & Breakfast,Connolly & Callaghan Limited,422.80, 08-Apr-2020
1323,Revenue,CAHD,Bed and Breakfast,Bed & Breakfast,Connolly & Callaghan Limited,422.80, 17-Apr-2020
1324,Revenue,CAHD,Bed and Breakfast,Bed & Breakfast,Connolly & Callaghan Limited,764.40, 08-Apr-2020
1325,Revenue,CAHD,Bed and Breakfast,Bed & Breakfast,Connolly & Callaghan Limited,727.30, 08-Apr-2020
1326,Revenue,CAHD,Bed and Breakfast,Bed & Breakfast,Connolly & Callaghan Limited,548.80, 08-Apr-2020
1327,Revenue,CAHD,Bed and Breakfast,Bed & Breakfast,Connolly & Callaghan Limited,593.60, 08-Apr-2020
1328,Revenue,CAHD,Bed and Breakfast,Bed & Breakfast,Connolly & Callaghan Limited,422.80, 08-Apr-2020
1329,Revenue,CAHD,Bed and Breakfast,Bed & Breakfast,Connolly & Callaghan Limited,686.70, 08-Apr-2020
1330,Revenue,CAHD,Bed and Breakfast,Bed & Breakfast,Connolly & Callaghan Limited,679.00, 08-Apr-2020
1331,Revenue,CAHD,Bed and Breakfast,Bed & Breakfast,Connolly & Callaghan Limited,463.40, 08-Apr-2020
1332,Revenue,CAHD,Bed and Breakfast,Bed & Breakfast,Connolly & Callaghan Limited,463.40, 21-Apr-2020
1333,Revenue,CAHD,Bed and Breakfast,Bed & Breakfast,Connolly & Callaghan Limited,422.80, 08-Apr-2020
1334,Revenue,CAHD,Bed and Breakfast,Bed & Breakfast,Connolly & Callaghan Limited,457.80, 21-Apr-2020
1335,Revenue,CAHD,Bed and Breakfast,Bed & Breakfast,Connolly & Callaghan Limited,641.90, 16-Apr-2020
1336,Revenue,CAHD,Bed and Breakfast,Bed & Breakfast,Connolly & Callaghan Limited,593.60, 16-Apr-2020
1337,Revenue,CAHD,Bed and Breakfast,Bed & Breakfast,Connolly & Callaghan Limited,422.80, 21-Apr-2020
1338,Revenue,CAHD,Bed and Breakfast,Bed & Breakfast,Connolly & Callaghan Limited,422.80, 16-Apr-2020
1339,Revenue,CAHD,Bed and Breakfast,Bed & Breakfast,Connolly & Callaghan Limited,764.40, 16-Apr-2020
1340,Revenue,CAHD,Bed and Breakfast,Bed & Breakfast,Connolly & Callaghan Limited,727.30, 16-Apr-2020
1341,Revenue,CAHD,Bed and Breakfast,Bed & Breakfast,Connolly & Callaghan Limited,548.80, 16-Apr-2020
1342,Revenue,CAHD,Bed and Breakfast,Bed & Breakfast,Connolly & Callaghan Limited,593.60, 17-Apr-2020
1343,Revenue,CAHD,Bed and Breakfast,Bed & Breakfast,Connolly & Callaghan Limited,422.80, 17-Apr-2020
1344,Revenue,CAHD,Bed and Breakfast,Bed & Breakfast,Connolly & Callaghan Limited,686.70, 16-Apr-2020
1345,Revenue,CAHD,Bed and Breakfast,Bed & Breakfast,Connolly & Callaghan Limited,679.00, 16-Apr-2020
1346,Revenue,CAHD,Bed and Breakfast,Bed & Breakfast,Connolly & Callaghan Limited,463.40, 16-Apr-2020
1347,Revenue,CAHD,Bed and Breakfast,Bed & Breakfast,Connolly & Callaghan Limited,463.40, 21-Apr-2020
1348,Revenue,CAHD,Bed and Breakfast,Bed & Breakfast,Connolly & Callaghan Limited,422.80, 16-Apr-2020
1349,Revenue,CAHD,Bed and Breakfast,Bed & Breakfast,Connolly & Callaghan Limited,457.80, 20-Apr-2020
1350,Revenue,CAHD,Bed and Breakfast,Bed & Breakfast,Connolly & Callaghan Limited,593.60, 20-Apr-2020
1351,Revenue,CAHD,Bed and Breakfast,Bed & Breakfast,Connolly & Callaghan Limited,422.80, 17-Apr-2020
1352,Revenue,CAHD,Bed and Breakfast,Bed & Breakfast,Connolly & Callaghan Limited,422.80, 17-Apr-2020
1353,Revenue,CAHD,Bed and Breakfast,Bed & Breakfast,Connolly & Callaghan Limited,764.40, 17-Apr-2020
1354,Revenue,CAHD,Bed and Breakfast,Bed & Breakfast,Connolly & Callaghan Limited,727.30, 21-Apr-2020
1355,Revenue,CAHD,Bed and Breakfast,Bed & Breakfast,Connolly & Callaghan Limited,593.60, 17-Apr-2020
1356,Revenue,CAHD,Bed and Breakfast,Bed & Breakfast,Connolly & Callaghan Limited,422.80, 17-Apr-2020
1357,Revenue,CAHD,Bed and Breakfast,Bed & Breakfast,Connolly & Callaghan Limited,686.70, 17-Apr-2020
1358,Revenue,CAHD,Bed and Breakfast,Bed & Breakfast,Connolly & Callaghan Limited,679.00, 17-Apr-2020
1359,Revenue,CAHD,Bed and Breakfast,Bed & Breakfast,Connolly & Callaghan Limited,463.40, 20-Apr-2020
1360,Revenue,CAHD,Bed and Breakfast,Bed & Breakfast,Connolly & Callaghan Limited,463.40, 21-Apr-2020
1361,Revenue,CAHD,Bed and Breakfast,Bed & Breakfast,Connolly & Callaghan Limited,422.80, 20-Apr-2020
1362,Revenue,CAHD,Bed and Breakfast,Bed & Breakfast,Connolly & Callaghan Limited,457.80, 30-Apr-2020
1363,Revenue,CAHD,Bed and Breakfast,Bed & Breakfast,Connolly & Callaghan Limited,593.60, 30-Apr-2020
1364,Revenue,CAHD,Bed and Breakfast,Bed & Breakfast,Connolly & Callaghan Limited,422.80, 28-Apr-2020
1365,Revenue,CAHD,Bed and Breakfast,Bed & Breakfast,Connolly & Callaghan Limited,764.40, 28-Apr-2020
1366,Revenue,CAHD,Bed and Breakfast,Bed & Breakfast,Connolly & Callaghan Limited,727.30, 28-Apr-2020
1367,Revenue,CAHD,Bed and Breakfast,Bed & Breakfast,Connolly & Callaghan Limited,593.60, 28-Apr-2020
1368,Revenue,CAHD,Bed and Breakfast,Bed & Breakfast,Connolly & Callaghan Limited,422.80, 28-Apr-2020
1369,Revenue,CAHD,Bed and Breakfast,Bed & Breakfast,Connolly & Callaghan Limited,686.70, 28-Apr-2020
1370,Revenue,CAHD,Bed and Breakfast,Bed & Breakfast,Connolly & Callaghan Limited,679.00, 28-Apr-2020
1371,Revenue,CAHD,Bed and Breakfast,Bed & Breakfast,Connolly & Callaghan Limited,463.40, 28-Apr-2020
1372,Revenue,CAHD,Bed and Breakfast,Bed & Breakfast,Connolly & Callaghan Limited,463.40, 28-Apr-2020
1373,Revenue,CAHD,Bed and Breakfast,Bed & Breakfast,Connolly & Callaghan Limited,539.00, 02-Apr-2020
1374,Revenue,CAHD,Bed and Breakfast,Bed & Breakfast,Connolly & Callaghan Limited,539.00, 02-Apr-2020
1375,Revenue,CAHD,Bed and Breakfast,Bed & Breakfast,Connolly & Callaghan Limited,665.00, 01-Apr-2020
1376,Revenue,CAHD,Bed and Breakfast,Bed & Breakfast,Connolly & Callaghan Limited,455.00, 02-Apr-2020
1377,Revenue,CAHD,Bed and Breakfast,Bed & Breakfast,Connolly & Callaghan Limited,457.80, 01-Apr-2020
1378,Revenue,CAHD,Bed and Breakfast,Bed & Breakfast,Connolly & Callaghan Limited,422.80, 01-Apr-2020
1379,Revenue,CAHD,Bed and Breakfast,Bed & Breakfast,Connolly & Callaghan Limited,548.80, 01-Apr-2020
1380,Revenue,CAHD,Bed and Breakfast,Bed & Breakfast,Connolly & Callaghan Limited,422.80, 08-Apr-2020
1381,Revenue,CAHD,Bed and Breakfast,Bed & Breakfast,Connolly & Callaghan Limited,679.00, 01-Apr-2020
1382,Revenue,CAHD,Bed and Breakfast,Bed & Breakfast,Connolly & Callaghan Limited,457.80, 01-Apr-2020
1383,Revenue,CAHD,Bed and Breakfast,Bed & Breakfast,Connolly & Callaghan Limited,422.80, 01-Apr-2020
1384,Revenue,CAHD,Bed and Breakfast,Bed & Breakfast,Connolly & Callaghan Limited,548.80, 01-Apr-2020
1385,Revenue,CAHD,Bed and Breakfast,Bed & Breakfast,Connolly & Callaghan Limited,422.80, 17-Apr-2020
1386,Revenue,CAHD,Bed and Breakfast,Bed & Breakfast,Connolly & Callaghan Limited,457.80, 01-Apr-2020
1387,Revenue,CAHD,Bed and Breakfast,Bed & Breakfast,Connolly & Callaghan Limited,764.40, 02-Apr-2020
1388,Revenue,CAHD,Bed and Breakfast,Bed & Breakfast,Connolly & Callaghan Limited,548.80, 01-Apr-2020
1389,Revenue,CAHD,Bed and Breakfast,Bed & Breakfast,Connolly & Callaghan Limited,422.80, 17-Apr-2020
1390,Revenue,CAHD,Bed and Breakfast,Bed & Breakfast,Connolly & Callaghan Limited,686.70, 02-Apr-2020
1391,Revenue,CAHD,Bed and Breakfast,Bed & Breakfast,Connolly & Callaghan Limited,679.00, 01-Apr-2020
1392,Revenue,CAHD,Bed and Breakfast,Bed & Breakfast,Connolly & Callaghan Limited,463.40, 02-Apr-2020
1393,Revenue,CAHD,Bed and Breakfast,Bed & Breakfast,Connolly & Callaghan Limited,463.40, 08-Apr-2020
1394,Revenue,CAHD,Bed and Breakfast,Bed & Breakfast,Connolly & Callaghan Limited,422.80, 02-Apr-2020
1395,Revenue,CAHD,CSC - Fostering Carer Support,Agency Staff (Admin/Support Staff) Pay,Core Assets Expert Services Ltd T/A Carter Brown,3204.54, 06-Apr-2020
1396,Revenue,CAHD,CSC - Fostering Carer Support,Agency Staff (Admin/Support Staff) Pay,Core Assets Expert Services Ltd T/A Carter Brown,2400.00, 07-Apr-2020
1397,Revenue,CAHD,Parent Partnership,Fees - General,Cornwall County Council,3250.00, 14-Apr-2020
1398,Revenue,CAHD,Independent Special Placements - Post 16,Other Private Contractors,Cotswold Chine School,47985.52, 29-Apr-2020
1399,Revenue,CAHD,CSC - Residential Placements,Permanent Residential,Cotswold Chine School,7571.68, 29-Apr-2020
1400,Revenue,CAHD,CSC - Residential Placements,Permanent Residential,Cotswold Chine School,5408.30, 29-Apr-2020
1401,Revenue,CAHD,Alexandra Way,Cleaning & Domestic Services,Countrywide Healthcare Supplies Ltd,550.00, 29-Apr-2020
1402,Revenue,CAHD,North - Community based support,Respite Planned - Residential,Court House Residential C.H.,3400.00, 07-Apr-2020
1403,Revenue,CAHD,North - Community based support,Respite Planned - Residential,Court House Residential C.H.,2550.00, 07-Apr-2020
1404,Revenue,CAHD,North - Community based support,Respite Planned - Residential,Court House Residential C.H.,1942.86, 07-Apr-2020
1405,Revenue,CAHD,Tobacco Control,Other Small Contracts,Courtside Surgery,755.00, 08-Apr-2020
1406,Revenue,CAHD,South - Commissioned Services,Supported Living,Craegmoor SYI Bristol & Wiltshire Priory,1078.44, 07-Apr-2020
1407,Revenue,CAHD,South - Commissioned Services,Supported Living,Craegmoor SYI Bristol & Wiltshire Priory,1248.72, 07-Apr-2020
1408,Revenue,CAHD,South - Commissioned Services,Supported Living,Craegmoor SYI Bristol & Wiltshire Priory,1173.04, 01-Apr-2020
1409,Revenue,CAHD,Positive Activities Subsidy for Young Pe,Training Expenses,Creative Youth Network,1000.00, 06-Apr-2020
1410,Revenue,CAHD,Mental Health and Emotional Wellbeing,Project Funding,Creative Youth Network,2236.06, 06-Apr-2020
1411,Revenue,CAHD,Positive Activities Subsidy for Young Pe,Training Expenses,Creative Youth Network,1000.00, 09-Apr-2020
1412,Revenue,CAHD,S28A cases,Permanent Residential,Creedy Court,5298.98, 07-Apr-2020
1413,Revenue,CAHD,S28A cases,Permanent Residential,Creedy Court,5298.98, 07-Apr-2020
1414,Revenue,CAHD,S28A cases,Permanent Residential,Creedy Court,4452.46, 07-Apr-2020
1415,Revenue,CAHD,S28A cases,Permanent Residential,Creedy Court,4452.46, 07-Apr-2020
1416,Revenue,CAHD,Covid 19 -Adult Social Care,Permanent Residential,Creedy Court,2118.62, 24-Apr-2020
1417,Revenue,CAHD,Covid 19 -Adult Social Care,Permanent Residential,Creedy Court,2118.62, 24-Apr-2020
1418,Revenue,CAHD,North - Community based support,Permanent Residential,Creedy Court,7027.00, 07-Apr-2020
1419,Revenue,CAHD,North - Community based support,Permanent Residential,Creedy Court,7027.00, 07-Apr-2020
1420,Revenue,CAHD,Covid 19 -Adult Social Care,Permanent Residential,Creedy Court,1526.70, 24-Apr-2020
1421,Revenue,CAHD,Covid 19 -Adult Social Care,Permanent Residential,Creedy Court,1526.70, 24-Apr-2020
1422,Revenue,CAHD,Training Budget - Children`s Social Serv,Training Expenses,Cruidin Training and Consultancy Ltd,2107.06, 20-Apr-2020
1423,Revenue,CAHD,Health Inequalities,Other Supplies & Services,D H I,500.00, 02-Apr-2020
1424,Revenue,CAHD,CSC - Vinney Green Secure Unit,R & M by Departments,Dale Power Solutions Ltd,2239.06, 08-Apr-2020
1425,Revenue,CAHD,South - Commissioned Services,Permanent Residential,Daneswood,6134.40, 07-Apr-2020
1426,Revenue,CAHD,South - Commissioned Services,Permanent Residential,Daneswood,6134.40, 07-Apr-2020
1427,Revenue,CAHD,South - Commissioned Services,Day Care / Social Activities,Daneswood,706.64, 07-Apr-2020
1428,Revenue,CAHD,South - Commissioned Services,Day Care / Social Activities,Daneswood,720.80, 07-Apr-2020
1429,Revenue,CAHD,North - Community based support,Permanent Residential,Daneswood,6789.84, 07-Apr-2020
1430,Revenue,CAHD,North - Community based support,Permanent Residential,Daneswood,6789.84, 07-Apr-2020
1431,Revenue,CAHD,Covid 19 -Adult Social Care,Permanent Residential,Daneswood,2807.95, 24-Apr-2020
1432,Revenue,CAHD,Covid 19 -Adult Social Care,Permanent Residential,Daneswood,2807.95, 24-Apr-2020
1433,Revenue,CAHD,North - S117,Permanent Nursing,Danshell Healthcare Group,5436.14, 07-Apr-2020
1434,Revenue,CAHD,Jointly Funded H&SC Packages,Permanent Nursing,Danshell Healthcare Group,806.64, 07-Apr-2020
1435,Revenue,CAHD,North - S117,Permanent Nursing,Danshell Healthcare Group,5436.14, 07-Apr-2020
1436,Revenue,CAHD,Jointly Funded H&SC Packages,Permanent Nursing,Danshell Healthcare Group,806.64, 07-Apr-2020
1437,Revenue,CAHD,Covid 19 -Adult Social Care,Permanent Residential,Danshell Healthcare Group,1181.07, 24-Apr-2020
1438,Revenue,CAHD,Covid 19 -Adult Social Care,Permanent Residential,Danshell Healthcare Group,1181.07, 24-Apr-2020
1439,Revenue,CAHD,Learning Difficulties PSL,Other Supplies & Services,Individual,2400.00, 22-Apr-2020
1440,Revenue,CAHD,Training Budget - Children`s Social Serv,Training Expenses,Dartington Hall Trust,4000.00, 07-Apr-2020
1441,Revenue,CAHD,NTS Grant - Trainee Social Wor,Training Expenses,Dartington Hall Trust,7625.00, 07-Apr-2020
1442,Revenue,CAHD,South - Commissioned Services,Day Care / Social Activities,Deafblind Uk,1369.47, 24-Apr-2020
1443,Revenue,CAHD,North - Community based support,Day Care / Social Activities,Deafblind Uk,573.00, 24-Apr-2020
1444,Revenue,CAHD,North - Community based support,Day Care / Social Activities,Deafblind Uk,550.08, 24-Apr-2020
1445,Revenue,CAHD,South Glos Users in South Glos Homes,Permanent Nursing,Deerhurst Nursing Home,662.24, 07-Apr-2020
1446,Revenue,CAHD,South - Commissioned Services,Permanent Nursing,Deerhurst Nursing Home,1940.70, 07-Apr-2020
1447,Revenue,CAHD,South - Commissioned Services,Permanent Nursing,Deerhurst Nursing Home,1902.64, 07-Apr-2020
1448,Revenue,CAHD,South Glos Users in South Glos Homes,Permanent Nursing,Deerhurst Nursing Home,662.24, 07-Apr-2020
1449,Revenue,CAHD,South Glos Users in South Glos Homes,Permanent Nursing,Deerhurst Nursing Home,662.24, 07-Apr-2020
1450,Revenue,CAHD,South Glos Users in South Glos Homes,Permanent Nursing,Deerhurst Nursing Home,662.24, 07-Apr-2020
1451,Revenue,CAHD,South - Commissioned Services,Permanent Nursing,Deerhurst Nursing Home,2049.26, 07-Apr-2020
1452,Revenue,CAHD,South - Commissioned Services,Permanent Nursing,Deerhurst Nursing Home,2009.08, 07-Apr-2020
1453,Revenue,CAHD,South Glos Users in South Glos Homes,Permanent Nursing,Deerhurst Nursing Home,662.24, 07-Apr-2020
1454,Revenue,CAHD,South - Commissioned Services,Permanent Nursing,Deerhurst Nursing Home,2003.00, 07-Apr-2020
1455,Revenue,CAHD,South - Commissioned Services,Permanent Nursing,Deerhurst Nursing Home,2003.00, 07-Apr-2020
1456,Revenue,CAHD,South Glos Users in South Glos Homes,Permanent Nursing,Deerhurst Nursing Home,662.24, 07-Apr-2020
1457,Revenue,CAHD,North - Community based support,Permanent Nursing,Deerhurst Nursing Home,1945.60, 07-Apr-2020
1458,Revenue,CAHD,North - Community based support,Permanent Nursing,Deerhurst Nursing Home,1945.60, 07-Apr-2020
1459,Revenue,CAHD,South - Commissioned Services,Permanent Nursing,Deerhurst Nursing Home,1982.56, 07-Apr-2020
1460,Revenue,CAHD,South - Commissioned Services,Permanent Nursing,Deerhurst Nursing Home,1982.56, 07-Apr-2020
1461,Revenue,CAHD,South Glos Users in South Glos Homes,Permanent Nursing,Deerhurst Nursing Home,662.24, 07-Apr-2020
1462,Revenue,CAHD,South - Commissioned Services,Permanent Nursing,Deerhurst Nursing Home,1984.52, 07-Apr-2020
1463,Revenue,CAHD,South - Commissioned Services,Permanent Nursing,Deerhurst Nursing Home,1945.60, 07-Apr-2020
1464,Revenue,CAHD,South Glos Users in South Glos Homes,Permanent Nursing,Deerhurst Nursing Home,662.24, 07-Apr-2020
1465,Revenue,CAHD,South - Commissioned Services,Permanent Nursing,Deerhurst Nursing Home,2044.04, 07-Apr-2020
1466,Revenue,CAHD,South - Commissioned Services,Permanent Nursing,Deerhurst Nursing Home,2003.96, 07-Apr-2020
1467,Revenue,CAHD,South Glos Users in South Glos Homes,Permanent Nursing,Deerhurst Nursing Home,662.24, 07-Apr-2020
1468,Revenue,CAHD,South - bed purchasing and direct  payments,Permanent Nursing,Deerhurst Nursing Home,2042.04, 07-Apr-2020
1469,Revenue,CAHD,South - bed purchasing and direct  payments,Permanent Nursing,Deerhurst Nursing Home,2002.00, 07-Apr-2020
1470,Revenue,CAHD,South Glos Users in South Glos Homes,Permanent Nursing,Deerhurst Nursing Home,662.24, 07-Apr-2020
1471,Revenue,CAHD,South Glos Users in South Glos Homes,Permanent Nursing,Deerhurst Nursing Home,662.24, 07-Apr-2020
1472,Revenue,CAHD,South Glos Users in South Glos Homes,Permanent Nursing,Deerhurst Nursing Home,662.24, 07-Apr-2020
1473,Revenue,CAHD,North - Community based support,Permanent Nursing,Deerhurst Nursing Home,2044.04, 07-Apr-2020
1474,Revenue,CAHD,North - Community based support,Permanent Nursing,Deerhurst Nursing Home,2003.96, 07-Apr-2020
1475,Revenue,CAHD,South Glos Users in South Glos Homes,Permanent Nursing,Deerhurst Nursing Home,662.24, 07-Apr-2020
1476,Revenue,CAHD,South - Commissioned Services,Permanent Nursing,Deerhurst Nursing Home,2043.04, 07-Apr-2020
1477,Revenue,CAHD,South - Commissioned Services,Permanent Nursing,Deerhurst Nursing Home,2002.98, 07-Apr-2020
1478,Revenue,CAHD,South Glos Users in South Glos Homes,Permanent Nursing,Deerhurst Nursing Home,662.24, 07-Apr-2020
1479,Revenue,CAHD,South Glos Users in South Glos Homes,Permanent Nursing,Deerhurst Nursing Home,662.24, 07-Apr-2020
1480,Revenue,CAHD,South - Commissioned Services,Permanent Nursing,Deerhurst Nursing Home,1984.52, 07-Apr-2020
1481,Revenue,CAHD,South - Commissioned Services,Permanent Nursing,Deerhurst Nursing Home,1945.60, 07-Apr-2020
1482,Revenue,CAHD,South Glos Users in South Glos Homes,Permanent Nursing,Deerhurst Nursing Home,662.24, 07-Apr-2020
1483,Revenue,CAHD,South Glos Users in South Glos Homes,Permanent Nursing,Deerhurst Nursing Home,662.24, 07-Apr-2020
1484,Revenue,CAHD,South Glos Users in South Glos Homes,Permanent Nursing,Deerhurst Nursing Home,662.24, 07-Apr-2020
1485,Revenue,CAHD,South Glos Users in South Glos Homes,Permanent Nursing,Deerhurst Nursing Home,662.24, 07-Apr-2020
1486,Revenue,CAHD,South Glos Users in South Glos Homes,Permanent Nursing,Deerhurst Nursing Home,662.24, 07-Apr-2020
1487,Revenue,CAHD,South Glos Users in South Glos Homes,Permanent Nursing,Deerhurst Nursing Home,662.24, 07-Apr-2020
1488,Revenue,CAHD,South Glos Users in South Glos Homes,Permanent Nursing,Deerhurst Nursing Home,662.24, 07-Apr-2020
1489,Revenue,CAHD,South Glos Users in South Glos Homes,Permanent Nursing,Deerhurst Nursing Home,662.24, 07-Apr-2020
1490,Revenue,CAHD,South Glos Users in South Glos Homes,Permanent Nursing,Deerhurst Nursing Home,662.24, 07-Apr-2020
1491,Revenue,CAHD,South Glos Users in South Glos Homes,Permanent Nursing,Deerhurst Nursing Home,662.24, 07-Apr-2020
1492,Revenue,CAHD,North - Community based support,Permanent Nursing,Deerhurst Nursing Home,2003.00, 07-Apr-2020
1493,Revenue,CAHD,North - Community based support,Permanent Nursing,Deerhurst Nursing Home,2003.00, 07-Apr-2020
1494,Revenue,CAHD,South Glos Users in South Glos Homes,Permanent Nursing,Deerhurst Nursing Home,662.24, 07-Apr-2020
1495,Revenue,CAHD,South - Commissioned Services,Permanent Nursing,Deerhurst Nursing Home,2002.62, 07-Apr-2020
1496,Revenue,CAHD,South - Commissioned Services,Permanent Nursing,Deerhurst Nursing Home,2042.68, 07-Apr-2020
1497,Revenue,CAHD,South Glos Users in South Glos Homes,Permanent Nursing,Deerhurst Nursing Home,662.24, 07-Apr-2020
1498,Revenue,CAHD,South Glos Users in South Glos Homes,Permanent Nursing,Deerhurst Nursing Home,662.24, 07-Apr-2020
1499,Revenue,CAHD,South Glos Users in South Glos Homes,Permanent Nursing,Deerhurst Nursing Home,3098.34, 07-Apr-2020
1500,Revenue,CAHD,South Glos Users in South Glos Homes,Permanent Nursing,Deerhurst Nursing Home,662.24, 07-Apr-2020
1501,Revenue,CAHD,South - Commissioned Services,Permanent Nursing,Deerhurst Nursing Home,2003.00, 07-Apr-2020
1502,Revenue,CAHD,South - Commissioned Services,Permanent Nursing,Deerhurst Nursing Home,2003.00, 07-Apr-2020
1503,Revenue,CAHD,South Glos Users in South Glos Homes,Permanent Nursing,Deerhurst Nursing Home,662.24, 07-Apr-2020
1504,Revenue,CAHD,South Glos Users in South Glos Homes,Permanent Nursing,Deerhurst Nursing Home,662.24, 07-Apr-2020
1505,Revenue,CAHD,South - Commissioned Services,Permanent Nursing,Deerhurst Nursing Home,2003.00, 07-Apr-2020
1506,Revenue,CAHD,South - Commissioned Services,Permanent Nursing,Deerhurst Nursing Home,2003.00, 07-Apr-2020
1507,Revenue,CAHD,South - Commissioned Services,Permanent Residential,Deerhurst Nursing Home,1945.60, 07-Apr-2020
1508,Revenue,CAHD,South - Commissioned Services,Permanent Residential,Deerhurst Nursing Home,1945.60, 07-Apr-2020
1509,Revenue,CAHD,South Glos Users in South Glos Homes,Permanent Nursing,Deerhurst Nursing Home,662.24, 07-Apr-2020
1510,Revenue,CAHD,North - Community based support,Permanent Nursing,Deerhurst Nursing Home,1547.44, 07-Apr-2020
1511,Revenue,CAHD,North - Community based support,Permanent Nursing,Deerhurst Nursing Home,1517.10, 07-Apr-2020
1512,Revenue,CAHD,South Glos Users in South Glos Homes,Permanent Nursing,Deerhurst Nursing Home,662.24, 07-Apr-2020
1513,Revenue,CAHD,South Glos Users in South Glos Homes,Permanent Nursing,Deerhurst Nursing Home,662.24, 07-Apr-2020
1514,Revenue,CAHD,South Glos Users in South Glos Homes,Permanent Nursing,Deerhurst Nursing Home,662.24, 07-Apr-2020
1515,Revenue,CAHD,South Glos Users in South Glos Homes,Permanent Nursing,Deerhurst Nursing Home,662.24, 07-Apr-2020
1516,Revenue,CAHD,South Glos Users in South Glos Homes,Permanent Nursing,Deerhurst Nursing Home,662.24, 07-Apr-2020
1517,Revenue,CAHD,South - Commissioned Services,Permanent Nursing,Deerhurst Nursing Home,2044.68, 07-Apr-2020
1518,Revenue,CAHD,South - Commissioned Services,Permanent Nursing,Deerhurst Nursing Home,2004.58, 07-Apr-2020
1519,Revenue,CAHD,South Glos Users in South Glos Homes,Permanent Nursing,Deerhurst Nursing Home,662.24, 07-Apr-2020
1520,Revenue,CAHD,Covid 19 -Adult Social Care,Permanent Residential,Deerhurst Nursing Home,4727.86, 24-Apr-2020
1521,Revenue,CAHD,Covid 19 -Adult Social Care,Permanent Residential,Deerhurst Nursing Home,853.44, 24-Apr-2020
1522,Revenue,CAHD,Covid 19 -Adult Social Care,Permanent Residential,Deerhurst Nursing Home,2163.41, 24-Apr-2020
1523,Revenue,CAHD,Covid 19 -Adult Social Care,Permanent Residential,Deerhurst Nursing Home,4727.86, 24-Apr-2020
1524,Revenue,CAHD,Covid 19 -Adult Social Care,Permanent Residential,Deerhurst Nursing Home,853.44, 24-Apr-2020
1525,Revenue,CAHD,Covid 19 -Adult Social Care,Permanent Residential,Deerhurst Nursing Home,2163.41, 24-Apr-2020
1526,Revenue,CAHD,Post 16 High Needs Placements,Other Private Contractors,Derwen College,17183.73, 15-Apr-2020
1527,Revenue,CAHD,South - Commissioned Services,Supported Living,Design House,1357.22, 07-Apr-2020
1528,Revenue,CAHD,South - Commissioned Services,Supported Living,Design House,1330.60, 07-Apr-2020
1529,Revenue,CAHD,South - Commissioned Services,Other Small Contracts,Design House,1562.14, 07-Apr-2020
1530,Revenue,CAHD,South - Commissioned Services,Supported Living,Design House,1531.50, 07-Apr-2020
1531,Revenue,CAHD,South - Commissioned Services,Supported Living,Design House,1597.70, 07-Apr-2020
1532,Revenue,CAHD,South - Commissioned Services,Supported Living,Design House,1566.38, 07-Apr-2020
1533,Revenue,CAHD,South - Commissioned Services,Supported Living,Design House,1526.58, 07-Apr-2020
1534,Revenue,CAHD,South - Commissioned Services,Supported Living,Design House,1496.64, 07-Apr-2020
1535,Revenue,CAHD,Central - Commissioned Services,Day Care / Social Activities,Design House,1466.40, 07-Apr-2020
1536,Revenue,CAHD,Central - Commissioned Services,Day Care / Social Activities,Design House,1495.72, 07-Apr-2020
1537,Revenue,CAHD,South - Commissioned Services,Day Care / Social Activities,Design House,645.60, 07-Apr-2020
1538,Revenue,CAHD,South - Commissioned Services,Day Care / Social Activities,Design House,658.52, 07-Apr-2020
1539,Revenue,CAHD,South - Commissioned Services,Supported Living,Design House,1345.68, 07-Apr-2020
1540,Revenue,CAHD,South - Commissioned Services,Supported Living,Design House,1319.30, 07-Apr-2020
1541,Revenue,CAHD,South - Commissioned Services,Supported Living,Design House,2638.60, 07-Apr-2020
1542,Revenue,CAHD,South - Commissioned Services,Other Small Contracts,Design House,1096.16, 07-Apr-2020
1543,Revenue,CAHD,South - Commissioned Services,Supported Living,Design House,1074.66, 07-Apr-2020
1544,Revenue,CAHD,South - Commissioned Services,Supported Living,Design House,967.22, 07-Apr-2020
1545,Revenue,CAHD,South - Commissioned Services,Supported Living,Design House,948.26, 07-Apr-2020
1546,Revenue,CAHD,South - Commissioned Services,Other Small Contracts,Design House,1283.46, 07-Apr-2020
1547,Revenue,CAHD,South - Commissioned Services,Supported Living,Design House,1258.30, 07-Apr-2020
1548,Revenue,CAHD,South - Commissioned Services,Supported Living,Design House,2196.64, 07-Apr-2020
1549,Revenue,CAHD,South - Commissioned Services,Supported Living,Design House,2153.56, 07-Apr-2020
1550,Revenue,CAHD,North - Community based support,Supported Living,Design House,1557.66, 07-Apr-2020
1551,Revenue,CAHD,North - Community based support,Supported Living,Design House,1527.12, 07-Apr-2020
1552,Revenue,CAHD,South - Commissioned Services,Day Care / Social Activities,Design House,752.98, 07-Apr-2020
1553,Revenue,CAHD,South - Commissioned Services,Day Care / Social Activities,Design House,768.04, 07-Apr-2020
1554,Revenue,CAHD,South - Commissioned Services,Supported Living,Design House,1491.58, 07-Apr-2020
1555,Revenue,CAHD,South - Commissioned Services,Supported Living,Design House,1462.34, 07-Apr-2020
1556,Revenue,CAHD,South - Commissioned Services,Supported Living,Design House,1296.82, 07-Apr-2020
1557,Revenue,CAHD,South - Commissioned Services,Supported Living,Design House,1271.40, 07-Apr-2020
1558,Revenue,CAHD,South - Commissioned Services,Supported Living,Design House,1151.32, 07-Apr-2020
1559,Revenue,CAHD,South - Commissioned Services,Supported Living,Design House,1128.74, 07-Apr-2020
1560,Revenue,CAHD,South - Commissioned Services,Supported Living,Design House,1151.32, 07-Apr-2020
1561,Revenue,CAHD,South - Commissioned Services,Supported Living,Design House,1128.74, 07-Apr-2020
1562,Revenue,CAHD,CSC - Vinney Green Secure Unit,Operational Equipment,Detectnology (UK) Limited,5199.00, 02-Apr-2020
1563,Revenue,CAHD,South - Commissioned Services,Permanent Residential,Dimensions  Suite 2,2815.38, 07-Apr-2020
1564,Revenue,CAHD,South - Commissioned Services,Permanent Residential,Dimensions  Suite 2,2815.38, 07-Apr-2020
1565,Revenue,CAHD,Covid 19 -Adult Social Care,Permanent Residential,Dimensions  Suite 2,611.67, 24-Apr-2020
1566,Revenue,CAHD,Covid 19 -Adult Social Care,Permanent Residential,Dimensions  Suite 2,611.67, 24-Apr-2020
1567,Revenue,CAHD,South - Commissioned Services,Permanent Residential,Dimensions  Suite 2,1403.06, 07-Apr-2020
1568,Revenue,CAHD,South - Commissioned Services,Permanent Residential,Dimensions  Suite 2,1403.06, 07-Apr-2020
1569,Revenue,CAHD,Tobacco Control,Other Small Contracts,Downend Health Group,555.00, 08-Apr-2020
1570,Revenue,CAHD,Tobacco Control,Other Small Contracts,Downend Health Group,510.00, 08-Apr-2020
1571,Revenue,CAHD,Statemented Support Academies,Other Public Bodies,Downend School,978.57, 28-Apr-2020
1572,Revenue,CAHD,Statemented Support Academies,Other Public Bodies,Downend School,660.24, 28-Apr-2020
1573,Revenue,CAHD,Statemented Support Academies,Other Public Bodies,Downend School,1025.73, 28-Apr-2020
1574,Revenue,CAHD,Statemented Support Academies,Other Public Bodies,Downend School,1013.94, 28-Apr-2020
1575,Revenue,CAHD,Statemented Support Academies,Other Public Bodies,Downend School,801.72, 28-Apr-2020
1576,Revenue,CAHD,Statemented Support Academies,Other Public Bodies,Downend School,530.55, 28-Apr-2020
1577,Revenue,CAHD,Statemented Support Academies,Other Public Bodies,Downend School,1108.26, 28-Apr-2020
1578,Revenue,CAHD,Statemented Support Academies,Other Public Bodies,Downend School,554.13, 28-Apr-2020
1579,Revenue,CAHD,Statemented Support Academies,Other Public Bodies,Downend School,1438.38, 28-Apr-2020
1580,Revenue,CAHD,Statemented Support Academies,Other Public Bodies,Downend School,1709.55, 28-Apr-2020
1581,Revenue,CAHD,Statemented Support Academies,Other Public Bodies,Downend School,1544.49, 28-Apr-2020
1582,Revenue,CAHD,South Glos Alternative Provision,Fees & Charges Income - General,Downend School,4191.71, 06-Apr-2020
1583,Revenue,CAHD,Social Lettings Agency,Other Supplies & Services,Individual,605.64, 24-Apr-2020
1584,Revenue,CAHD,CSC - Residential Placements,Permanent Residential,Durham County Council,29754.00, 06-Apr-2020
1585,Revenue,CAHD,CSC - Residential Placements,Permanent Residential,Durham County Council,31806.00, 22-Apr-2020
1586,Revenue,CAHD,Bed and Breakfast,Bed & Breakfast,Individual,768.00, 16-Apr-2020
1587,Revenue,CAHD,Early Years Development,External Lecturers Fees,Early Education,1143.40, 07-Apr-2020
1588,Revenue,CAHD,North - Community based support,Permanent Residential,East Court,1381.78, 07-Apr-2020
1589,Revenue,CAHD,North - Community based support,Permanent Residential,East Court,1381.78, 07-Apr-2020
1590,Revenue,CAHD,CSC - Residential Placements,Permanent Residential,East Sussex County Council,33573.29, 20-Apr-2020
1591,Revenue,CAHD,CSC - Residential Placements,Permanent Residential,East Sussex County Council,30770.13, 16-Apr-2020
1592,Revenue,CAHD,CSC - Residential Placements,Permanent Residential,East Sussex County Council,30535.00, 01-Apr-2020
1593,Revenue,CAHD,CSC - Residential Placements,Permanent Residential,East Sussex County Council,28565.00, 01-Apr-2020
1594,Revenue,CAHD,Younger Adult Mental Health,Other Supplies & Services,Edge Training & Consultancy Limited,1115.00, 02-Apr-2020
1595,Revenue,CAHD,Training - Adult Services,Training Expenses,Edge Training & Consultancy Limited,925.00, 02-Apr-2020
1596,Revenue,CAHD,South - bed purchasing and direct  payments,Permanent Residential,Edgemont House Ltd,21485.71, 07-Apr-2020
1597,Revenue,CAHD,South - bed purchasing and direct  payments,Fees & Charges Income - General,Edgemont House Ltd,3204.57, 07-Apr-2020
1598,Revenue,CAHD,South - Commissioned Services,Permanent Residential,Edgemont House Ltd,1632.00, 07-Apr-2020
1599,Revenue,CAHD,South - Commissioned Services,Permanent Residential,Edgemont House Ltd,1600.00, 07-Apr-2020
1600,Revenue,CAHD,South - Commissioned Services,Fees & Charges Income - General,Edgemont House Ltd,1423.50, 07-Apr-2020
1601,Revenue,CAHD,South - Commissioned Services,Fees & Charges Income - General,Edgemont House Ltd,3802.78, 07-Apr-2020
1602,Revenue,CAHD,South - bed purchasing and direct  payments,Permanent Residential,Edgemont House Ltd,1632.00, 07-Apr-2020
1603,Revenue,CAHD,South - bed purchasing and direct  payments,Permanent Residential,Edgemont House Ltd,1600.00, 07-Apr-2020
1604,Revenue,CAHD,Covid 19 -Adult Social Care,Permanent Residential,Edgemont House Ltd,708.95, 24-Apr-2020
1605,Revenue,CAHD,Covid 19 -Adult Social Care,Permanent Residential,Edgemont House Ltd,708.95, 24-Apr-2020
1606,Revenue,CAHD,South - Commissioned Services,Permanent Nursing,Edgemont View Ltd,1827.84, 07-Apr-2020
1607,Revenue,CAHD,South - Commissioned Services,Permanent Nursing,Edgemont View Ltd,1792.00, 07-Apr-2020
1608,Revenue,CAHD,South Glos Users in South Glos Homes,Permanent Nursing,Edgemont View Ltd,662.24, 07-Apr-2020
1609,Revenue,CAHD,South - Commissioned Services,Permanent Nursing,Edgemont View Ltd,1305.60, 07-Apr-2020
1610,Revenue,CAHD,South - Commissioned Services,Permanent Nursing,Edgemont View Ltd,1280.00, 07-Apr-2020
1611,Revenue,CAHD,South Glos Users in South Glos Homes,Permanent Nursing,Edgemont View Ltd,662.24, 07-Apr-2020
1612,Revenue,CAHD,South - Commissioned Services,Permanent Nursing,Edgemont View Ltd,2106.02, 07-Apr-2020
1613,Revenue,CAHD,South - Commissioned Services,Permanent Nursing,Edgemont View Ltd,2064.72, 07-Apr-2020
1614,Revenue,CAHD,South Glos Users in South Glos Homes,Permanent Nursing,Edgemont View Ltd,662.24, 07-Apr-2020
1615,Revenue,CAHD,South Glos Users in South Glos Homes,Permanent Nursing,Edgemont View Ltd,662.24, 07-Apr-2020
1616,Revenue,CAHD,South Glos Users in South Glos Homes,Permanent Nursing,Edgemont View Ltd,662.24, 07-Apr-2020
1617,Revenue,CAHD,South Glos Users in South Glos Homes,Permanent Nursing,Edgemont View Ltd,1229.87, 07-Apr-2020
1618,Revenue,CAHD,South Glos Users in South Glos Homes,Permanent Nursing,Edgemont View Ltd,662.24, 07-Apr-2020
1619,Revenue,CAHD,South Glos Users in South Glos Homes,Permanent Nursing,Edgemont View Ltd,662.24, 07-Apr-2020
1620,Revenue,CAHD,South Glos Users in South Glos Homes,Permanent Nursing,Edgemont View Ltd,662.24, 07-Apr-2020
1621,Revenue,CAHD,South - Commissioned Services,Permanent Nursing,Edgemont View Ltd,1502.58, 07-Apr-2020
1622,Revenue,CAHD,South - Commissioned Services,Permanent Nursing,Edgemont View Ltd,1532.64, 07-Apr-2020
1623,Revenue,CAHD,South Glos Users in South Glos Homes,Permanent Nursing,Edgemont View Ltd,662.24, 07-Apr-2020
1624,Revenue,CAHD,South Glos Users in South Glos Homes,Permanent Nursing,Edgemont View Ltd,662.24, 07-Apr-2020
1625,Revenue,CAHD,South Glos Users in South Glos Homes,Permanent Nursing,Edgemont View Ltd,662.24, 07-Apr-2020
1626,Revenue,CAHD,South Glos Users in South Glos Homes,Permanent Nursing,Edgemont View Ltd,662.24, 07-Apr-2020
1627,Revenue,CAHD,South Glos Users in South Glos Homes,Permanent Nursing,Edgemont View Ltd,662.24, 07-Apr-2020
1628,Revenue,CAHD,South - Commissioned Services,Permanent Nursing,Edgemont View Ltd,1792.00, 07-Apr-2020
1629,Revenue,CAHD,South - Commissioned Services,Permanent Nursing,Edgemont View Ltd,1827.84, 07-Apr-2020
1630,Revenue,CAHD,South Glos Users in South Glos Homes,Permanent Nursing,Edgemont View Ltd,662.24, 07-Apr-2020
1631,Revenue,CAHD,South - Commissioned Services,Permanent Nursing,Edgemont View Ltd,1734.00, 07-Apr-2020
1632,Revenue,CAHD,South - Commissioned Services,Permanent Nursing,Edgemont View Ltd,1700.00, 07-Apr-2020
1633,Revenue,CAHD,South Glos Users in South Glos Homes,Permanent Nursing,Edgemont View Ltd,662.24, 07-Apr-2020
1634,Revenue,CAHD,Covid 19 -Adult Social Care,Permanent Residential,Edgemont View Ltd,1553.50, 24-Apr-2020
1635,Revenue,CAHD,Covid 19 -Adult Social Care,Permanent Residential,Edgemont View Ltd,1553.50, 24-Apr-2020
1636,Revenue,CAHD,CSC - Vinney Green Secure Unit,Educational Materials,Edusoft Limited,4295.00, 07-Apr-2020
1637,Revenue,CAHD,CSC - Special Guardianship Orders,Special Payments,Ekom Bassey Ezeigwe,585.90, 02-Apr-2020
1638,Revenue,CAHD,CSC - Special Guardianship Orders,Special Payments,Ekom Bassey Ezeigwe,661.50, 02-Apr-2020
1639,Revenue,CAHD,CSC - Special Guardianship Orders,Special Payments,Ekom Bassey Ezeigwe,585.90, 02-Apr-2020
1640,Revenue,CAHD,CSC - Special Guardianship Orders,Special Payments,Ekom Bassey Ezeigwe,661.50, 02-Apr-2020
1641,Revenue,CAHD,CSC - Special Guardianship Orders,Special Payments,Ekom Bassey Ezeigwe,647.90, 02-Apr-2020
1642,Revenue,CAHD,CSC - Special Guardianship Orders,Special Payments,Ekom Bassey Ezeigwe,731.50, 02-Apr-2020
1643,Revenue,CAHD,Planning and Partnerships Procurement,Other Supplies & Services,Eldercare,450.00, 20-Apr-2020
1644,Revenue,CAHD,Planning and Partnerships Procurement,Other Supplies & Services,Eldercare,2807.00, 20-Apr-2020
1645,Revenue,CAHD,Planning and Partnerships Procurement,Other Supplies & Services,Eldercare,450.00, 20-Apr-2020
1646,Revenue,CAHD,Planning and Partnerships Procurement,Other Supplies & Services,Eldercare,2715.14, 20-Apr-2020
1647,Revenue,CAHD,Supporting People Programme,Grants to Voluntary Bodies,Elim Housing Association Limited,5362.00, 06-Apr-2020
1648,Revenue,CAHD,South - Commissioned Services,Day Care / Social Activities,Elite Home Care Ltd,178.56, 07-Apr-2020
1649,Revenue,CAHD,South - Commissioned Services,Other Small Contracts,Elite Home Care Ltd,5204.52, 07-Apr-2020
1650,Revenue,CAHD,North - Community based support,Other Small Contracts,Elite Home Care Ltd,823.36, 07-Apr-2020
1651,Revenue,CAHD,South - Commissioned Services,Day Care / Social Activities,Elite Home Care Ltd,193.44, 15-Apr-2020
1652,Revenue,CAHD,South - Commissioned Services,Other Small Contracts,Elite Home Care Ltd,5193.86, 15-Apr-2020
1653,Revenue,CAHD,North - Community based support,Other Small Contracts,Elite Home Care Ltd,808.48, 15-Apr-2020
1654,Revenue,CAHD,South - Commissioned Services,Day Care / Social Activities,Elite Home Care Ltd,202.40, 23-Apr-2020
1655,Revenue,CAHD,South - Commissioned Services,Other Small Contracts,Elite Home Care Ltd,5567.05, 23-Apr-2020
1656,Revenue,CAHD,North - Community based support,Other Small Contracts,Elite Home Care Ltd,834.90, 23-Apr-2020
1657,Revenue,CAHD,South - Commissioned Services,Day Care / Social Activities,Elite Home Care Ltd,202.40, 27-Apr-2020
1658,Revenue,CAHD,South - Commissioned Services,Other Small Contracts,Elite Home Care Ltd,5542.69, 27-Apr-2020
1659,Revenue,CAHD,North - Community based support,Other Small Contracts,Elite Home Care Ltd,834.90, 27-Apr-2020
1660,Revenue,CAHD,Covid 19 -Adult Social Care,Other Small Contracts,Elite Home Care Ltd,3068.29, 24-Apr-2020
1661,Revenue,CAHD,Covid 19 -Adult Social Care,Other Small Contracts,Elite Home Care Ltd,879.50, 14-Apr-2020
1662,Revenue,CAHD,Covid 19 -Adult Social Care,Other Small Contracts,Elite Home Care Ltd,890.16, 22-Apr-2020
1663,Revenue,CAHD,Covid 19 -Adult Social Care,Other Small Contracts,Elite Home Care Ltd,598.93, 29-Apr-2020
1664,Revenue,CAHD,Minor Adaptations Service,Operational Equipment,Ellis Building Products (EBP) Ltd,528.58, 23-Apr-2020
1665,Revenue,CAHD,Special ISB,Other Public Bodies,Enable Trust,627.77, 27-Apr-2020
1666,Revenue,CAHD,Special ISB,Other Public Bodies,Enable Trust,1137.95, 27-Apr-2020
1667,Revenue,CAHD,Special ISB,Other Public Bodies,Enable Trust,1137.95, 27-Apr-2020
1668,Revenue,CAHD,Special ISB,Other Public Bodies,Enable Trust,1137.95, 27-Apr-2020
1669,Revenue,CAHD,Special ISB,Other Public Bodies,Enable Trust,1137.95, 27-Apr-2020
1670,Revenue,CAHD,Special ISB,Other Public Bodies,Enable Trust,1137.95, 27-Apr-2020
1671,Revenue,CAHD,Special ISB,Other Public Bodies,Enable Trust,1491.13, 27-Apr-2020
1672,Revenue,CAHD,Special ISB,Other Public Bodies,Enable Trust,1491.13, 27-Apr-2020
1673,Revenue,CAHD,Special ISB,Other Public Bodies,Enable Trust,2118.90, 27-Apr-2020
1674,Revenue,CAHD,Special ISB,Other Public Bodies,Enable Trust,1491.13, 27-Apr-2020
1675,Revenue,CAHD,Special ISB,Other Public Bodies,Enable Trust,1137.95, 27-Apr-2020
1676,Revenue,CAHD,Special ISB,Other Public Bodies,Enable Trust,863.27, 27-Apr-2020
1677,Revenue,CAHD,Special ISB,Other Public Bodies,Enable Trust,1491.13, 27-Apr-2020
1678,Revenue,CAHD,Special ISB,Other Public Bodies,Enable Trust,863.27, 27-Apr-2020
1679,Revenue,CAHD,Special ISB,Other Public Bodies,Enable Trust,2118.90, 27-Apr-2020
1680,Revenue,CAHD,Special ISB,Other Public Bodies,Enable Trust,1491.13, 27-Apr-2020
1681,Revenue,CAHD,Special ISB,Other Public Bodies,Enable Trust,1137.95, 27-Apr-2020
1682,Revenue,CAHD,Special ISB,Other Public Bodies,Enable Trust,1137.95, 27-Apr-2020
1683,Revenue,CAHD,Special ISB,Other Public Bodies,Enable Trust,863.27, 27-Apr-2020
1684,Revenue,CAHD,Special ISB,Other Public Bodies,Enable Trust,1137.95, 27-Apr-2020
1685,Revenue,CAHD,Special ISB,Other Public Bodies,Enable Trust,1137.95, 27-Apr-2020
1686,Revenue,CAHD,Special ISB,Other Public Bodies,Enable Trust,1137.95, 27-Apr-2020
1687,Revenue,CAHD,Special ISB,Other Public Bodies,Enable Trust,627.77, 27-Apr-2020
1688,Revenue,CAHD,Special ISB,Other Public Bodies,Enable Trust,1137.95, 27-Apr-2020
1689,Revenue,CAHD,Special ISB,Other Public Bodies,Enable Trust,1137.95, 27-Apr-2020
1690,Revenue,CAHD,Special ISB,Other Public Bodies,Enable Trust,1137.95, 27-Apr-2020
1691,Revenue,CAHD,Special ISB,Other Public Bodies,Enable Trust,1491.13, 27-Apr-2020
1692,Revenue,CAHD,Special ISB,Other Public Bodies,Enable Trust,1137.95, 27-Apr-2020
1693,Revenue,CAHD,Special ISB,Other Public Bodies,Enable Trust,863.27, 27-Apr-2020
1694,Revenue,CAHD,Special ISB,Other Public Bodies,Enable Trust,1491.13, 27-Apr-2020
1695,Revenue,CAHD,Special ISB,Other Public Bodies,Enable Trust,1137.95, 27-Apr-2020
1696,Revenue,CAHD,Special ISB,Other Public Bodies,Enable Trust,863.27, 27-Apr-2020
1697,Revenue,CAHD,Special ISB,Other Public Bodies,Enable Trust,1491.13, 27-Apr-2020
1698,Revenue,CAHD,Special ISB,Other Public Bodies,Enable Trust,1491.13, 27-Apr-2020
1699,Revenue,CAHD,Special ISB,Other Public Bodies,Enable Trust,1137.95, 27-Apr-2020
1700,Revenue,CAHD,Special ISB,Other Public Bodies,Enable Trust,1137.95, 27-Apr-2020
1701,Revenue,CAHD,Special ISB,Other Public Bodies,Enable Trust,863.27, 27-Apr-2020
1702,Revenue,CAHD,Special ISB,Other Public Bodies,Enable Trust,1491.13, 27-Apr-2020
1703,Revenue,CAHD,Special ISB,Other Public Bodies,Enable Trust,2118.90, 27-Apr-2020
1704,Revenue,CAHD,Special ISB,Other Public Bodies,Enable Trust,1137.95, 27-Apr-2020
1705,Revenue,CAHD,Special ISB,Other Public Bodies,Enable Trust,1137.95, 27-Apr-2020
1706,Revenue,CAHD,Special ISB,Other Public Bodies,Enable Trust,1137.95, 27-Apr-2020
1707,Revenue,CAHD,Special ISB,Other Public Bodies,Enable Trust,1491.13, 27-Apr-2020
1708,Revenue,CAHD,Special ISB,Other Public Bodies,Enable Trust,1137.95, 27-Apr-2020
1709,Revenue,CAHD,Special ISB,Other Public Bodies,Enable Trust,863.27, 27-Apr-2020
1710,Revenue,CAHD,Special ISB,Other Public Bodies,Enable Trust,2118.90, 27-Apr-2020
1711,Revenue,CAHD,Special ISB,Other Public Bodies,Enable Trust,1137.95, 27-Apr-2020
1712,Revenue,CAHD,Special ISB,Other Public Bodies,Enable Trust,1491.13, 27-Apr-2020
1713,Revenue,CAHD,Special ISB,Other Public Bodies,Enable Trust,2118.90, 27-Apr-2020
1714,Revenue,CAHD,Special ISB,Other Public Bodies,Enable Trust,1137.95, 27-Apr-2020
1715,Revenue,CAHD,Special ISB,Other Public Bodies,Enable Trust,1491.13, 27-Apr-2020
1716,Revenue,CAHD,Special ISB,Other Public Bodies,Enable Trust,1648.03, 27-Apr-2020
1717,Revenue,CAHD,Special ISB,Other Public Bodies,Enable Trust,863.27, 27-Apr-2020
1718,Revenue,CAHD,Special ISB,Other Public Bodies,Enable Trust,1137.95, 27-Apr-2020
1719,Revenue,CAHD,Special ISB,Other Public Bodies,Enable Trust,863.27, 27-Apr-2020
1720,Revenue,CAHD,Special ISB,Other Public Bodies,Enable Trust,863.27, 27-Apr-2020
1721,Revenue,CAHD,Special ISB,Other Public Bodies,Enable Trust,1137.95, 27-Apr-2020
1722,Revenue,CAHD,Special ISB,Other Public Bodies,Enable Trust,1137.95, 27-Apr-2020
1723,Revenue,CAHD,Special ISB,Other Public Bodies,Enable Trust,1491.13, 27-Apr-2020
1724,Revenue,CAHD,Special ISB,Other Public Bodies,Enable Trust,1137.95, 27-Apr-2020
1725,Revenue,CAHD,Special ISB,Other Public Bodies,Enable Trust,1491.13, 27-Apr-2020
1726,Revenue,CAHD,Special ISB,Other Public Bodies,Enable Trust,863.27, 27-Apr-2020
1727,Revenue,CAHD,Special ISB,Other Public Bodies,Enable Trust,1491.13, 27-Apr-2020
1728,Revenue,CAHD,Special ISB,Other Public Bodies,Enable Trust,1137.95, 27-Apr-2020
1729,Revenue,CAHD,Special ISB,Other Public Bodies,Enable Trust,1137.95, 27-Apr-2020
1730,Revenue,CAHD,Special ISB,Other Public Bodies,Enable Trust,1491.13, 27-Apr-2020
1731,Revenue,CAHD,Special ISB,Other Public Bodies,Enable Trust,1491.13, 27-Apr-2020
1732,Revenue,CAHD,Special ISB,Other Public Bodies,Enable Trust,863.27, 27-Apr-2020
1733,Revenue,CAHD,Special ISB,Other Public Bodies,Enable Trust,863.27, 27-Apr-2020
1734,Revenue,CAHD,Special ISB,Other Public Bodies,Enable Trust,1137.95, 27-Apr-2020
1735,Revenue,CAHD,Special ISB,Other Public Bodies,Enable Trust,2118.90, 27-Apr-2020
1736,Revenue,CAHD,Special ISB,Other Public Bodies,Enable Trust,1137.95, 27-Apr-2020
1737,Revenue,CAHD,Special ISB,Other Public Bodies,Enable Trust,1137.95, 27-Apr-2020
1738,Revenue,CAHD,Special ISB,Other Public Bodies,Enable Trust,1491.13, 27-Apr-2020
1739,Revenue,CAHD,Special ISB,Other Public Bodies,Enable Trust,1491.13, 27-Apr-2020
1740,Revenue,CAHD,Special ISB,Other Public Bodies,Enable Trust,6775.92, 06-Apr-2020
1741,Revenue,CAHD,Special ISB,Other Public Bodies,Enable Trust,863.27, 27-Apr-2020
1742,Revenue,CAHD,Special ISB,Other Public Bodies,Enable Trust,988.80, 27-Apr-2020
1743,Revenue,CAHD,Special ISB,Other Public Bodies,Enable Trust,1648.03, 27-Apr-2020
1744,Revenue,CAHD,Special ISB,Other Public Bodies,Enable Trust,1137.95, 27-Apr-2020
1745,Revenue,CAHD,Special ISB,Other Public Bodies,Enable Trust,863.27, 27-Apr-2020
1746,Revenue,CAHD,Special ISB,Other Public Bodies,Enable Trust,1137.95, 27-Apr-2020
1747,Revenue,CAHD,Special ISB,Other Public Bodies,Enable Trust,1137.95, 27-Apr-2020
1748,Revenue,CAHD,Special ISB,Other Public Bodies,Enable Trust,1137.95, 27-Apr-2020
1749,Revenue,CAHD,Special ISB,Other Public Bodies,Enable Trust,1137.95, 27-Apr-2020
1750,Revenue,CAHD,Special ISB,Other Public Bodies,Enable Trust,1648.03, 27-Apr-2020
1751,Revenue,CAHD,Special ISB,Other Public Bodies,Enable Trust,1137.95, 27-Apr-2020
1752,Revenue,CAHD,Special ISB,Other Public Bodies,Enable Trust,1137.95, 27-Apr-2020
1753,Revenue,CAHD,Special ISB,Other Public Bodies,Enable Trust,863.27, 27-Apr-2020
1754,Revenue,CAHD,Special ISB,Other Public Bodies,Enable Trust,1137.95, 27-Apr-2020
1755,Revenue,CAHD,Special ISB,Other Public Bodies,Enable Trust,627.77, 27-Apr-2020
1756,Revenue,CAHD,Special ISB,Other Public Bodies,Enable Trust,1648.03, 27-Apr-2020
1757,Revenue,CAHD,Special ISB,Other Public Bodies,Enable Trust,1137.95, 27-Apr-2020
1758,Revenue,CAHD,Special ISB,Other Public Bodies,Enable Trust,1491.13, 27-Apr-2020
1759,Revenue,CAHD,Special ISB,Other Public Bodies,Enable Trust,1648.03, 27-Apr-2020
1760,Revenue,CAHD,Special ISB,Other Public Bodies,Enable Trust,863.27, 27-Apr-2020
1761,Revenue,CAHD,Special ISB,Other Public Bodies,Enable Trust,2432.78, 27-Apr-2020
1762,Revenue,CAHD,Special ISB,Other Public Bodies,Enable Trust,863.27, 27-Apr-2020
1763,Revenue,CAHD,Special ISB,Other Public Bodies,Enable Trust,1648.03, 27-Apr-2020
1764,Revenue,CAHD,Special ISB,Other Public Bodies,Enable Trust,1648.03, 27-Apr-2020
1765,Revenue,CAHD,Special ISB,Other Public Bodies,Enable Trust,1137.95, 27-Apr-2020
1766,Revenue,CAHD,Special ISB,Other Public Bodies,Enable Trust,1648.03, 27-Apr-2020
1767,Revenue,CAHD,Special ISB,Other Public Bodies,Enable Trust,1137.95, 27-Apr-2020
1768,Revenue,CAHD,Special ISB,Other Public Bodies,Enable Trust,2118.90, 27-Apr-2020
1769,Revenue,CAHD,Special ISB,Other Public Bodies,Enable Trust,1137.95, 27-Apr-2020
1770,Revenue,CAHD,Special ISB,Other Public Bodies,Enable Trust,1648.03, 27-Apr-2020
1771,Revenue,CAHD,Special ISB,Other Public Bodies,Enable Trust,1648.03, 27-Apr-2020
1772,Revenue,CAHD,Special ISB,Other Public Bodies,Enable Trust,2118.90, 27-Apr-2020
1773,Revenue,CAHD,Special ISB,Other Public Bodies,Enable Trust,863.27, 27-Apr-2020
1774,Revenue,CAHD,Special ISB,Other Public Bodies,Enable Trust,863.27, 27-Apr-2020
1775,Revenue,CAHD,Special ISB,Other Public Bodies,Enable Trust,627.77, 27-Apr-2020
1776,Revenue,CAHD,Special ISB,Other Public Bodies,Enable Trust,1648.03, 27-Apr-2020
1777,Revenue,CAHD,Special ISB,Other Public Bodies,Enable Trust,863.27, 27-Apr-2020
1778,Revenue,CAHD,Special ISB,Other Public Bodies,Enable Trust,1137.95, 27-Apr-2020
1779,Revenue,CAHD,Special ISB,Other Public Bodies,Enable Trust,1137.95, 27-Apr-2020
1780,Revenue,CAHD,Special ISB,Other Public Bodies,Enable Trust,1648.03, 27-Apr-2020
1781,Revenue,CAHD,Special ISB,Other Public Bodies,Enable Trust,863.27, 27-Apr-2020
1782,Revenue,CAHD,Special ISB,Other Public Bodies,Enable Trust,1137.95, 27-Apr-2020
1783,Revenue,CAHD,Special ISB,Other Public Bodies,Enable Trust,1137.95, 27-Apr-2020
1784,Revenue,CAHD,Special ISB,Other Public Bodies,Enable Trust,1648.03, 27-Apr-2020
1785,Revenue,CAHD,Special ISB,Other Public Bodies,Enable Trust,2118.90, 27-Apr-2020
1786,Revenue,CAHD,Special ISB,Other Public Bodies,Enable Trust,2118.90, 27-Apr-2020
1787,Revenue,CAHD,Special ISB,Other Public Bodies,Enable Trust,863.27, 27-Apr-2020
1788,Revenue,CAHD,Special ISB,Other Public Bodies,Enable Trust,1648.03, 27-Apr-2020
1789,Revenue,CAHD,Special ISB,Other Public Bodies,Enable Trust,863.27, 27-Apr-2020
1790,Revenue,CAHD,Special ISB,Other Public Bodies,Enable Trust,863.27, 27-Apr-2020
1791,Revenue,CAHD,Special ISB,Other Public Bodies,Enable Trust,863.27, 27-Apr-2020
1792,Revenue,CAHD,Special ISB,Other Public Bodies,Enable Trust,2118.90, 27-Apr-2020
1793,Revenue,CAHD,Special ISB,Other Public Bodies,Enable Trust,1648.03, 27-Apr-2020
1794,Revenue,CAHD,Special ISB,Other Public Bodies,Enable Trust,1648.03, 27-Apr-2020
1795,Revenue,CAHD,Special ISB,Other Public Bodies,Enable Trust,1137.95, 27-Apr-2020
1796,Revenue,CAHD,Special ISB,Other Public Bodies,Enable Trust,2118.90, 27-Apr-2020
1797,Revenue,CAHD,Special ISB,Other Public Bodies,Enable Trust,1137.95, 27-Apr-2020
1798,Revenue,CAHD,Special ISB,Other Public Bodies,Enable Trust,1137.95, 27-Apr-2020
1799,Revenue,CAHD,Special ISB,Other Public Bodies,Enable Trust,1137.95, 27-Apr-2020
1800,Revenue,CAHD,Special ISB,Other Public Bodies,Enable Trust,863.27, 27-Apr-2020
1801,Revenue,CAHD,Special ISB,Other Public Bodies,Enable Trust,1137.95, 27-Apr-2020
1802,Revenue,CAHD,Special ISB,Other Public Bodies,Enable Trust,1137.95, 27-Apr-2020
1803,Revenue,CAHD,Special ISB,Other Public Bodies,Enable Trust,1137.95, 27-Apr-2020
1804,Revenue,CAHD,Special ISB,Other Public Bodies,Enable Trust,863.27, 27-Apr-2020
1805,Revenue,CAHD,Special ISB,Other Public Bodies,Enable Trust,1648.03, 27-Apr-2020
1806,Revenue,CAHD,Special ISB,Other Public Bodies,Enable Trust,863.27, 27-Apr-2020
1807,Revenue,CAHD,Special ISB,Other Public Bodies,Enable Trust,863.27, 27-Apr-2020
1808,Revenue,CAHD,Special ISB,Other Public Bodies,Enable Trust,1137.95, 27-Apr-2020
1809,Revenue,CAHD,Special ISB,Other Public Bodies,Enable Trust,1137.95, 27-Apr-2020
1810,Revenue,CAHD,Special ISB,Other Public Bodies,Enable Trust,1137.95, 27-Apr-2020
1811,Revenue,CAHD,Special ISB,Other Public Bodies,Enable Trust,2118.90, 27-Apr-2020
1812,Revenue,CAHD,Special ISB,Other Public Bodies,Enable Trust,1137.95, 27-Apr-2020
1813,Revenue,CAHD,Special ISB,Other Public Bodies,Enable Trust,1137.95, 27-Apr-2020
1814,Revenue,CAHD,Special ISB,Other Public Bodies,Enable Trust,1648.03, 27-Apr-2020
1815,Revenue,CAHD,Special ISB,Other Public Bodies,Enable Trust,1137.95, 27-Apr-2020
1816,Revenue,CAHD,Special ISB,Other Public Bodies,Enable Trust,1648.03, 27-Apr-2020
1817,Revenue,CAHD,Special ISB,Other Public Bodies,Enable Trust,1648.03, 27-Apr-2020
